Workbook

Sheet 1-Й ОБРАЗЕЦ
G1: РКУ | M1: 0
D2: =TODAY() -> 2020-11-30 | G2: рост | H2: 175 | I2: одежда | J2: 54 | K2: обувь | L2: 44
B4: № п/п | C4: Наименование СИЗ | D4: ТМЦ | E4: цена | F4: дата выдачи | G4: срок носки, мес | H4: дата списания | I4: износ | J4: стоимость | K4: 20% | L4: Итого с НДС | M4: Закупка | O4: Наименование | P4: Количество
B5: 1 | C5: Футболка СПОРТ-К трикотажная оранжевого цвета | D5: 6100000219 | E5: 490 | F5: 2020-04-16 | G5: 6 | H5: =F5+G5*30 -> 2020-10-13 | I5: =1-IF(ISBLANK($D$3),(TODAY()-Table13129130131133[[#This Row],[дата выдачи]])/(Table13129130131133[[#This Row],[дата списания]]-Table13129130131133[[#This Row],[дата выдачи]]),($D$3-Table13129130131133[[#This Row],[дата выдачи]])/(Table13129130131133[[#This Row],[дата списания]]-Table13129130131133[[#This Row],[дата выдачи]])) -> -0.2666666667 | J5: =Table13129130131133[[#This Row],[цена]]*Table13129130131133[[#This Row],[износ]] -> -130.6666667 | K5: =$J5*$K$27 -> -26.13333333 | L5: =J5+K5 -> -156.8 | M5: =IF(L5<0,"1","0") -> 1
B6: 2 | C6: Очки с непрямой вентиляцией закрытые УЛЬТРАВИЖИН | D6: 6100000177 | E6: 55 | F6: 2020-06-17 | G6: 3 | H6: 2020-09-15 | I6: =1-IF(ISBLANK($D$3),(TODAY()-Table13129130131133[[#This Row],[дата выдачи]])/(Table13129130131133[[#This Row],[дата списания]]-Table13129130131133[[#This Row],[дата выдачи]]),($D$3-Table13129130131133[[#This Row],[дата выдачи]])/(Table13129130131133[[#This Row],[дата списания]]-Table13129130131133[[#This Row],[дата выдачи]])) -> -0.8444444444 | J6: =Table13129130131133[[#This Row],[цена]]*Table13129130131133[[#This Row],[износ]] -> -46.44444444 | K6: =$J6*$K$27 -> -9.288888889 | L6: =J6+K6 -> -55.73333333 | M6: 1
B7: 3 | C7: Костюм мужской летний Инженер | D7: 6100000217 | E7: 955 | F7: 2020-06-18 | G7: 12 | H7: 2021-06-13 | I7: =1-IF(ISBLANK($D$3),(TODAY()-Table13129130131133[[#This Row],[дата выдачи]])/(Table13129130131133[[#This Row],[дата списания]]-Table13129130131133[[#This Row],[дата выдачи]]),($D$3-Table13129130131133[[#This Row],[дата выдачи]])/(Table13129130131133[[#This Row],[дата списания]]-Table13129130131133[[#This Row],[дата выдачи]])) -> 0.5416666667 | J7: =Table13129130131133[[#This Row],[цена]]*Table13129130131133[[#This Row],[износ]] -> 517.2916667 | K7: 103.4583333 | L7: 620.75 | M7: 0
B8: 4 | C8: Термостойкие перчатки 500C | D8: 6100000165 | E8: 420 | F8: 2020-06-19 | G8: 3 | H8: 2020-09-17 | I8: =1-IF(ISBLANK($D$3),(TODAY()-Table13129130131133[[#This Row],[дата выдачи]])/(Table13129130131133[[#This Row],[дата списания]]-Table13129130131133[[#This Row],[дата выдачи]]),($D$3-Table13129130131133[[#This Row],[дата выдачи]])/(Table13129130131133[[#This Row],[дата списания]]-Table13129130131133[[#This Row],[дата выдачи]])) -> -0.8222222222 | J8: =Table13129130131133[[#This Row],[цена]]*Table13129130131133[[#This Row],[износ]] -> -345.3333333 | K8: -69.06666667 | L8: -414.4 | M8: 1
B9: 5 | C9: Полуботинки HECKEL Маккросс 120-0076-01 | D9: 6100000225 | E9: 2540 | F9: 2020-06-20 | G9: 12 | H9: 2021-06-15 | I9: =1-IF(ISBLANK($D$3),(TODAY()-Table13129130131133[[#This Row],[дата выдачи]])/(Table13129130131133[[#This Row],[дата списания]]-Table13129130131133[[#This Row],[дата выдачи]]),($D$3-Table13129130131133[[#This Row],[дата выдачи]])/(Table13129130131133[[#This Row],[дата списания]]-Table13129130131133[[#This Row],[дата выдачи]])) -> 0.5472222222 | J9: =Table13129130131133[[#This Row],[цена]]*Table13129130131133[[#This Row],[износ]] -> 1389.944444 | K9: 277.9888889 | L9: 1667.933333 | M9: 0
B10: 6 | C10: Футболка СПОРТ-Д Код по каталогу 101-0032-01 | D10: 6100000220 | E10: 580 | F10: 2020-06-21 | G10: 6 | H10: 2020-12-18 | I10: =1-IF(ISBLANK($D$3),(TODAY()-Table13129130131133[[#This Row],[дата выдачи]])/(Table13129130131133[[#This Row],[дата списания]]-Table13129130131133[[#This Row],[дата выдачи]]),($D$3-Table13129130131133[[#This Row],[дата выдачи]])/(Table13129130131133[[#This Row],[дата списания]]-Table13129130131133[[#This Row],[дата выдачи]])) -> 0.1 | J10: =Table13129130131133[[#This Row],[цена]]*Table13129130131133[[#This Row],[износ]] -> 58 | K10: 11.6 | L10: 69.6 | M10: 0
B11: 7 | C11: Нарукавник кевларовый | D11: 6100000173 | E11: 400 | F11: 2020-06-22 | G11: 6 | H11: 2020-12-19 | I11: =1-IF(ISBLANK($D$3),(TODAY()-Table13129130131133[[#This Row],[дата выдачи]])/(Table13129130131133[[#This Row],[дата списания]]-Table13129130131133[[#This Row],[дата выдачи]]),($D$3-Table13129130131133[[#This Row],[дата выдачи]])/(Table13129130131133[[#This Row],[дата списания]]-Table13129130131133[[#This Row],[дата выдачи]])) -> 0.1055555556 | J11: =Table13129130131133[[#This Row],[цена]]*Table13129130131133[[#This Row],[износ]] -> 42.22222222 | K11: 8.444444444 | L11: 50.66666667 | M11: 0
B12: 8 | C12: Polysafe FTK/KW Термостойкие перчатки 100 С | D12: 6100000169 | E12: 27 | F12: 2020-06-23 | G12: 3 | H12: 2020-09-21 | I12: =1-IF(ISBLANK($D$3),(TODAY()-Table13129130131133[[#This Row],[дата выдачи]])/(Table13129130131133[[#This Row],[дата списания]]-Table13129130131133[[#This Row],[дата выдачи]]),($D$3-Table13129130131133[[#This Row],[дата выдачи]])/(Table13129130131133[[#This Row],[дата списания]]-Table13129130131133[[#This Row],[дата выдачи]])) -> -0.7777777778 | J12: =Table13129130131133[[#This Row],[цена]]*Table13129130131133[[#This Row],[износ]] -> -21 | K12: -4.2 | L12: -25.2 | M12: 1
B13: 9 | C13: Термостойкий шлем | D13: 6100000167 | E13: 350 | F13: 2020-06-24 | G13: 6 | H13: 2020-12-21 | I13: =1-IF(ISBLANK($D$3),(TODAY()-Table13129130131133[[#This Row],[дата выдачи]])/(Table13129130131133[[#This Row],[дата списания]]-Table13129130131133[[#This Row],[дата выдачи]]),($D$3-Table13129130131133[[#This Row],[дата выдачи]])/(Table13129130131133[[#This Row],[дата списания]]-Table13129130131133[[#This Row],[дата выдачи]])) -> 0.1166666667 | J13: =Table13129130131133[[#This Row],[цена]]*Table13129130131133[[#This Row],[износ]] -> 40.83333333 | K13: 8.166666667 | L13: 49 | M13: 0
B14: 10 | C14: Куртка утеплённая CERVA Аллин | D14: 6100000222 | E14: 3750 | F14: 2020-06-25 | G14: 24 | H14: 2022-06-15 | I14: =1-IF(ISBLANK($D$3),(TODAY()-Table13129130131133[[#This Row],[дата выдачи]])/(Table13129130131133[[#This Row],[дата списания]]-Table13129130131133[[#This Row],[дата выдачи]]),($D$3-Table13129130131133[[#This Row],[дата выдачи]])/(Table13129130131133[[#This Row],[дата списания]]-Table13129130131133[[#This Row],[дата выдачи]])) -> 0.7805555556 | J14: =Table13129130131133[[#This Row],[цена]]*Table13129130131133[[#This Row],[износ]] -> 2927.083333 | K14: 585.4166667 | L14: 3512.5 | M14: 0
B15: 11 | C15: Очки открытые защитные СКАЙПЕР | D15: 6100001957 | E15: 132 | F15: 2020-06-26 | G15: 3 | H15: 2020-09-24 | I15: =1-IF(ISBLANK($D$3),(TODAY()-Table13129130131133[[#This Row],[дата выдачи]])/(Table13129130131133[[#This Row],[дата списания]]-Table13129130131133[[#This Row],[дата выдачи]]),($D$3-Table13129130131133[[#This Row],[дата выдачи]])/(Table13129130131133[[#This Row],[дата списания]]-Table13129130131133[[#This Row],[дата выдачи]])) -> -0.7444444444 | J15: =Table13129130131133[[#This Row],[цена]]*Table13129130131133[[#This Row],[износ]] -> -98.26666667 | K15: -19.65333333 | L15: -117.92 | M15: 1
B16: 12 | C16: Каска - цвет синий | D16: 6100000203 | E16: 624 | F16: 2020-06-27 | G16: 24 | H16: 2022-06-17 | I16: =1-IF(ISBLANK($D$3),(TODAY()-Table13129130131133[[#This Row],[дата выдачи]])/(Table13129130131133[[#This Row],[дата списания]]-Table13129130131133[[#This Row],[дата выдачи]]),($D$3-Table13129130131133[[#This Row],[дата выдачи]])/(Table13129130131133[[#This Row],[дата списания]]-Table13129130131133[[#This Row],[дата выдачи]])) -> 0.7833333333 | J16: =Table13129130131133[[#This Row],[цена]]*Table13129130131133[[#This Row],[износ]] -> 488.8 | K16: 97.76 | L16: 586.56 | M16: 0
B17: 13 | C17: Armatex Jacket PKJ/179 Жакет от порезов | D17: 6100000168 | E17: 1230 | F17: 2020-06-28 | G17: 12 | H17: 2021-06-23 | I17: =1-IF(ISBLANK($D$3),(TODAY()-Table13129130131133[[#This Row],[дата выдачи]])/(Table13129130131133[[#This Row],[дата списания]]-Table13129130131133[[#This Row],[дата выдачи]]),($D$3-Table13129130131133[[#This Row],[дата выдачи]])/(Table13129130131133[[#This Row],[дата списания]]-Table13129130131133[[#This Row],[дата выдачи]])) -> 0.5694444444 | J17: =Table13129130131133[[#This Row],[цена]]*Table13129130131133[[#This Row],[износ]] -> 700.4166667 | K17: 140.0833333 | L17: 840.5 | M17: 0
B18: 14 | C18: Перчатки от порезов, класс 5 | D18: 6100000172 | E18: 640 | F18: 2020-06-29 | G18: 2 | H18: 2020-08-28 | I18: =1-IF(ISBLANK($D$3),(TODAY()-Table13129130131133[[#This Row],[дата выдачи]])/(Table13129130131133[[#This Row],[дата списания]]-Table13129130131133[[#This Row],[дата выдачи]]),($D$3-Table13129130131133[[#This Row],[дата выдачи]])/(Table13129130131133[[#This Row],[дата списания]]-Table13129130131133[[#This Row],[дата выдачи]])) -> -1.566666667 | J18: =Table13129130131133[[#This Row],[цена]]*Table13129130131133[[#This Row],[износ]] -> -1002.666667 | K18: -200.5333333 | L18: -1203.2 | M18: 1
B19: 15 | C19: Противошумные вкладыши многоразовые 3M 1271 | D19: 6100000209 | E19: 45 | F19: 2020-06-30 | G19: 1 | H19: 2020-07-30 | I19: =1-IF(ISBLANK($D$3),(TODAY()-Table13129130131133[[#This Row],[дата выдачи]])/(Table13129130131133[[#This Row],[дата списания]]-Table13129130131133[[#This Row],[дата выдачи]]),($D$3-Table13129130131133[[#This Row],[дата выдачи]])/(Table13129130131133[[#This Row],[дата списания]]-Table13129130131133[[#This Row],[дата выдачи]])) -> -4.1 | J19: =Table13129130131133[[#This Row],[цена]]*Table13129130131133[[#This Row],[износ]] -> -184.5 | K19: -36.9 | L19: -221.4 | M19: 1
B20: 16 | C20: Перчатки трикотажные с ПВХ | D20: 6100000181 | E20: 35 | F20: 2020-07-01 | G20: 1 | H20: 2020-07-31 | I20: =1-IF(ISBLANK($D$3),(TODAY()-F20)/(H20-F20),($D$3-F20)/(H20-F20)) -> -4.066666667 | J20: =E20*I20 -> -142.3333333 | K20: =$J20*$K$27 -> -28.46666667 | L20: -170.8 | M20: 1
B21: 17 | C21: Полуботинки Мастер | D21: 6100002028 | E21: 2200 | F21: 2020-07-02 | G21: 12 | H21: 2021-06-27 | I21: =1-IF(ISBLANK($D$3),(TODAY()-F21)/(H21-F21),($D$3-F21)/(H21-F21)) -> 0.5805555556 | J21: =E21*I21 -> 1277.222222 | K21: 255.4444444 | L21: 1532.666667 | M21: 0
B22: 18 | C22: Перчатки с кожанными вставками | D22: 6100000183 | E22: 230 | F22: 2020-07-03 | G22: 3 | H22: 2020-10-01 | I22: -0.6666666667 | J22: -153.3333333 | K22: -30.66666667 | L22: -184 | M22: 1 | O22: ― как написать формулу если с минусом то "списано", при этом чтоб в столбце "закупка" это учитывалось и было значение "1"
B23: 19 | C23: Рукавицы рабочие суконные G26 | D23: 6100000182 | E23: 180 | F23: 2020-07-04 | G23: 1 | H23: 2020-08-03 | I23: -3.966666667 | J23: -714 | K23: -142.8 | L23: -856.8 | M23: 1
C24: 1-ЕСЛИ(ЕПУСТО($D$3);(СЕГОДНЯ()-'СМЕНА "С"'!$F6)/('СМЕНА "С"'!$H6-'СМЕНА "С"'!$F6);($D$3-'СМЕНА "С"'!$F6)/('СМЕНА "С"'!$H6-'СМЕНА "С"'!$F6))
B25: ИТОГО: | L25: =SUMIF(L9:L23,"<500000",L9:L23) -> 5530.106667 | O25: – сводка по столбцу "закупка" где СИЗ не выдан (ДЕЛ/0) или "списан"
O26: – в вкладке "Итого по закупкам" сделать разделение по росту и размеру костюмов и обуви
B27: № п/п | C27: Наименование СИЗ | D27: н/н | E27: цена | F27: дата выдачи | G27: срок носки, мес | H27: дата списания | I27: износ | J27: стоимость | K27: 20% | L27: Итого с НДС | M27: Закупка
B28: 1 | E28: =E5 -> 490 | F28: =F5 -> 2020-04-16 | G28: 6 | H28: 2020-10-13 | I28: =1-IF(ISBLANK($D$25),(TODAY()-'1-Й ОБРАЗЕЦ'!$F28)/('1-Й ОБРАЗЕЦ'!$H28-'1-Й ОБРАЗЕЦ'!$F28),($D$25-'1-Й ОБРАЗЕЦ'!$F28)/('1-Й ОБРАЗЕЦ'!$H28-'1-Й ОБРАЗЕЦ'!$F28)) -> -0.2666666667 | J28: =$E28*$I28 -> -130.6666667 | K28: =$J28*$K$27 -> -26.13333333 | L28: =J28+K28 -> -156.8 | M28: =IF(L28<0,"1","0") -> 1 | O28: – тоже самое сделать во вкладке "мужчины"
B29: 2 | E29: 222 | F29: 2020-07-05 | G29: 6 | H29: =F29+G29*30 -> 2021-01-01 | I29: =1-IF(ISBLANK($D$25),(TODAY()-'1-Й ОБРАЗЕЦ'!$F29)/('1-Й ОБРАЗЕЦ'!$H29-'1-Й ОБРАЗЕЦ'!$F29),($D$25-'1-Й ОБРАЗЕЦ'!$F29)/('1-Й ОБРАЗЕЦ'!$H29-'1-Й ОБРАЗЕЦ'!$F29)) -> 0.1777777778 | J29: =$E29*$I29 -> 39.46666667 | K29: =$J29*$K$27 -> 7.893333333 | L29: 47.36 | M29: 0
B30: 3 | E30: 351 | F30: 2020-07-06 | G30: 6 | H30: 2021-01-02 | I30: =1-IF(ISBLANK($D$25),(TODAY()-'1-Й ОБРАЗЕЦ'!$F30)/('1-Й ОБРАЗЕЦ'!$H30-'1-Й ОБРАЗЕЦ'!$F30),($D$25-'1-Й ОБРАЗЕЦ'!$F30)/('1-Й ОБРАЗЕЦ'!$H30-'1-Й ОБРАЗЕЦ'!$F30)) -> 0.1833333333 | J30: 64.35 | K30: =$J30*$K$27 -> 12.87 | L30: 77.22 | M30: 0 | O30: – Столбец "Итого с НДС" сделать чтобы значение с минусом не учитывалось (оно же списано )))))))
B31: 4 | E31: 156 | F31: 2020-07-07 | G31: 6 | H31: 2021-01-03 | I31: =1-IF(ISBLANK($D$25),(TODAY()-'1-Й ОБРАЗЕЦ'!$F31)/('1-Й ОБРАЗЕЦ'!$H31-'1-Й ОБРАЗЕЦ'!$F31),($D$25-'1-Й ОБРАЗЕЦ'!$F31)/('1-Й ОБРАЗЕЦ'!$H31-'1-Й ОБРАЗЕЦ'!$F31)) -> 0.1888888889 | J31: 29.46666667 | K31: 5.893333333 | L31: 35.36 | M31: 0
B32: 5 | E32: 654 | F32: 2020-07-08 | G32: 6 | H32: 2021-01-04 | I32: =1-IF(ISBLANK($D$25),(TODAY()-'1-Й ОБРАЗЕЦ'!$F32)/('1-Й ОБРАЗЕЦ'!$H32-'1-Й ОБРАЗЕЦ'!$F32),($D$25-'1-Й ОБРАЗЕЦ'!$F32)/('1-Й ОБРАЗЕЦ'!$H32-'1-Й ОБРАЗЕЦ'!$F32)) -> 0.1944444444 | J32: 127.1666667 | K32: 25.43333333 | L32: 152.6 | M32: 0
B33: 6 | E33: 741 | F33: 2020-07-09 | G33: 6 | H33: 2021-01-05 | I33: =1-IF(ISBLANK($D$25),(TODAY()-'1-Й ОБРАЗЕЦ'!$F33)/('1-Й ОБРАЗЕЦ'!$H33-'1-Й ОБРАЗЕЦ'!$F33),($D$25-'1-Й ОБРАЗЕЦ'!$F33)/('1-Й ОБРАЗЕЦ'!$H33-'1-Й ОБРАЗЕЦ'!$F33)) -> 0.2 | J33: 148.2 | K33: 29.64 | L33: 177.84 | M33: 0
B34: ИТОГО: | L34: =SUBTOTAL(109,L28:L33) -> 333.58
C42: Таблица размеров женской обуви
C43: Россия | D43: Европа | E43: США | F43: Англия | G43: Япония | H43: сантиметры
C44: 35 | D44: 36 | E44: 5 | F44: 3.5 | G44: 22.5 | H44: 22.5
C45: 36 | D45: 37 | E45: 6 | F45: 4 | G45: 23 | H45: 23
C46: 37 | D46: 38 | E46: 7 | F46: 5 | G46: 24 | H46: 24
C47: 38 | D47: 39 | E47: 8 | F47: 6 | G47: 25 | H47: 25
C48: 39 | D48: 40 | E48: 9 | F48: 6.5 | G48: 25.5 | H48: 25.5
C49: 40 | D49: 41 | E49: 10 | F49: 7.5 | G49: 26.5 | H49: 26.5
C50: 41 | D50: 42 | E50: 11 | F50: 8 | G50: 27 | H50: 27
C51: 42 | D51: 43 | E51: 12 | F51: 9 | G51: 27.5 | H51: 27.5
C52: 43 | D52: 44 | E52: 13 | F52: 9.5 | G52: 28.5 | H52: 28.5
C53: 44 | D53: 45 | E53: 14 | F53: 10.5 | G53: 29 | H53: 29
F54: =SUM(F44:F53) -> 69.5
F58: 1 306
F59: 423 | H59: =F58-F59 -> 
F60: =SUM(F58:F59) -> 423

Sheet мужчины
Q1: =NOW() -> 2020-11-30T22:28:22.360
A2: 1 | B2: ФИО | G2: ДОЛЖНОСТЬ
C3: дата увольнения | G3: рост | H3: 176 | I3: одежда | J3: 54(XL) | K3: обувь | L3: 44
B5: № п/п | C5: Наименование СИЗ | D5: н/н | E5: цена | F5: дата выдачи | G5: срок носки, мес | H5: дата списания | I5: износ | J5: остаток на складе | K5: 20% | L5: Итого с НДС | M5: Закупка | O5: НОРМА ВЫДАЧИ СПЕЦОДЕЖДЫ,СПЕЦОБУВИ И ДРУГИХ СРЕДСТВ ИНДИВИДУАЛЬНОЙ ЗАЩИТЫ РАБОТНИКОВ СМЕНЫ | V5: =TODAY() -> 2020-11-30
B6: 1 | C6: Футболка СПОРТ-К трикотажная оранжевого цвета | D6: 6100000219 | F6: 2020-08-14 | G6: 6 | H6: =F6+G6*30.5 -> 2021-02-13 | I6: =1-IF(ISBLANK($D$3),(TODAY()-мужчины!$F6)/(мужчины!$H6-мужчины!$F6),($D$3-мужчины!$F6)/(мужчины!$H6-мужчины!$F6)) -> 0.4098360656 | J6: =IFERROR(INDEX('Остаток на складе'!$A$6:$E$120,MATCH(Akberov[[#This Row],[Наименование СИЗ]],'Остаток на складе'!$A$6:$A$120,0),5),"НЕТ!") -> 206 | K6: =$J6*Akberov[[#Headers],[20%]] -> 41.2 | L6: =J6+K6 -> 247.2 | M6: =IF(L6<0,"1","0") -> 0 | O6: ПЕРЕЧЕНЬ | V6: Неделя | W6: Пн | X6: Вт | Y6: Ср | Z6: Чт | AA6: Пт | AB6: Сб | AC6: Вс
B7: 2 | C7: Очки с непрямой вентиляцией закрытые УЛЬТРАВИЖИН | D7: 6100000177 | F7: 2020-08-14 | G7: 3 | H7: =F7+G7*30.5 -> 2020-11-13T12:00:00 | I7: =1-IF(ISBLANK($D$3),(TODAY()-мужчины!$F7)/(мужчины!$H7-мужчины!$F7),($D$3-мужчины!$F7)/(мужчины!$H7-мужчины!$F7)) -> -0.1803278689 | J7: =IFERROR(INDEX('Остаток на складе'!$A$6:$E$120,MATCH(Akberov[[#This Row],[Наименование СИЗ]],'Остаток на складе'!$A$6:$A$120,0),5),"НЕТ!") -> 35 | K7: =$J7*Akberov[[#Headers],[20%]] -> 7 | L7: =J7+K7 -> 42 | M7: =IF(L7<0,"1","0") -> 0 | O7: 1 | P7: НАЧАЛЬНИК СМЕНЫ | V7: =INT((V5-WEEKDAY(V5,2)-DATE(YEAR(V5+4-WEEKDAY(V5,2)),1,4))/7)+2 -> 49 | W7: =IF(MONTH(DATE(YEAR($V$5),MONTH($V$5),1)) <>MONTH(DATE(YEAR($V$5),MONTH($V$5),1)- (WEEKDAY(DATE(YEAR($V$5),MONTH($V$5),1),2)-1) +{0;1;2;3;4;5}*7+{1,2,3,4,5,6,7}-1)," ", DATE(YEAR($V$5),MONTH($V$5),1)- (WEEKDAY(DATE(YEAR($V$5),MONTH($V$5),1),2)-1) +{0;1;2;3;4;5}*7+{1,2,3,4,5,6,7}-1) ->  | X7: =IF(MONTH(DATE(YEAR($V$5),MONTH($V$5),1)) <>MONTH(DATE(YEAR($V$5),MONTH($V$5),1)- (WEEKDAY(DATE(YEAR($V$5),MONTH($V$5),1),2)-1) +{0;1;2;3;4;5}*7+{1,2,3,4,5,6,7}-1)," ", DATE(YEAR($V$5),MONTH($V$5),1)- (WEEKDAY(DATE(YEAR($V$5),MONTH($V$5),1),2)-1) +{0;1;2;3;4;5}*7+{1,2,3,4,5,6,7}-1) ->  | Y7: =IF(MONTH(DATE(YEAR($V$5),MONTH($V$5),1)) <>MONTH(DATE(YEAR($V$5),MONTH($V$5),1)- (WEEKDAY(DATE(YEAR($V$5),MONTH($V$5),1),2)-1) +{0;1;2;3;4;5}*7+{1,2,3,4,5,6,7}-1)," ", DATE(YEAR($V$5),MONTH($V$5),1)- (WEEKDAY(DATE(YEAR($V$5),MONTH($V$5),1),2)-1) +{0;1;2;3;4;5}*7+{1,2,3,4,5,6,7}-1) ->  | Z7: =IF(MONTH(DATE(YEAR($V$5),MONTH($V$5),1)) <>MONTH(DATE(YEAR($V$5),MONTH($V$5),1)- (WEEKDAY(DATE(YEAR($V$5),MONTH($V$5),1),2)-1) +{0;1;2;3;4;5}*7+{1,2,3,4,5,6,7}-1)," ", DATE(YEAR($V$5),MONTH($V$5),1)- (WEEKDAY(DATE(YEAR($V$5),MONTH($V$5),1),2)-1) +{0;1;2;3;4;5}*7+{1,2,3,4,5,6,7}-1) ->  | AA7: =IF(MONTH(DATE(YEAR($V$5),MONTH($V$5),1)) <>MONTH(DATE(YEAR($V$5),MONTH($V$5),1)- (WEEKDAY(DATE(YEAR($V$5),MONTH($V$5),1),2)-1) +{0;1;2;3;4;5}*7+{1,2,3,4,5,6,7}-1)," ", DATE(YEAR($V$5),MONTH($V$5),1)- (WEEKDAY(DATE(YEAR($V$5),MONTH($V$5),1),2)-1) +{0;1;2;3;4;5}*7+{1,2,3,4,5,6,7}-1) ->  | AB7: =IF(MONTH(DATE(YEAR($V$5),MONTH($V$5),1)) <>MONTH(DATE(YEAR($V$5),MONTH($V$5),1)- (WEEKDAY(DATE(YEAR($V$5),MONTH($V$5),1),2)-1) +{0;1;2;3;4;5}*7+{1,2,3,4,5,6,7}-1)," ", DATE(YEAR($V$5),MONTH($V$5),1)- (WEEKDAY(DATE(YEAR($V$5),MONTH($V$5),1),2)-1) +{0;1;2;3;4;5}*7+{1,2,3,4,5,6,7}-1) ->  | AC7: =IF(MONTH(DATE(YEAR($V$5),MONTH($V$5),1)) <>MONTH(DATE(YEAR($V$5),MONTH($V$5),1)- (WEEKDAY(DATE(YEAR($V$5),MONTH($V$5),1),2)-1) +{0;1;2;3;4;5}*7+{1,2,3,4,5,6,7}-1)," ", DATE(YEAR($V$5),MONTH($V$5),1)- (WEEKDAY(DATE(YEAR($V$5),MONTH($V$5),1),2)-1) +{0;1;2;3;4;5}*7+{1,2,3,4,5,6,7}-1) -> 
B8: 3 | C8: Костюм мужской летний Инженер | D8: 6100000217 | F8: 2020-02-12 | G8: 12 | H8: 2021-02-12 | I8: =1-IF(ISBLANK($D$3),(TODAY()-мужчины!$F8)/(мужчины!$H8-мужчины!$F8),($D$3-мужчины!$F8)/(мужчины!$H8-мужчины!$F8)) -> 0.2021857923 | J8: =IFERROR(INDEX('Остаток на складе'!$A$6:$E$120,MATCH(Akberov[[#This Row],[Наименование СИЗ]],'Остаток на складе'!$A$6:$A$120,0),5),"НЕТ!") -> 107 | K8: =$J8*Akberov[[#Headers],[20%]] -> 21.4 | L8: 128.4 | M8: 0 | P8: 1.1 | Q8: КАСКА ЗАЩИТНАЯ,СИНЯЯ | S8: ДО ИЗНОСА | V8: =INT((V5+7-WEEKDAY(V5+7,2)-DATE(YEAR(V5+4+7-WEEKDAY(V5+7,2)),1,4))/7)+2 -> 50 | W8: =IF(MONTH(DATE(YEAR($V$5),MONTH($V$5),1)) <>MONTH(DATE(YEAR($V$5),MONTH($V$5),1)- (WEEKDAY(DATE(YEAR($V$5),MONTH($V$5),1),2)-1) +{0;1;2;3;4;5}*7+{1,2,3,4,5,6,7}-1)," ", DATE(YEAR($V$5),MONTH($V$5),1)- (WEEKDAY(DATE(YEAR($V$5),MONTH($V$5),1),2)-1) +{0;1;2;3;4;5}*7+{1,2,3,4,5,6,7}-1) ->  | X8: =IF(MONTH(DATE(YEAR($V$5),MONTH($V$5),1)) <>MONTH(DATE(YEAR($V$5),MONTH($V$5),1)- (WEEKDAY(DATE(YEAR($V$5),MONTH($V$5),1),2)-1) +{0;1;2;3;4;5}*7+{1,2,3,4,5,6,7}-1)," ", DATE(YEAR($V$5),MONTH($V$5),1)- (WEEKDAY(DATE(YEAR($V$5),MONTH($V$5),1),2)-1) +{0;1;2;3;4;5}*7+{1,2,3,4,5,6,7}-1) ->  | Y8: =IF(MONTH(DATE(YEAR($V$5),MONTH($V$5),1)) <>MONTH(DATE(YEAR($V$5),MONTH($V$5),1)- (WEEKDAY(DATE(YEAR($V$5),MONTH($V$5),1),2)-1) +{0;1;2;3;4;5}*7+{1,2,3,4,5,6,7}-1)," ", DATE(YEAR($V$5),MONTH($V$5),1)- (WEEKDAY(DATE(YEAR($V$5),MONTH($V$5),1),2)-1) +{0;1;2;3;4;5}*7+{1,2,3,4,5,6,7}-1) ->  | Z8: =IF(MONTH(DATE(YEAR($V$5),MONTH($V$5),1)) <>MONTH(DATE(YEAR($V$5),MONTH($V$5),1)- (WEEKDAY(DATE(YEAR($V$5),MONTH($V$5),1),2)-1) +{0;1;2;3;4;5}*7+{1,2,3,4,5,6,7}-1)," ", DATE(YEAR($V$5),MONTH($V$5),1)- (WEEKDAY(DATE(YEAR($V$5),MONTH($V$5),1),2)-1) +{0;1;2;3;4;5}*7+{1,2,3,4,5,6,7}-1) ->  | AA8: =IF(MONTH(DATE(YEAR($V$5),MONTH($V$5),1)) <>MONTH(DATE(YEAR($V$5),MONTH($V$5),1)- (WEEKDAY(DATE(YEAR($V$5),MONTH($V$5),1),2)-1) +{0;1;2;3;4;5}*7+{1,2,3,4,5,6,7}-1)," ", DATE(YEAR($V$5),MONTH($V$5),1)- (WEEKDAY(DATE(YEAR($V$5),MONTH($V$5),1),2)-1) +{0;1;2;3;4;5}*7+{1,2,3,4,5,6,7}-1) ->  | AB8: =IF(MONTH(DATE(YEAR($V$5),MONTH($V$5),1)) <>MONTH(DATE(YEAR($V$5),MONTH($V$5),1)- (WEEKDAY(DATE(YEAR($V$5),MONTH($V$5),1),2)-1) +{0;1;2;3;4;5}*7+{1,2,3,4,5,6,7}-1)," ", DATE(YEAR($V$5),MONTH($V$5),1)- (WEEKDAY(DATE(YEAR($V$5),MONTH($V$5),1),2)-1) +{0;1;2;3;4;5}*7+{1,2,3,4,5,6,7}-1) ->  | AC8: =IF(MONTH(DATE(YEAR($V$5),MONTH($V$5),1)) <>MONTH(DATE(YEAR($V$5),MONTH($V$5),1)- (WEEKDAY(DATE(YEAR($V$5),MONTH($V$5),1),2)-1) +{0;1;2;3;4;5}*7+{1,2,3,4,5,6,7}-1)," ", DATE(YEAR($V$5),MONTH($V$5),1)- (WEEKDAY(DATE(YEAR($V$5),MONTH($V$5),1),2)-1) +{0;1;2;3;4;5}*7+{1,2,3,4,5,6,7}-1) -> 
B9: 4 | C9: Полуботинки термостойкие | D9: 6100000225 | F9: 2020-02-12 | G9: 12 | H9: 2021-02-12 | I9: =1-IF(ISBLANK($D$3),(TODAY()-мужчины!$F9)/(мужчины!$H9-мужчины!$F9),($D$3-мужчины!$F9)/(мужчины!$H9-мужчины!$F9)) -> 0.2021857923 | J9: =IFERROR(INDEX('Остаток на складе'!$A$6:$E$120,MATCH(Akberov[[#This Row],[Наименование СИЗ]],'Остаток на складе'!$A$6:$A$120,0),5),"НЕТ!") -> 47 | K9: =$J9*Akberov[[#Headers],[20%]] -> 9.4 | L9: 56.4 | M9: 0 | P9: 1.2 | Q9: ОЧКИ ЗАЩИТНЫЕ ОТКРЫТЫЕ | S9: ДО ИЗНОСА | V9: =INT(($V$5+14-WEEKDAY($V$5+14,2)-DATE(YEAR($V$5+4+14-WEEKDAY($V$5+14,2)),1,4))/7)+2 -> 51 | W9: =IF(MONTH(DATE(YEAR($V$5),MONTH($V$5),1)) <>MONTH(DATE(YEAR($V$5),MONTH($V$5),1)- (WEEKDAY(DATE(YEAR($V$5),MONTH($V$5),1),2)-1) +{0;1;2;3;4;5}*7+{1,2,3,4,5,6,7}-1)," ", DATE(YEAR($V$5),MONTH($V$5),1)- (WEEKDAY(DATE(YEAR($V$5),MONTH($V$5),1),2)-1) +{0;1;2;3;4;5}*7+{1,2,3,4,5,6,7}-1) ->  | X9: =IF(MONTH(DATE(YEAR($V$5),MONTH($V$5),1)) <>MONTH(DATE(YEAR($V$5),MONTH($V$5),1)- (WEEKDAY(DATE(YEAR($V$5),MONTH($V$5),1),2)-1) +{0;1;2;3;4;5}*7+{1,2,3,4,5,6,7}-1)," ", DATE(YEAR($V$5),MONTH($V$5),1)- (WEEKDAY(DATE(YEAR($V$5),MONTH($V$5),1),2)-1) +{0;1;2;3;4;5}*7+{1,2,3,4,5,6,7}-1) ->  | Y9: =IF(MONTH(DATE(YEAR($V$5),MONTH($V$5),1)) <>MONTH(DATE(YEAR($V$5),MONTH($V$5),1)- (WEEKDAY(DATE(YEAR($V$5),MONTH($V$5),1),2)-1) +{0;1;2;3;4;5}*7+{1,2,3,4,5,6,7}-1)," ", DATE(YEAR($V$5),MONTH($V$5),1)- (WEEKDAY(DATE(YEAR($V$5),MONTH($V$5),1),2)-1) +{0;1;2;3;4;5}*7+{1,2,3,4,5,6,7}-1) ->  | Z9: =IF(MONTH(DATE(YEAR($V$5),MONTH($V$5),1)) <>MONTH(DATE(YEAR($V$5),MONTH($V$5),1)- (WEEKDAY(DATE(YEAR($V$5),MONTH($V$5),1),2)-1) +{0;1;2;3;4;5}*7+{1,2,3,4,5,6,7}-1)," ", DATE(YEAR($V$5),MONTH($V$5),1)- (WEEKDAY(DATE(YEAR($V$5),MONTH($V$5),1),2)-1) +{0;1;2;3;4;5}*7+{1,2,3,4,5,6,7}-1) ->  | AA9: =IF(MONTH(DATE(YEAR($V$5),MONTH($V$5),1)) <>MONTH(DATE(YEAR($V$5),MONTH($V$5),1)- (WEEKDAY(DATE(YEAR($V$5),MONTH($V$5),1),2)-1) +{0;1;2;3;4;5}*7+{1,2,3,4,5,6,7}-1)," ", DATE(YEAR($V$5),MONTH($V$5),1)- (WEEKDAY(DATE(YEAR($V$5),MONTH($V$5),1),2)-1) +{0;1;2;3;4;5}*7+{1,2,3,4,5,6,7}-1) ->  | AB9: =IF(MONTH(DATE(YEAR($V$5),MONTH($V$5),1)) <>MONTH(DATE(YEAR($V$5),MONTH($V$5),1)- (WEEKDAY(DATE(YEAR($V$5),MONTH($V$5),1),2)-1) +{0;1;2;3;4;5}*7+{1,2,3,4,5,6,7}-1)," ", DATE(YEAR($V$5),MONTH($V$5),1)- (WEEKDAY(DATE(YEAR($V$5),MONTH($V$5),1),2)-1) +{0;1;2;3;4;5}*7+{1,2,3,4,5,6,7}-1) ->  | AC9: =IF(MONTH(DATE(YEAR($V$5),MONTH($V$5),1)) <>MONTH(DATE(YEAR($V$5),MONTH($V$5),1)- (WEEKDAY(DATE(YEAR($V$5),MONTH($V$5),1),2)-1) +{0;1;2;3;4;5}*7+{1,2,3,4,5,6,7}-1)," ", DATE(YEAR($V$5),MONTH($V$5),1)- (WEEKDAY(DATE(YEAR($V$5),MONTH($V$5),1),2)-1) +{0;1;2;3;4;5}*7+{1,2,3,4,5,6,7}-1) -> 
B10: 5 | C10: Футболка СПОРТ-Д Код по каталогу 101-0032-01 | D10: 6100000220 | F10: 2020-02-12 | G10: 12 | H10: 2021-02-12 | I10: =1-IF(ISBLANK($D$3),(TODAY()-мужчины!$F10)/(мужчины!$H10-мужчины!$F10),($D$3-мужчины!$F10)/(мужчины!$H10-мужчины!$F10)) -> 0.2021857923 | J10: =IFERROR(INDEX('Остаток на складе'!$A$6:$E$120,MATCH(Akberov[[#This Row],[Наименование СИЗ]],'Остаток на складе'!$A$6:$A$120,0),5),"НЕТ!") -> 139 | K10: =$J10*Akberov[[#Headers],[20%]] -> 27.8 | L10: 166.8 | M10: 0 | P10: 1.3 | Q10: ОЧКИ ЗАЩИТНЫЕ С НЕПРЯМОЙ ВЕНТИЛЯЦИЕЙ ЗАКРЫТОГО ТИПА | S10: ДО ИЗНОСА | V10: =INT(($V$5+21-WEEKDAY($V$5+21,2)-DATE(YEAR($V$5+4+21-WEEKDAY($V$5+21,2)),1,4))/7)+2 -> 52 | W10: =IF(MONTH(DATE(YEAR($V$5),MONTH($V$5),1)) <>MONTH(DATE(YEAR($V$5),MONTH($V$5),1)- (WEEKDAY(DATE(YEAR($V$5),MONTH($V$5),1),2)-1) +{0;1;2;3;4;5}*7+{1,2,3,4,5,6,7}-1)," ", DATE(YEAR($V$5),MONTH($V$5),1)- (WEEKDAY(DATE(YEAR($V$5),MONTH($V$5),1),2)-1) +{0;1;2;3;4;5}*7+{1,2,3,4,5,6,7}-1) ->  | X10: =IF(MONTH(DATE(YEAR($V$5),MONTH($V$5),1)) <>MONTH(DATE(YEAR($V$5),MONTH($V$5),1)- (WEEKDAY(DATE(YEAR($V$5),MONTH($V$5),1),2)-1) +{0;1;2;3;4;5}*7+{1,2,3,4,5,6,7}-1)," ", DATE(YEAR($V$5),MONTH($V$5),1)- (WEEKDAY(DATE(YEAR($V$5),MONTH($V$5),1),2)-1) +{0;1;2;3;4;5}*7+{1,2,3,4,5,6,7}-1) ->  | Y10: =IF(MONTH(DATE(YEAR($V$5),MONTH($V$5),1)) <>MONTH(DATE(YEAR($V$5),MONTH($V$5),1)- (WEEKDAY(DATE(YEAR($V$5),MONTH($V$5),1),2)-1) +{0;1;2;3;4;5}*7+{1,2,3,4,5,6,7}-1)," ", DATE(YEAR($V$5),MONTH($V$5),1)- (WEEKDAY(DATE(YEAR($V$5),MONTH($V$5),1),2)-1) +{0;1;2;3;4;5}*7+{1,2,3,4,5,6,7}-1) ->  | Z10: =IF(MONTH(DATE(YEAR($V$5),MONTH($V$5),1)) <>MONTH(DATE(YEAR($V$5),MONTH($V$5),1)- (WEEKDAY(DATE(YEAR($V$5),MONTH($V$5),1),2)-1) +{0;1;2;3;4;5}*7+{1,2,3,4,5,6,7}-1)," ", DATE(YEAR($V$5),MONTH($V$5),1)- (WEEKDAY(DATE(YEAR($V$5),MONTH($V$5),1),2)-1) +{0;1;2;3;4;5}*7+{1,2,3,4,5,6,7}-1) ->  | AA10: =IF(MONTH(DATE(YEAR($V$5),MONTH($V$5),1)) <>MONTH(DATE(YEAR($V$5),MONTH($V$5),1)- (WEEKDAY(DATE(YEAR($V$5),MONTH($V$5),1),2)-1) +{0;1;2;3;4;5}*7+{1,2,3,4,5,6,7}-1)," ", DATE(YEAR($V$5),MONTH($V$5),1)- (WEEKDAY(DATE(YEAR($V$5),MONTH($V$5),1),2)-1) +{0;1;2;3;4;5}*7+{1,2,3,4,5,6,7}-1) ->  | AB10: =IF(MONTH(DATE(YEAR($V$5),MONTH($V$5),1)) <>MONTH(DATE(YEAR($V$5),MONTH($V$5),1)- (WEEKDAY(DATE(YEAR($V$5),MONTH($V$5),1),2)-1) +{0;1;2;3;4;5}*7+{1,2,3,4,5,6,7}-1)," ", DATE(YEAR($V$5),MONTH($V$5),1)- (WEEKDAY(DATE(YEAR($V$5),MONTH($V$5),1),2)-1) +{0;1;2;3;4;5}*7+{1,2,3,4,5,6,7}-1) ->  | AC10: =IF(MONTH(DATE(YEAR($V$5),MONTH($V$5),1)) <>MONTH(DATE(YEAR($V$5),MONTH($V$5),1)- (WEEKDAY(DATE(YEAR($V$5),MONTH($V$5),1),2)-1) +{0;1;2;3;4;5}*7+{1,2,3,4,5,6,7}-1)," ", DATE(YEAR($V$5),MONTH($V$5),1)- (WEEKDAY(DATE(YEAR($V$5),MONTH($V$5),1),2)-1) +{0;1;2;3;4;5}*7+{1,2,3,4,5,6,7}-1) -> 
B11: 6 | C11: Куртка утеплённая CERVA Аллин | D11: 6100000222 | F11: 2017-11-30 | G11: 36 | H11: =F11+G11*30.45 -> 2020-11-30T04:48:00 | I11: =1-IF(ISBLANK($D$3),(TODAY()-мужчины!$F11)/(мужчины!$H11-мужчины!$F11),($D$3-мужчины!$F11)/(мужчины!$H11-мужчины!$F11)) -> 0.0001824484583 | J11: =IFERROR(INDEX('Остаток на складе'!$A$6:$E$120,MATCH(Akberov[[#This Row],[Наименование СИЗ]],'Остаток на складе'!$A$6:$A$120,0),5),"НЕТ!") -> 38 | K11: =$J11*Akberov[[#Headers],[20%]] -> 7.6 | L11: 45.6 | M11: 0 | P11: 1.4 | Q11: ОЧКИ ЗАТЕМНЕННЫЕ | S11: ДО ИЗНОСА | U11: Российский | V11: =INT(($V$5+28-WEEKDAY($V$5+28,2)-DATE(YEAR($V$5+4+28-WEEKDAY($V$5+28,2)),1,4))/7)+2 -> 53 | W11: =IF(MONTH(DATE(YEAR($V$5),MONTH($V$5),1)) <>MONTH(DATE(YEAR($V$5),MONTH($V$5),1)- (WEEKDAY(DATE(YEAR($V$5),MONTH($V$5),1),2)-1) +{0;1;2;3;4;5}*7+{1,2,3,4,5,6,7}-1)," ", DATE(YEAR($V$5),MONTH($V$5),1)- (WEEKDAY(DATE(YEAR($V$5),MONTH($V$5),1),2)-1) +{0;1;2;3;4;5}*7+{1,2,3,4,5,6,7}-1) ->  | X11: =IF(MONTH(DATE(YEAR($V$5),MONTH($V$5),1)) <>MONTH(DATE(YEAR($V$5),MONTH($V$5),1)- (WEEKDAY(DATE(YEAR($V$5),MONTH($V$5),1),2)-1) +{0;1;2;3;4;5}*7+{1,2,3,4,5,6,7}-1)," ", DATE(YEAR($V$5),MONTH($V$5),1)- (WEEKDAY(DATE(YEAR($V$5),MONTH($V$5),1),2)-1) +{0;1;2;3;4;5}*7+{1,2,3,4,5,6,7}-1) ->  | Y11: =IF(MONTH(DATE(YEAR($V$5),MONTH($V$5),1)) <>MONTH(DATE(YEAR($V$5),MONTH($V$5),1)- (WEEKDAY(DATE(YEAR($V$5),MONTH($V$5),1),2)-1) +{0;1;2;3;4;5}*7+{1,2,3,4,5,6,7}-1)," ", DATE(YEAR($V$5),MONTH($V$5),1)- (WEEKDAY(DATE(YEAR($V$5),MONTH($V$5),1),2)-1) +{0;1;2;3;4;5}*7+{1,2,3,4,5,6,7}-1) ->  | Z11: =IF(MONTH(DATE(YEAR($V$5),MONTH($V$5),1)) <>MONTH(DATE(YEAR($V$5),MONTH($V$5),1)- (WEEKDAY(DATE(YEAR($V$5),MONTH($V$5),1),2)-1) +{0;1;2;3;4;5}*7+{1,2,3,4,5,6,7}-1)," ", DATE(YEAR($V$5),MONTH($V$5),1)- (WEEKDAY(DATE(YEAR($V$5),MONTH($V$5),1),2)-1) +{0;1;2;3;4;5}*7+{1,2,3,4,5,6,7}-1) ->  | AA11: =IF(MONTH(DATE(YEAR($V$5),MONTH($V$5),1)) <>MONTH(DATE(YEAR($V$5),MONTH($V$5),1)- (WEEKDAY(DATE(YEAR($V$5),MONTH($V$5),1),2)-1) +{0;1;2;3;4;5}*7+{1,2,3,4,5,6,7}-1)," ", DATE(YEAR($V$5),MONTH($V$5),1)- (WEEKDAY(DATE(YEAR($V$5),MONTH($V$5),1),2)-1) +{0;1;2;3;4;5}*7+{1,2,3,4,5,6,7}-1) ->  | AB11: =IF(MONTH(DATE(YEAR($V$5),MONTH($V$5),1)) <>MONTH(DATE(YEAR($V$5),MONTH($V$5),1)- (WEEKDAY(DATE(YEAR($V$5),MONTH($V$5),1),2)-1) +{0;1;2;3;4;5}*7+{1,2,3,4,5,6,7}-1)," ", DATE(YEAR($V$5),MONTH($V$5),1)- (WEEKDAY(DATE(YEAR($V$5),MONTH($V$5),1),2)-1) +{0;1;2;3;4;5}*7+{1,2,3,4,5,6,7}-1) ->  | AC11: =IF(MONTH(DATE(YEAR($V$5),MONTH($V$5),1)) <>MONTH(DATE(YEAR($V$5),MONTH($V$5),1)- (WEEKDAY(DATE(YEAR($V$5),MONTH($V$5),1),2)-1) +{0;1;2;3;4;5}*7+{1,2,3,4,5,6,7}-1)," ", DATE(YEAR($V$5),MONTH($V$5),1)- (WEEKDAY(DATE(YEAR($V$5),MONTH($V$5),1),2)-1) +{0;1;2;3;4;5}*7+{1,2,3,4,5,6,7}-1) -> 
B12: 7 | C12: Очки открытые защитные СКАЙПЕР | D12: 6100000208 | F12: 2020-08-14 | G12: 3 | H12: =F12+G12*30.5 -> 2020-11-13T12:00:00 | I12: =1-IF(ISBLANK($D$3),(TODAY()-мужчины!$F12)/(мужчины!$H12-мужчины!$F12),($D$3-мужчины!$F12)/(мужчины!$H12-мужчины!$F12)) -> -0.1803278689 | J12: =IFERROR(INDEX('Остаток на складе'!$A$6:$E$120,MATCH(Akberov[[#This Row],[Наименование СИЗ]],'Остаток на складе'!$A$6:$A$120,0),5),"НЕТ!") -> 254 | K12: =$J12*Akberov[[#Headers],[20%]] -> 50.8 | L12: 304.8 | M12: 0 | P12: 1.5 | Q12: КОСТЮМ ЗАЩИТНЫЙ ЛЕТНИЙ | S12: 1 КОМП. НА ГОД | U12: размер | V12: =INT(($V$5+35-WEEKDAY($V$5+35,2)-DATE(YEAR($V$5+4+35-WEEKDAY($V$5+35,2)),1,4))/7)+2 -> 1 | W12: =IF(MONTH(DATE(YEAR($V$5),MONTH($V$5),1)) <>MONTH(DATE(YEAR($V$5),MONTH($V$5),1)- (WEEKDAY(DATE(YEAR($V$5),MONTH($V$5),1),2)-1) +{0;1;2;3;4;5}*7+{1,2,3,4,5,6,7}-1)," ", DATE(YEAR($V$5),MONTH($V$5),1)- (WEEKDAY(DATE(YEAR($V$5),MONTH($V$5),1),2)-1) +{0;1;2;3;4;5}*7+{1,2,3,4,5,6,7}-1) ->  | X12: =IF(MONTH(DATE(YEAR($V$5),MONTH($V$5),1)) <>MONTH(DATE(YEAR($V$5),MONTH($V$5),1)- (WEEKDAY(DATE(YEAR($V$5),MONTH($V$5),1),2)-1) +{0;1;2;3;4;5}*7+{1,2,3,4,5,6,7}-1)," ", DATE(YEAR($V$5),MONTH($V$5),1)- (WEEKDAY(DATE(YEAR($V$5),MONTH($V$5),1),2)-1) +{0;1;2;3;4;5}*7+{1,2,3,4,5,6,7}-1) ->  | Y12: =IF(MONTH(DATE(YEAR($V$5),MONTH($V$5),1)) <>MONTH(DATE(YEAR($V$5),MONTH($V$5),1)- (WEEKDAY(DATE(YEAR($V$5),MONTH($V$5),1),2)-1) +{0;1;2;3;4;5}*7+{1,2,3,4,5,6,7}-1)," ", DATE(YEAR($V$5),MONTH($V$5),1)- (WEEKDAY(DATE(YEAR($V$5),MONTH($V$5),1),2)-1) +{0;1;2;3;4;5}*7+{1,2,3,4,5,6,7}-1) ->  | Z12: =IF(MONTH(DATE(YEAR($V$5),MONTH($V$5),1)) <>MONTH(DATE(YEAR($V$5),MONTH($V$5),1)- (WEEKDAY(DATE(YEAR($V$5),MONTH($V$5),1),2)-1) +{0;1;2;3;4;5}*7+{1,2,3,4,5,6,7}-1)," ", DATE(YEAR($V$5),MONTH($V$5),1)- (WEEKDAY(DATE(YEAR($V$5),MONTH($V$5),1),2)-1) +{0;1;2;3;4;5}*7+{1,2,3,4,5,6,7}-1) ->  | AA12: =IF(MONTH(DATE(YEAR($V$5),MONTH($V$5),1)) <>MONTH(DATE(YEAR($V$5),MONTH($V$5),1)- (WEEKDAY(DATE(YEAR($V$5),MONTH($V$5),1),2)-1) +{0;1;2;3;4;5}*7+{1,2,3,4,5,6,7}-1)," ", DATE(YEAR($V$5),MONTH($V$5),1)- (WEEKDAY(DATE(YEAR($V$5),MONTH($V$5),1),2)-1) +{0;1;2;3;4;5}*7+{1,2,3,4,5,6,7}-1) ->  | AB12: =IF(MONTH(DATE(YEAR($V$5),MONTH($V$5),1)) <>MONTH(DATE(YEAR($V$5),MONTH($V$5),1)- (WEEKDAY(DATE(YEAR($V$5),MONTH($V$5),1),2)-1) +{0;1;2;3;4;5}*7+{1,2,3,4,5,6,7}-1)," ", DATE(YEAR($V$5),MONTH($V$5),1)- (WEEKDAY(DATE(YEAR($V$5),MONTH($V$5),1),2)-1) +{0;1;2;3;4;5}*7+{1,2,3,4,5,6,7}-1) ->  | AC12: =IF(MONTH(DATE(YEAR($V$5),MONTH($V$5),1)) <>MONTH(DATE(YEAR($V$5),MONTH($V$5),1)- (WEEKDAY(DATE(YEAR($V$5),MONTH($V$5),1),2)-1) +{0;1;2;3;4;5}*7+{1,2,3,4,5,6,7}-1)," ", DATE(YEAR($V$5),MONTH($V$5),1)- (WEEKDAY(DATE(YEAR($V$5),MONTH($V$5),1),2)-1) +{0;1;2;3;4;5}*7+{1,2,3,4,5,6,7}-1) -> 
B13: 8 | C13: Каска - цвет синий | D13: 6100000203 | F13: 2018-10-09 | G13: 48 | H13: 2022-10-12 | I13: =1-IF(ISBLANK($D$3),(TODAY()-мужчины!$F13)/(мужчины!$H13-мужчины!$F13),($D$3-мужчины!$F13)/(мужчины!$H13-мужчины!$F13)) -> 0.4651639344 | J13: =IFERROR(INDEX('Остаток на складе'!$A$6:$E$120,MATCH(Akberov[[#This Row],[Наименование СИЗ]],'Остаток на складе'!$A$6:$A$120,0),5),"НЕТ!") -> 28 | K13: =$J13*мужчины!$K$20 -> 5.6 | L13: 33.6 | M13: 0 | P13: 1.6 | Q13: ФУТБОЛКА С КОРОТКИМ РУКАВОМ | S13: 2 ШТ В ГОД | U13: 44 | V13: XXS
B14: 9 | C14: подшлемник | D14: 6100000167 | F14: 2018-11-09 | G14: 24 | H14: 2020-11-10 | I14: =1-IF(ISBLANK($D$3),(TODAY()-мужчины!$F14)/(мужчины!$H14-мужчины!$F14),($D$3-мужчины!$F14)/(мужчины!$H14-мужчины!$F14)) -> -0.02732240437 | J14: =IFERROR(INDEX('Остаток на складе'!$A$6:$E$120,MATCH(Akberov[[#This Row],[Наименование СИЗ]],'Остаток на складе'!$A$6:$A$120,0),5),"НЕТ!") -> 158 | K14: =$J14*Akberov[[#Headers],[20%]] -> 31.6 | L14: 189.6 | M14: 0 | P14: 1.7 | Q14: ФУТБОЛКА С ДЛИНЫМ РУКАВОМ | S14: 1 ШТ В ГОД | U14: 46 | V14: XS | W14: =TODAY() -> 2020-11-30
B15: ИТОГО: | L15: =SUMIF(L8:L14,"<500000",L8:L14) -> 925.2 | P15: 1.8 | Q15: ПРОТИВОШУМНЫЕ ВКЛАДЫШИ МНОГОКРАТНОГО ИСПОЛЬЗОВАНИЯ | S15: ДО ИЗНОСА | U15: 48 | V15: S | W15: неделя | X15: пн | Y15: вт | Z15: ср | AA15: чт | AB15: пт | AC15: сб | AD15: вс
P16: 1.9 | Q16: СРЕДСТВА ИНДИВИДУАЛЬНОЙ ЗАЩИТЫ ОРГАНОВ ДЫХАНИЯ,ФИЛЬТРУЮЩИЕ | S16: ДО ИЗНОСА | U16: 50 | V16: M | W16: =INT(($W$14-WEEKDAY($W$14,2)-DATE(YEAR($W$14+4-WEEKDAY($W$14,2)),1,4))/7)+2 -> 49 | X16: =IF(MONTH(DATE(YEAR(W14),MONTH(W14),1)) <>MONTH(DATE(YEAR(W14),MONTH(W14),1)- (WEEKDAY(DATE(YEAR(W14),MONTH(W14),1),2)-1) +{0;1;2;3;4;5}*7+{1,2,3,4,5,6,7}-1)," ", DATE(YEAR(W14),MONTH(W14),1)- (WEEKDAY(DATE(YEAR(W14),MONTH(W14),1),2)-1) +{0;1;2;3;4;5}*7+{1,2,3,4,5,6,7}-1) ->  | AD16: 2020-11-01
A17: 2 | B17: ФИО | G17: ДОЛЖНОСТЬ | P17: 1.10 | Q17: ПОЛУБОТИНКИ ЛЕТНИЕ ЗАЩИТНЫЕ | S17: 1 ПАРА В ГОД | U17: 52 | V17: L | W17: =INT(($W$14+7-WEEKDAY($W$14+7,2)-DATE(YEAR($W$14+4+7-WEEKDAY($W$14+7,2)),1,4))/7)+2 -> 50 | X17: 2020-11-02 | Y17: 2020-11-03 | Z17: 2020-11-04 | AA17: 2020-11-05 | AB17: 2020-11-06 | AC17: 2020-11-07 | AD17: 2020-11-08
B18: дата увольнения | G18: рост | H18: 175 | I18: одежда | J18: 50(M) | K18: обувь | L18: 41-42 | P18: 1.11 | Q18: КУРТКА УТЕПЛЕННАЯ | S18: 1 ШТ НА 3 ГОДА | U18: 54 | V18: XL | W18: =INT(($W$14+14-WEEKDAY($W$14+14,2)-DATE(YEAR($W$14+14+4-WEEKDAY($W$14+14,2)),1,4))/7)+2 -> 51 | X18: 2020-11-09 | Y18: 2020-11-10 | Z18: 2020-11-11 | AA18: 2020-11-12 | AB18: 2020-11-13 | AC18: 2020-11-14 | AD18: 2020-11-15
P19: 1.12 | Q19: ПОДШЛЕМНИК | S19: 1 ШТ НА 2 ГОДА | U19: 56 | V19: XXL | W19: =INT(($W$14+21-WEEKDAY($W$14+21,2)-DATE(YEAR($W$14+21+4-WEEKDAY($W$14+218,2)),1,4))/7)+2 -> 52 | X19: 2020-11-16 | Y19: 2020-11-17 | Z19: 2020-11-18 | AA19: 2020-11-19 | AB19: 2020-11-20 | AC19: 2020-11-21 | AD19: 2020-11-22
B20: № п/п | C20: Наименование СИЗ | D20: н/н | E20: цена | F20: дата выдачи | G20: срок носки, мес | H20: дата списания | I20: износ | J20: остаток на складе | K20: 20% | L20: Итого с НДС | M20: Закупка | U20: 58 | V20: XXXL | W20: =INT(($W$14+28-WEEKDAY($W$14+28,2)-DATE(YEAR($W$14+28+4-WEEKDAY($W$14+28,2)),1,4))/7)+2 -> 53 | X20: 2020-11-23 | Y20: 2020-11-24 | Z20: 2020-11-25 | AA20: 2020-11-26 | AB20: 2020-11-27 | AC20: 2020-11-28 | AD20: 2020-11-29
B21: 1 | C21: Футболка СПОРТ-К трикотажная оранжевого цвета | D21: 6100000219 | F21: 2020-06-11 | G21: 6 | H21: =F21+G21*30.5 -> 2020-12-11 | I21: =1-IF(ISBLANK($D$3),(TODAY()-мужчины!$F21)/(мужчины!$H21-мужчины!$F21),($D$3-мужчины!$F21)/(мужчины!$H21-мужчины!$F21)) -> 0.06010928962 | J21: =IFERROR(INDEX('Остаток на складе'!$A$6:$E$120,MATCH(Shagidaev[[#This Row],[Наименование СИЗ]],'Остаток на складе'!$A$6:$A$120,0),5),"НЕТ!") -> 206 | K21: =$J21*мужчины!$K$20 -> 41.2 | L21: =J21+K21 -> 247.2 | M21: =IF(L21<0,"1","0") -> 0 | P21: ВОДИТЕЛЬ ПОГРУЗЧИКА,ЗАНЯТЫЙ НА УЧАСТКЕ ПРИГОТОВЛЕНИЯ ШИХТЫ ОПЕРАТОР УПШ | U21: 60 | V21: XXXL | W21: =INT(($W$14+35-WEEKDAY($W$14+35,2)-DATE(YEAR($W$14+35+4-WEEKDAY($W$14+35,2)),1,4))/7)+2 -> 1 | X21: 2020-11-30
B22: 2 | C22: Очки с непрямой вентиляцией закрытые УЛЬТРАВИЖИН | D22: 6100000177 | F22: 2020-06-17 | G22: 3 | H22: =F22+G22*30.5 -> 2020-09-16T12:00:00 | I22: =1-IF(ISBLANK($D$3),(TODAY()-мужчины!$F22)/(мужчины!$H22-мужчины!$F22),($D$3-мужчины!$F22)/(мужчины!$H22-мужчины!$F22)) -> -0.8142076503 | J22: =IFERROR(INDEX('Остаток на складе'!$A$6:$E$120,MATCH(Shagidaev[[#This Row],[Наименование СИЗ]],'Остаток на складе'!$A$6:$A$120,0),5),"НЕТ!") -> 35 | K22: =$J22*мужчины!$K$20 -> 7 | L22: 42 | M22: 0 | O22: 2 | P22: 2.1 | Q22: КАСКА ЗАЩИТНАЯ,СИНЯЯ | S22: 1 ШТ НА 2 ГОДА | U22: 62 | V22: XXXL
B23: 3 | C23: Костюм мужской летний Инженер | D23: 6100000217 | F23: 2020-01-15 | G23: 12 | H23: 2021-01-15 | I23: =1-IF(ISBLANK($D$3),(TODAY()-мужчины!$F23)/(мужчины!$H23-мужчины!$F23),($D$3-мужчины!$F23)/(мужчины!$H23-мужчины!$F23)) -> 0.1256830601 | J23: =IFERROR(INDEX('Остаток на складе'!$A$6:$E$120,MATCH(Shagidaev[[#This Row],[Наименование СИЗ]],'Остаток на складе'!$A$6:$A$120,0),5),"НЕТ!") -> 107 | K23: =$J23*мужчины!$K$20 -> 21.4 | L23: 128.4 | M23: =IF(L23<0,"1","0") -> 0 | P23: 2.2 | Q23: ОЧКИ ЗАЩИТНЫЕ ОТКРЫТЫЕ | S23: 4 ШТ НА ГОД | U23: 64 | V23: 4XL
B24: 4 | C24: Термостойкие перчатки 500C | D24: 6100000165 | F24: 2020-08-06 | G24: 6 | H24: 2021-02-05 | I24: =1-IF(ISBLANK($D$3),(TODAY()-мужчины!$F24)/(мужчины!$H24-мужчины!$F24),($D$3-мужчины!$F24)/(мужчины!$H24-мужчины!$F24)) -> 0.3661202186 | J24: =IFERROR(INDEX('Остаток на складе'!$A$6:$E$120,MATCH(Shagidaev[[#This Row],[Наименование СИЗ]],'Остаток на складе'!$A$6:$A$120,0),5),"НЕТ!") -> 21 | K24: =$J24*мужчины!$K$20 -> 4.2 | L24: 25.2 | M24: 0 | P24: 2.3 | Q24: НАУШНИКИ ПРОТИВОШУМНЫЕ С КРЕПЛЕНИЕМ НА КАСКУ ИЛИ ПРОТИВОШУМНЫЕ ВКЛАДЫШИ МНОГОКРАТНОГО ИСПОЛЬЗОВАНИЯ | S24: ДО ИЗНОСА | U24: 66 | V24: 4XL
B25: 5 | C25: Полуботинки термостойкие | D25: 6100000225 | F25: 2020-06-11 | G25: 12 | H25: 2021-06-12 | I25: =1-IF(ISBLANK($D$3),(TODAY()-мужчины!$F25)/(мужчины!$H25-мужчины!$F25),($D$3-мужчины!$F25)/(мужчины!$H25-мужчины!$F25)) -> 0.5300546448 | J25: =IFERROR(INDEX('Остаток на складе'!$A$6:$E$120,MATCH(Shagidaev[[#This Row],[Наименование СИЗ]],'Остаток на складе'!$A$6:$A$120,0),5),"НЕТ!") -> 47 | K25: =$J25*мужчины!$K$20 -> 9.4 | L25: 56.4 | M25: 0 | P25: 2.4 | Q25: КОСТЮМ ЗАЩИТНЫЙ ЛЕТНИЙ | S25: 1 КОМП. НА ГОД | U25: 68 | V25: 5XL
B26: 6 | C26: Футболка СПОРТ-Д Код по каталогу 101-0032-01 | D26: 6100000220 | F26: 2020-06-11 | G26: 6 | H26: 2020-12-11 | I26: =1-IF(ISBLANK($D$3),(TODAY()-мужчины!$F26)/(мужчины!$H26-мужчины!$F26),($D$3-мужчины!$F26)/(мужчины!$H26-мужчины!$F26)) -> 0.06010928962 | J26: =IFERROR(INDEX('Остаток на складе'!$A$6:$E$120,MATCH(Shagidaev[[#This Row],[Наименование СИЗ]],'Остаток на складе'!$A$6:$A$120,0),5),"НЕТ!") -> 139 | K26: =$J26*мужчины!$K$20 -> 27.8 | L26: 166.8 | M26: 0 | P26: 2.5 | Q26: ФУТБОЛКА С КОРОТКИМ РУКАВОМ | S26: 2 ШТ В ГОД | U26: 70 | V26: 5XL
B27: 7 | C27: Нарукавник кевларовый | D27: 6100000173 | F27: 2020-08-06 | G27: 6 | H27: 2021-02-05 | I27: =1-IF(ISBLANK($D$3),(TODAY()-мужчины!$F27)/(мужчины!$H27-мужчины!$F27),($D$3-мужчины!$F27)/(мужчины!$H27-мужчины!$F27)) -> 0.3661202186 | J27: =IFERROR(INDEX('Остаток на складе'!$A$6:$E$120,MATCH(Shagidaev[[#This Row],[Наименование СИЗ]],'Остаток на складе'!$A$6:$A$120,0),5),"НЕТ!") -> 143 | K27: =$J27*мужчины!$K$20 -> 28.6 | L27: 171.6 | M27: 0 | P27: 2.6 | Q27: ФУТБОЛКА С ДЛИНЫМ РУКАВОМ | S27: 2 ШТ В ГОД
B28: 8 | C28: Термостойкие перчатки 100 С | D28: 6100000169 | F28: 2020-08-06 | G28: 6 | H28: 2021-02-05 | I28: =1-IF(ISBLANK($D$3),(TODAY()-мужчины!$F28)/(мужчины!$H28-мужчины!$F28),($D$3-мужчины!$F28)/(мужчины!$H28-мужчины!$F28)) -> 0.3661202186 | J28: =IFERROR(INDEX('Остаток на складе'!$A$6:$E$120,MATCH(Shagidaev[[#This Row],[Наименование СИЗ]],'Остаток на складе'!$A$6:$A$120,0),5),"НЕТ!") -> 58 | K28: =$J28*мужчины!$K$20 -> 11.6 | L28: =J28+K28 -> 69.6 | M28: 0 | P28: 2.7 | Q28: СРЕДСТВА ИНДИВИДУАЛЬНОЙ ЗАЩИТЫ ОРГАНОВ ДЫХАНИЯ,ФИЛЬТРУЮЩИЕ | S28: ДО ИЗНОСА
B29: 9 | C29: Термостойкий шлем (Маска) | D29: 6100000167 | F29: 2020-08-06 | G29: 6 | H29: 2021-02-05 | I29: =1-IF(ISBLANK($D$3),(TODAY()-мужчины!$F29)/(мужчины!$H29-мужчины!$F29),($D$3-мужчины!$F29)/(мужчины!$H29-мужчины!$F29)) -> 0.3661202186 | J29: =IFERROR(INDEX('Остаток на складе'!$A$6:$E$120,MATCH(Shagidaev[[#This Row],[Наименование СИЗ]],'Остаток на складе'!$A$6:$A$120,0),5),"НЕТ!") -> 18 | K29: =$J29*мужчины!$K$20 -> 3.6 | L29: =J29+K29 -> 21.6 | M29: 0 | P29: 2.8 | Q29: ПОЛУБОТИНКИ ЛЕТНИЕ ЗАЩИТНЫЕ | S29: 1 ПАРА В ГОД
B30: 10 | C30: Куртка утеплённая CERVA Аллин | D30: 6100000222 | F30: 2018-12-27 | G30: 36 | H30: 2021-12-29 | I30: =1-IF(ISBLANK($D$3),(TODAY()-мужчины!$F30)/(мужчины!$H30-мужчины!$F30),($D$3-мужчины!$F30)/(мужчины!$H30-мужчины!$F30)) -> 0.3588342441 | J30: =IFERROR(INDEX('Остаток на складе'!$A$6:$E$120,MATCH(Shagidaev[[#This Row],[Наименование СИЗ]],'Остаток на складе'!$A$6:$A$120,0),5),"НЕТ!") -> 38 | K30: =$J30*мужчины!$K$20 -> 7.6 | L30: 45.6 | M30: 0 | P30: 2.9 | Q30: ПОДШЛЕМНИК | S30: 1 ШТ НА 2 ГОДА
B31: 11 | C31: Очки открытые защитные СКАЙПЕР | D31: 6100000208 | F31: 2020-06-17 | G31: 3 | H31: 2020-09-16T12:00:00 | I31: =1-IF(ISBLANK($D$3),(TODAY()-мужчины!$F31)/(мужчины!$H31-мужчины!$F31),($D$3-мужчины!$F31)/(мужчины!$H31-мужчины!$F31)) -> -0.8142076503 | J31: =IFERROR(INDEX('Остаток на складе'!$A$6:$E$120,MATCH(Shagidaev[[#This Row],[Наименование СИЗ]],'Остаток на складе'!$A$6:$A$120,0),5),"НЕТ!") -> 254 | K31: =$J31*мужчины!$K$20 -> 50.8 | L31: 304.8 | M31: 0 | P31: 2.10 | Q31: БОТИНКИ ЗИМНИЕ ЗАЩИТНЫЕ | S31: 1 ПАРА НА 2 ГОДА
B32: 12 | C32: Каска - цвет синий | D32: 6100000203 | F32: 2020-06-17 | G32: 24 | H32: 2022-06-19 | I32: =1-IF(ISBLANK($D$3),(TODAY()-мужчины!$F32)/(мужчины!$H32-мужчины!$F32),($D$3-мужчины!$F32)/(мужчины!$H32-мужчины!$F32)) -> 0.7732240437 | J32: =IFERROR(INDEX('Остаток на складе'!$A$6:$E$120,MATCH(Shagidaev[[#This Row],[Наименование СИЗ]],'Остаток на складе'!$A$6:$A$120,0),5),"НЕТ!") -> 28 | K32: =$J32*мужчины!$K$20 -> 5.6 | L32: 33.6 | M32: 0 | P32: 2.11 | Q32: КОСТЮМ ЗАЩИТНЫЙ ЗИМНИЙ | S32: 1 ШТ НА 2 ГОДА
B33: 13 | C33: Подшлемник | F33: 2018-11-09 | G33: 24 | H33: =F33+G33*30.5 -> 2020-11-10 | I33: =1-IF(ISBLANK($D$3),(TODAY()-мужчины!$F33)/(мужчины!$H33-мужчины!$F33),($D$3-мужчины!$F33)/(мужчины!$H33-мужчины!$F33)) -> -0.02732240437 | J33: =IFERROR(INDEX('Остаток на складе'!$A$6:$E$120,MATCH(Shagidaev[[#This Row],[Наименование СИЗ]],'Остаток на складе'!$A$6:$A$120,0),5),"НЕТ!") -> 158 | K33: =$J33*мужчины!$K$20 -> 31.6 | L33: =J33+K33 -> 189.6 | M33: =IF(L33<0,"1","0") -> 0
B34: 14 | C34: Противошумные вкладыши многоразовые 3M 1271 | D34: 6100000209 | F34: 2020-07-31 | G34: 12 | H34: 2021-08-01 | I34: =1-IF(ISBLANK($D$3),(TODAY()-мужчины!$F34)/(мужчины!$H34-мужчины!$F34),($D$3-мужчины!$F34)/(мужчины!$H34-мужчины!$F34)) -> 0.6666666667 | J34: =IFERROR(INDEX('Остаток на складе'!$A$6:$E$120,MATCH(Shagidaev[[#This Row],[Наименование СИЗ]],'Остаток на складе'!$A$6:$A$120,0),5),"НЕТ!") -> 2402 | K34: =$J34*мужчины!$K$20 -> 480.4 | L34: 2882.4 | M34: 0 | P34: СМЕННЫЙ МАСТЕР , ОПЕРАТОРЫ ВАННЫ РАСПЛАВА И ПЕЧИ ОТЖИГА , ОПЕРАТОР ПЕЧИ
B35: 15 | C35: Перчатки трикотажные с ПВХ | D35: 6100000181 | F35: 2020-07-31 | G35: 12 | H35: 2021-08-01 | I35: =1-IF(ISBLANK($D$3),(TODAY()-мужчины!$F35)/(мужчины!$H35-мужчины!$F35),($D$3-мужчины!$F35)/(мужчины!$H35-мужчины!$F35)) -> 0.6666666667 | J35: =IFERROR(INDEX('Остаток на складе'!$A$6:$E$120,MATCH(Shagidaev[[#This Row],[Наименование СИЗ]],'Остаток на складе'!$A$6:$A$120,0),5),"НЕТ!") -> 1873 | K35: =$J35*мужчины!$K$20 -> 374.6 | L35: 2247.6 | M35: 0 | O35: 3 | P35: 3.1 | Q35: Каска - цвет синий | S35: 24
B36: 16 | P36: 3.2 | Q36: Очки с непрямой вентиляцией закрытые УЛЬТРАВИЖИН | S36: 3
B37: ИТОГО: | L37: =SUMIF(L22:L36,"<500000",L22:L36) -> 6385.2 | P37: 3.3 | Q37: Очки открытые защитные СКАЙПЕР | S37: 3
A38: 3 | P38: 3.4 | Q38: Очки защитные uvex visitor 9162.046 затемнение 6 | S38: 3
B39: ФИО | G39: ДОЛЖНОСТЬ | P39: 3.5 | Q39: Противошумные вкладыши многоразовые 3M 1271 | S39: 12
C40: дата увольнения | G40: рост | H40: 182 | I40: одежда | J40: 50(M) | K40: обувь | L40: 42 | P40: 3.6 | Q40: Костюм мужской летний Инженер | S40: 12
P41: 3.7 | Q41: Футболка СПОРТ-К трикотажная оранжевого цвета | S41: 6
B42: № п/п | C42: Наименование СИЗ | D42: н/н | E42: цена | F42: дата выдачи | G42: срок носки, мес | H42: дата списания | I42: износ | J42: остаток на складе | K42: 20% | L42: Итого с НДС | M42: Закупка | N42: Столбец1 | P42: 3.8 | Q42: Футболка СПОРТ-Д Код по каталогу 101-0032-01 | S42: 6
B43: 1 | C43: Футболка СПОРТ-К трикотажная оранжевого цвета | D43: 6100000219 | F43: 2020-06-03 | G43: 6 | H43: =F43+G43*30.5 -> 2020-12-03 | I43: =1-IF(ISBLANK($D$3),(TODAY()-мужчины!$F43)/(мужчины!$H43-мужчины!$F43),($D$3-мужчины!$F43)/(мужчины!$H43-мужчины!$F43)) -> 0.01639344262 | J43: =IFERROR(INDEX('Остаток на складе'!$A$6:$E$120,MATCH(Mukhayev[[#This Row],[Наименование СИЗ]],'Остаток на складе'!$A$6:$A$120,0),5),"НЕТ!") -> 206 | K43: =$J43*мужчины!$K$20 -> 41.2 | L43: =J43+K43 -> 247.2 | M43: =IF(L43<0,"1","0") -> 0 | N43: =IFERROR(INDEX($Q$35:$R$50,MATCH(Musayev[[#This Row],[срок носки, мес]],Mukhayev[Наименование СИЗ],0),5),"НЕТ!") -> НЕТ! | P43: 3.9 | Q43: Полуботинки термостойкие | S43: 12
B44: 2 | C44: Очки с непрямой вентиляцией закрытые УЛЬТРАВИЖИН | D44: 6100000177 | F44: 2020-06-03 | G44: 3 | H44: 2020-09-02T12:00:00 | I44: =1-IF(ISBLANK($D$3),(TODAY()-мужчины!$F44)/(мужчины!$H44-мужчины!$F44),($D$3-мужчины!$F44)/(мужчины!$H44-мужчины!$F44)) -> -0.9672131148 | J44: =IFERROR(INDEX('Остаток на складе'!$A$6:$E$120,MATCH(Mukhayev[[#This Row],[Наименование СИЗ]],'Остаток на складе'!$A$6:$A$120,0),5),"НЕТ!") -> 35 | K44: =$J44*мужчины!$K$20 -> 7 | L44: 42 | M44: 0 | N44: =IFERROR(INDEX($Q$35:$R$50,MATCH(Musayev[[#This Row],[срок носки, мес]],$Q$35:$R$50,0),5),"НЕТ!") -> НЕТ! | P44: 3.10 | Q44: Подшлемник | S44: 24
B45: 3 | C45: Костюм мужской летний Инженер | D45: 6100000217 | F45: 2020-08-06 | G45: 12 | H45: 2021-08-07 | I45: =1-IF(ISBLANK($D$3),(TODAY()-мужчины!$F45)/(мужчины!$H45-мужчины!$F45),($D$3-мужчины!$F45)/(мужчины!$H45-мужчины!$F45)) -> 0.6830601093 | J45: =IFERROR(INDEX('Остаток на складе'!$A$6:$E$120,MATCH(Mukhayev[[#This Row],[Наименование СИЗ]],'Остаток на складе'!$A$6:$A$120,0),5),"НЕТ!") -> 107 | K45: =$J45*мужчины!$K$20 -> 21.4 | L45: 128.4 | M45: 0 | N45: =IFERROR(INDEX($Q$35:$R$50,MATCH(Musayev[[#This Row],[срок носки, мес]],Mukhayev[Наименование СИЗ],0),5),"НЕТ!") -> НЕТ! | P45: 3.11 | Q45: БОТИНКИ ЗИМНИЕ ЗАЩИТНЫЕ | S45: 24
B46: 4 | C46: Термостойкие перчатки 500C | D46: 6100000165 | F46: 2020-06-03 | G46: 6 | H46: 2020-12-03 | I46: =1-IF(ISBLANK($D$3),(TODAY()-мужчины!$F46)/(мужчины!$H46-мужчины!$F46),($D$3-мужчины!$F46)/(мужчины!$H46-мужчины!$F46)) -> 0.01639344262 | J46: =IFERROR(INDEX('Остаток на складе'!$A$6:$E$120,MATCH(Mukhayev[[#This Row],[Наименование СИЗ]],'Остаток на складе'!$A$6:$A$120,0),5),"НЕТ!") -> 21 | K46: =$J46*мужчины!$K$20 -> 4.2 | L46: 25.2 | M46: 0 | N46: =IFERROR(INDEX($Q$35:$R$50,MATCH(Musayev[[#This Row],[срок носки, мес]],Mukhayev[Наименование СИЗ],0),5),"НЕТ!") -> НЕТ! | P46: 3.12 | Q46: Перчатки трикотажные с ПВХ | S46: 12
B47: 5 | C47: Полуботинки термостойкие | D47: 6100000225 | F47: 2020-06-03 | G47: 12 | H47: 2021-06-04 | I47: =1-IF(ISBLANK($D$3),(TODAY()-мужчины!$F47)/(мужчины!$H47-мужчины!$F47),($D$3-мужчины!$F47)/(мужчины!$H47-мужчины!$F47)) -> 0.5081967213 | J47: =IFERROR(INDEX('Остаток на складе'!$A$6:$E$120,MATCH(Mukhayev[[#This Row],[Наименование СИЗ]],'Остаток на складе'!$A$6:$A$120,0),5),"НЕТ!") -> 47 | K47: =$J47*мужчины!$K$20 -> 9.4 | L47: 56.4 | M47: 0 | N47: =IFERROR(INDEX($Q$35:$R$50,MATCH(Musayev[[#This Row],[срок носки, мес]],Mukhayev[Наименование СИЗ],0),5),"НЕТ!") -> НЕТ! | P47: 3.13 | Q47: Термостойкие перчатки 100 С | S47: 2
B48: 6 | C48: Футболка СПОРТ-Д Код по каталогу 101-0032-01 | D48: 6100000220 | F48: 2020-06-03 | G48: 6 | H48: 2020-12-03 | I48: =1-IF(ISBLANK($D$3),(TODAY()-мужчины!$F48)/(мужчины!$H48-мужчины!$F48),($D$3-мужчины!$F48)/(мужчины!$H48-мужчины!$F48)) -> 0.01639344262 | J48: =IFERROR(INDEX('Остаток на складе'!$A$6:$E$120,MATCH(Mukhayev[[#This Row],[Наименование СИЗ]],'Остаток на складе'!$A$6:$A$120,0),5),"НЕТ!") -> 139 | K48: =$J48*мужчины!$K$20 -> 27.8 | L48: 166.8 | M48: 0 | N48: =IFERROR(INDEX($Q$35:$R$50,MATCH(Musayev[[#This Row],[срок носки, мес]],Mukhayev[Наименование СИЗ],0),5),"НЕТ!") -> НЕТ! | P48: 3.14 | Q48: Термостойкие перчатки 500C | S48: 2
B49: 7 | C49: Нарукавник кевларовый | D49: 6100000173 | F49: 2020-06-03 | G49: 6 | H49: 2020-12-03 | I49: =1-IF(ISBLANK($D$3),(TODAY()-мужчины!$F49)/(мужчины!$H49-мужчины!$F49),($D$3-мужчины!$F49)/(мужчины!$H49-мужчины!$F49)) -> 0.01639344262 | J49: =IFERROR(INDEX('Остаток на складе'!$A$6:$E$120,MATCH(Mukhayev[[#This Row],[Наименование СИЗ]],'Остаток на складе'!$A$6:$A$120,0),5),"НЕТ!") -> 143 | K49: =$J49*мужчины!$K$20 -> 28.6 | L49: 171.6 | M49: 0 | N49: =IFERROR(INDEX($Q$35:$R$50,MATCH(Musayev[[#This Row],[срок носки, мес]],Mukhayev[Наименование СИЗ],0),5),"НЕТ!") -> НЕТ! | P49: 3.15 | Q49: Нарукавник кевларовый | S49: 2
B50: 8 | C50: Термостойкие перчатки 100 С | D50: 6100000169 | F50: 2020-06-03 | G50: 6 | H50: 2020-12-03 | I50: =1-IF(ISBLANK($D$3),(TODAY()-мужчины!$F50)/(мужчины!$H50-мужчины!$F50),($D$3-мужчины!$F50)/(мужчины!$H50-мужчины!$F50)) -> 0.01639344262 | J50: =IFERROR(INDEX('Остаток на складе'!$A$6:$E$120,MATCH(Mukhayev[[#This Row],[Наименование СИЗ]],'Остаток на складе'!$A$6:$A$120,0),5),"НЕТ!") -> 58 | K50: =$J50*мужчины!$K$20 -> 11.6 | L50: =J50+K50 -> 69.6 | M50: 0 | N50: =IFERROR(INDEX($Q$35:$R$50,MATCH(Musayev[[#This Row],[срок носки, мес]],Mukhayev[Наименование СИЗ],0),5),"НЕТ!") -> НЕТ! | P50: 3.16 | Q50: Термостойкий шлем (Маска) | S50: 2
B51: 9 | C51: Термостойкий шлем (Маска) | D51: 6100000167 | F51: 2020-06-03 | G51: 6 | H51: 2020-12-03 | I51: =1-IF(ISBLANK($D$3),(TODAY()-мужчины!$F51)/(мужчины!$H51-мужчины!$F51),($D$3-мужчины!$F51)/(мужчины!$H51-мужчины!$F51)) -> 0.01639344262 | J51: =IFERROR(INDEX('Остаток на складе'!$A$6:$E$120,MATCH(Mukhayev[[#This Row],[Наименование СИЗ]],'Остаток на складе'!$A$6:$A$120,0),5),"НЕТ!") -> 18 | K51: =$J51*мужчины!$K$20 -> 3.6 | L51: =J51+K51 -> 21.6 | M51: 0 | N51: =IFERROR(INDEX($Q$35:$R$50,MATCH(Musayev[[#This Row],[срок носки, мес]],Mukhayev[Наименование СИЗ],0),5),"НЕТ!") -> НЕТ!
B52: 10 | C52: Куртка утеплённая CERVA Аллин | D52: 6100000222 | F52: 2018-11-09 | G52: 36 | H52: 2021-11-11 | I52: =1-IF(ISBLANK($D$3),(TODAY()-мужчины!$F52)/(мужчины!$H52-мужчины!$F52),($D$3-мужчины!$F52)/(мужчины!$H52-мужчины!$F52)) -> 0.3151183971 | J52: =IFERROR(INDEX('Остаток на складе'!$A$6:$E$120,MATCH(Mukhayev[[#This Row],[Наименование СИЗ]],'Остаток на складе'!$A$6:$A$120,0),5),"НЕТ!") -> 38 | K52: =$J52*мужчины!$K$20 -> 7.6 | L52: =J52+K52 -> 45.6 | M52: 0 | N52: =IFERROR(INDEX($Q$35:$R$50,MATCH(Musayev[[#This Row],[срок носки, мес]],Mukhayev[Наименование СИЗ],0),5),"НЕТ!") -> НЕТ! | P52: ОПЕРАТОР ЛИНИИ РЕЗКИ
B53: 11 | C53: Очки защитные uvex visitor 9162.046 затемнение 6 | D53: 6100000233 | F53: 2020-06-03 | G53: 6 | H53: 2020-12-03 | I53: =1-IF(ISBLANK($D$3),(TODAY()-мужчины!$F53)/(мужчины!$H53-мужчины!$F53),($D$3-мужчины!$F53)/(мужчины!$H53-мужчины!$F53)) -> 0.01639344262 | J53: =IFERROR(INDEX('Остаток на складе'!$A$6:$E$120,MATCH(Mukhayev[[#This Row],[Наименование СИЗ]],'Остаток на складе'!$A$6:$A$120,0),5),"НЕТ!") -> 18 | K53: =$J53*мужчины!$K$20 -> 3.6 | L53: =J53+K53 -> 21.6 | M53: 0 | N53: =IFERROR(INDEX($Q$35:$R$50,MATCH(Musayev[[#This Row],[срок носки, мес]],Mukhayev[Наименование СИЗ],0),5),"НЕТ!") -> НЕТ! | O53: 4 | P53: 4.1 | Q53: КАСКА ЗАЩИТНАЯ,СИНЯЯ | S53: 1 ШТ НА 2 ГОДА
B54: 12 | C54: Подшлемник | F54: 2019-10-31 | G54: 12 | H54: 2020-10-31 | I54: =1-IF(ISBLANK($D$3),(TODAY()-мужчины!$F54)/(мужчины!$H54-мужчины!$F54),($D$3-мужчины!$F54)/(мужчины!$H54-мужчины!$F54)) -> -0.08196721311 | J54: =IFERROR(INDEX('Остаток на складе'!$A$6:$E$120,MATCH(Mukhayev[[#This Row],[Наименование СИЗ]],'Остаток на складе'!$A$6:$A$120,0),5),"НЕТ!") -> 158 | K54: =$J54*мужчины!$K$20 -> 31.6 | M54: =IF(L54<0,"1","0") -> 0 | N54: =IFERROR(INDEX($Q$35:$R$50,MATCH(Musayev[[#This Row],[срок носки, мес]],Mukhayev[Наименование СИЗ],0),5),"НЕТ!") -> НЕТ! | P54: 4.2 | Q54: ОЧКИ ЗАЩИТНЫЕ ОТКРЫТЫЕ | S54: 4 ШТ НА ГОД
B55: 13 | C55: Каска - цвет синий | D55: 6100000203 | F55: 2018-12-11 | G55: 24 | H55: 2020-12-12 | I55: =1-IF(ISBLANK($D$3),(TODAY()-мужчины!$F55)/(мужчины!$H55-мужчины!$F55),($D$3-мужчины!$F55)/(мужчины!$H55-мужчины!$F55)) -> 0.01639344262 | J55: =IFERROR(INDEX('Остаток на складе'!$A$6:$E$120,MATCH(Mukhayev[[#This Row],[Наименование СИЗ]],'Остаток на складе'!$A$6:$A$120,0),5),"НЕТ!") -> 28 | K55: =$J55*мужчины!$K$20 -> 5.6 | L55: =J55+K55 -> 33.6 | M55: =IF(L55<0,"1","0") -> 0 | N55: =IFERROR(INDEX($Q$35:$R$50,MATCH(Musayev[[#This Row],[срок носки, мес]],Mukhayev[Наименование СИЗ],0),5),"НЕТ!") -> НЕТ! | P55: 4.3 | Q55: КОСТЮМ ЗАЩИТНЫЙ ЛЕТНИЙ | S55: 1 КОМП. НА ГОД
B56: 14 | C56: Перчатки от порезов, класс 5 | D56: 6100000172 | F56: 2020-06-03 | G56: 7 | H56: 2021-01-02T12:00:00 | I56: =1-IF(ISBLANK($D$3),(TODAY()-мужчины!$F56)/(мужчины!$H56-мужчины!$F56),($D$3-мужчины!$F56)/(мужчины!$H56-мужчины!$F56)) -> 0.1569086651 | J56: =IFERROR(INDEX('Остаток на складе'!$A$6:$E$120,MATCH(Mukhayev[[#This Row],[Наименование СИЗ]],'Остаток на складе'!$A$6:$A$120,0),5),"НЕТ!") -> 181 | K56: =$J56*мужчины!$K$20 -> 36.2 | M56: 0 | N56: =IFERROR(INDEX($Q$35:$R$50,MATCH(Musayev[[#This Row],[срок носки, мес]],Mukhayev[Наименование СИЗ],0),5),"НЕТ!") -> НЕТ! | P56: 4.4 | Q56: ФУТБОЛКА С КОРОТКИМ РУКАВОМ | S56: 2 ШТ В ГОД
B57: 15 | C57: Противошумные вкладыши многоразовые 3M 1271 | D57: 6100000209 | F57: 2020-07-31 | G57: 12 | H57: 2021-08-01 | I57: =1-IF(ISBLANK($D$3),(TODAY()-мужчины!$F57)/(мужчины!$H57-мужчины!$F57),($D$3-мужчины!$F57)/(мужчины!$H57-мужчины!$F57)) -> 0.6666666667 | J57: =IFERROR(INDEX('Остаток на складе'!$A$6:$E$120,MATCH(Mukhayev[[#This Row],[Наименование СИЗ]],'Остаток на складе'!$A$6:$A$120,0),5),"НЕТ!") -> 2402 | K57: =$J57*мужчины!$K$20 -> 480.4 | M57: 0 | N57: =IFERROR(INDEX($Q$35:$R$50,MATCH(Musayev[[#This Row],[срок носки, мес]],Mukhayev[Наименование СИЗ],0),5),"НЕТ!") -> НЕТ! | P57: 4.5 | Q57: ФУТБОЛКА С ДЛИНЫМ РУКАВОМ | S57: 2 ШТ В ГОД
B58: 16 | C58: Перчатки трикотажные с ПВХ | D58: 6100000181 | F58: 2020-07-31 | G58: 12 | H58: 2021-08-01 | I58: =1-IF(ISBLANK($D$3),(TODAY()-мужчины!$F58)/(мужчины!$H58-мужчины!$F58),($D$3-мужчины!$F58)/(мужчины!$H58-мужчины!$F58)) -> 0.6666666667 | J58: =IFERROR(INDEX('Остаток на складе'!$A$6:$E$120,MATCH(Mukhayev[[#This Row],[Наименование СИЗ]],'Остаток на складе'!$A$6:$A$120,0),5),"НЕТ!") -> 1873 | K58: =$J58*мужчины!$K$20 -> 374.6 | M58: 0 | N58: =IFERROR(INDEX($Q$35:$R$50,MATCH(Musayev[[#This Row],[срок носки, мес]],Mukhayev[Наименование СИЗ],0),5),"НЕТ!") -> НЕТ! | P58: 4.6 | Q58: НАУШНИКИ ПРОТИВОШУМНЫЕ С КРЕПЛЕНИЕМ НА КАСКУ ИЛИ ПРОТИВОШУМНЫЕ ВКЛАДЫШИ МНОГОКРАТНОГО ИСПОЛЬЗОВАНИЯ | S58: ДО ИЗНОСА
B59: ИТОГО: | L59: =SUMIF(L47:L58,"<500000",L47:L58) -> 586.8 | P59: 4.7 | Q59: СРЕДСТВА ИНДИВИДУАЛЬНОЙ ЗАЩИТЫ ОРГАНОВ ДЫХАНИЯ,ФИЛЬТРУЮЩИЕ | S59: ДО ИЗНОСА
P60: 4.8 | Q60: ПОЛУБОТИНКИ ЛЕТНИЕ ЗАЩИТНЫЕ | S60: 1 ПАРА В ГОД
A61: 4 | B61: ФИО | G61: ДОЛЖНОСТЬ | P61: 4.9 | Q61: ПОДШЛЕМНИК | S61: 1 ШТ НА 2 ГОДА
C62: дата увольнения | G62: рост | H62: 182 | I62: одежда | J62: 52(L) | K62: обувь | L62: 42 | P62: 4.10 | Q62: КУРТКА ЗИМНЯЯ | S62: 1 ШТ НА 2 ГОДА
P63: 4.11 | Q63: РУБАХА АНТИПОРЕЗНАЯ | S63: ДО ИЗНОСА
B64: № п/п | C64: Наименование СИЗ | D64: н/н | E64: цена | F64: дата выдачи | G64: срок носки, мес | H64: дата списания | I64: износ | J64: остаток на складе | K64: 20% | L64: Итого с НДС | M64: Закупка | N64: Столбец1 | P64: 4.12 | Q64: ПЕРЧАТКИ ОТ ПОРЕЗОВ | S64: 6 ПАР В ГОД
B65: 1 | C65: Футболка СПОРТ-К трикотажная оранжевого цвета | D65: 6100000219 | F65: 2020-06-19 | G65: 6 | H65: =F65+G65*30.5 -> 2020-12-19 | I65: =1-IF(ISBLANK($D$3),(TODAY()-мужчины!$F65)/(мужчины!$H65-мужчины!$F65),($D$3-мужчины!$F65)/(мужчины!$H65-мужчины!$F65)) -> 0.1038251366 | J65: =IFERROR(INDEX('Остаток на складе'!$A$6:$E$120,MATCH(Ibragimov[[#This Row],[Наименование СИЗ]],'Остаток на складе'!$A$6:$A$120,0),5),"НЕТ!") -> 206 | K65: =$J65*мужчины!$K$20 -> 41.2 | L65: =J65+K65 -> 247.2 | M65: =IF(L65<0,"1","0") -> 0 | N65: ЕСЛИОШИБКА(ИНДЕКС($Q$35:$R$50;ПОИСКПОЗ([срок носки, мес];$Q$35:$R$50;0);0)) | P65: 4.13 | Q65: НАРУКАВНИК КЕВЛАРОВЫЙ | S65: 2 ПАРЫ В ГОД
B66: 2 | C66: Очки с непрямой вентиляцией закрытые УЛЬТРАВИЖИН | D66: 6100000177 | F66: 2020-06-19 | G66: 3 | H66: =F66+G66*30.5 -> 2020-09-18T12:00:00 | I66: =1-IF(ISBLANK($D$3),(TODAY()-мужчины!$F66)/(мужчины!$H66-мужчины!$F66),($D$3-мужчины!$F66)/(мужчины!$H66-мужчины!$F66)) -> -0.7923497268 | J66: =IFERROR(INDEX('Остаток на складе'!$A$6:$E$120,MATCH(Ibragimov[[#This Row],[Наименование СИЗ]],'Остаток на складе'!$A$6:$A$120,0),5),"НЕТ!") -> 35 | K66: =$J66*мужчины!$K$20 -> 7 | L66: 42 | M66: 0
B67: 3 | C67: Костюм мужской летний Инженер | D67: 6100000217 | F67: 2020-08-14 | G67: 12 | H67: 2021-08-15 | I67: =1-IF(ISBLANK($D$3),(TODAY()-мужчины!$F67)/(мужчины!$H67-мужчины!$F67),($D$3-мужчины!$F67)/(мужчины!$H67-мужчины!$F67)) -> 0.7049180328 | J67: =IFERROR(INDEX('Остаток на складе'!$A$6:$E$120,MATCH(Ibragimov[[#This Row],[Наименование СИЗ]],'Остаток на складе'!$A$6:$A$120,0),5),"НЕТ!") -> 107 | K67: =$J67*мужчины!$K$20 -> 21.4 | L67: 128.4 | M67: 0
B68: 4 | C68: Термостойкие перчатки 500C | D68: 6100000165 | F68: 2020-08-14 | G68: 3 | H68: 2020-11-13T12:00:00 | I68: =1-IF(ISBLANK($D$3),(TODAY()-мужчины!$F68)/(мужчины!$H68-мужчины!$F68),($D$3-мужчины!$F68)/(мужчины!$H68-мужчины!$F68)) -> -0.1803278689 | J68: =IFERROR(INDEX('Остаток на складе'!$A$6:$E$120,MATCH(Ibragimov[[#This Row],[Наименование СИЗ]],'Остаток на складе'!$A$6:$A$120,0),5),"НЕТ!") -> 21 | K68: =$J68*мужчины!$K$20 -> 4.2 | L68: 25.2 | M68: 0
B69: 5 | C69: Полуботинки термостойкие | D69: 6100000225 | F69: 2020-01-15 | G69: 12 | H69: 2021-01-15 | I69: =1-IF(ISBLANK($D$3),(TODAY()-мужчины!$F69)/(мужчины!$H69-мужчины!$F69),($D$3-мужчины!$F69)/(мужчины!$H69-мужчины!$F69)) -> 0.1256830601 | J69: =IFERROR(INDEX('Остаток на складе'!$A$6:$E$120,MATCH(Ibragimov[[#This Row],[Наименование СИЗ]],'Остаток на складе'!$A$6:$A$120,0),5),"НЕТ!") -> 47 | K69: =$J69*мужчины!$K$20 -> 9.4 | L69: 56.4 | M69: 0
B70: 6 | C70: Футболка СПОРТ-Д Код по каталогу 101-0032-01 | D70: 6100000220 | F70: 2020-06-19 | G70: 6 | H70: 2020-12-19 | I70: =1-IF(ISBLANK($D$3),(TODAY()-мужчины!$F70)/(мужчины!$H70-мужчины!$F70),($D$3-мужчины!$F70)/(мужчины!$H70-мужчины!$F70)) -> 0.1038251366 | J70: =IFERROR(INDEX('Остаток на складе'!$A$6:$E$120,MATCH(Ibragimov[[#This Row],[Наименование СИЗ]],'Остаток на складе'!$A$6:$A$120,0),5),"НЕТ!") -> 139 | K70: =$J70*мужчины!$K$20 -> 27.8 | L70: 166.8 | M70: 0 | P70: =IFERROR(INDEX($Q$35:$R$50,MATCH(Musayev[[#This Row],[срок носки, мес]],$Q$35:$R$50,0),5),"НЕТ!") -> НЕТ!
B71: 7 | C71: Нарукавник кевларовый | D71: 6100000173 | F71: 2020-06-19 | G71: 6 | H71: 2020-12-19 | I71: =1-IF(ISBLANK($D$3),(TODAY()-мужчины!$F71)/(мужчины!$H71-мужчины!$F71),($D$3-мужчины!$F71)/(мужчины!$H71-мужчины!$F71)) -> 0.1038251366 | J71: =IFERROR(INDEX('Остаток на складе'!$A$6:$E$120,MATCH(Ibragimov[[#This Row],[Наименование СИЗ]],'Остаток на складе'!$A$6:$A$120,0),5),"НЕТ!") -> 143 | K71: =$J71*мужчины!$K$20 -> 28.6 | L71: 171.6 | M71: 0
B72: 8 | C72: Термостойкие перчатки 100 С | D72: 6100000169 | F72: 2020-06-19 | G72: 3 | H72: 2020-09-18T12:00:00 | I72: =1-IF(ISBLANK($D$3),(TODAY()-мужчины!$F72)/(мужчины!$H72-мужчины!$F72),($D$3-мужчины!$F72)/(мужчины!$H72-мужчины!$F72)) -> -0.7923497268 | J72: =IFERROR(INDEX('Остаток на складе'!$A$6:$E$120,MATCH(Ibragimov[[#This Row],[Наименование СИЗ]],'Остаток на складе'!$A$6:$A$120,0),5),"НЕТ!") -> 58 | K72: =$J72*мужчины!$K$20 -> 11.6 | L72: =J72+K72 -> 69.6 | M72: 0
B73: 9 | C73: Термостойкий шлем (Маска) | D73: 6100000167 | F73: 2020-08-14 | G73: 6 | H73: 2021-02-13 | I73: =1-IF(ISBLANK($D$3),(TODAY()-мужчины!$F73)/(мужчины!$H73-мужчины!$F73),($D$3-мужчины!$F73)/(мужчины!$H73-мужчины!$F73)) -> 0.4098360656 | J73: =IFERROR(INDEX('Остаток на складе'!$A$6:$E$120,MATCH(Ibragimov[[#This Row],[Наименование СИЗ]],'Остаток на складе'!$A$6:$A$120,0),5),"НЕТ!") -> 18 | K73: =$J73*мужчины!$K$20 -> 3.6 | L73: 21.6 | M73: =IF(L73<0,"1","0") -> 0
B74: 10 | C74: Куртка утеплённая CERVA Аллин | D74: 6100000222 | F74: 2019-01-16 | G74: 36 | H74: 2022-01-18 | I74: =1-IF(ISBLANK($D$3),(TODAY()-мужчины!$F74)/(мужчины!$H74-мужчины!$F74),($D$3-мужчины!$F74)/(мужчины!$H74-мужчины!$F74)) -> 0.3770491803 | J74: =IFERROR(INDEX('Остаток на складе'!$A$6:$E$120,MATCH(Ibragimov[[#This Row],[Наименование СИЗ]],'Остаток на складе'!$A$6:$A$120,0),5),"НЕТ!") -> 38 | K74: =$J74*мужчины!$K$20 -> 7.6 | L74: 45.6 | M74: 0
B75: 11 | C75: Очки открытые защитные СКАЙПЕР | D75: 6100001957 | F75: 2020-06-19 | G75: 3 | H75: =F75+G75*30.5 -> 2020-09-18T12:00:00 | I75: =1-IF(ISBLANK($D$3),(TODAY()-мужчины!$F75)/(мужчины!$H75-мужчины!$F75),($D$3-мужчины!$F75)/(мужчины!$H75-мужчины!$F75)) -> -0.7923497268 | J75: =IFERROR(INDEX('Остаток на складе'!$A$6:$E$120,MATCH(Ibragimov[[#This Row],[Наименование СИЗ]],'Остаток на складе'!$A$6:$A$120,0),5),"НЕТ!") -> 254 | K75: =$J75*мужчины!$K$20 -> 50.8 | L75: 304.8 | M75: 0
B76: 12 | C76: Очки защитные uvex visitor 9162.046 затемнение 6 | D76: 6100000208 | F76: 2020-08-14 | G76: 6 | H76: 2021-02-13 | I76: =1-IF(ISBLANK($D$3),(TODAY()-мужчины!$F76)/(мужчины!$H76-мужчины!$F76),($D$3-мужчины!$F76)/(мужчины!$H76-мужчины!$F76)) -> 0.4098360656 | J76: =IFERROR(INDEX('Остаток на складе'!$A$6:$E$120,MATCH(Ibragimov[[#This Row],[Наименование СИЗ]],'Остаток на складе'!$A$6:$A$120,0),5),"НЕТ!") -> 18 | K76: =$J76*мужчины!$K$20 -> 3.6 | L76: 21.6 | M76: 0
B77: 13 | C77: Подшлемник | F77: 2018-11-09 | G77: 24 | H77: 2020-11-10 | I77: =1-IF(ISBLANK($D$3),(TODAY()-мужчины!$F77)/(мужчины!$H77-мужчины!$F77),($D$3-мужчины!$F77)/(мужчины!$H77-мужчины!$F77)) -> -0.02732240437 | J77: =IFERROR(INDEX('Остаток на складе'!$A$6:$E$120,MATCH(Ibragimov[[#This Row],[Наименование СИЗ]],'Остаток на складе'!$A$6:$A$120,0),5),"НЕТ!") -> 158
B78: 14 | C78: Каска - цвет синий | D78: 6100000203 | F78: 2019-10-31 | G78: 24 | H78: 2021-11-01 | I78: =1-IF(ISBLANK($D$3),(TODAY()-мужчины!$F78)/(мужчины!$H78-мужчины!$F78),($D$3-мужчины!$F78)/(мужчины!$H78-мужчины!$F78)) -> 0.4590163934 | J78: =IFERROR(INDEX('Остаток на складе'!$A$6:$E$120,MATCH(Ibragimov[[#This Row],[Наименование СИЗ]],'Остаток на складе'!$A$6:$A$120,0),5),"НЕТ!") -> 28 | K78: =$J78*мужчины!$K$20 -> 5.6 | L78: 33.6 | M78: 0
B79: 15 | C79: Противошумные вкладыши многоразовые 3M 1271 | D79: 6100000209 | F79: 2020-07-31 | G79: 12 | H79: 2021-08-01 | I79: =1-IF(ISBLANK($D$3),(TODAY()-мужчины!$F79)/(мужчины!$H79-мужчины!$F79),($D$3-мужчины!$F79)/(мужчины!$H79-мужчины!$F79)) -> 0.6666666667 | J79: =IFERROR(INDEX('Остаток на складе'!$A$6:$E$120,MATCH(Ibragimov[[#This Row],[Наименование СИЗ]],'Остаток на складе'!$A$6:$A$120,0),5),"НЕТ!") -> 2402 | K79: =$J79*мужчины!$K$20 -> 480.4 | L79: 2882.4 | M79: 0
B80: 16 | C80: Перчатки трикотажные с ПВХ | D80: 6100000181 | F80: 2020-07-31 | G80: 12 | H80: 2021-08-01 | I80: =1-IF(ISBLANK($D$3),(TODAY()-мужчины!$F80)/(мужчины!$H80-мужчины!$F80),($D$3-мужчины!$F80)/(мужчины!$H80-мужчины!$F80)) -> 0.6666666667 | J80: =IFERROR(INDEX('Остаток на складе'!$A$6:$E$120,MATCH(Ibragimov[[#This Row],[Наименование СИЗ]],'Остаток на складе'!$A$6:$A$120,0),5),"НЕТ!") -> 1873 | K80: =$J80*мужчины!$K$20 -> 374.6 | L80: 2247.6 | M80: 0
B81: ИТОГО: | L81: =SUMIF(L66:L80,"<500000",L66:L80) -> 6217.2
A83: 5 | B83: ФИО | G83: ДОЛЖНОСТЬ
C84: дата увольнения | G84: рост | H84: 179 | I84: одежда | J84: 54(XL) | K84: обувь | L84: 42
B86: № п/п | C86: Наименование СИЗ | D86: н/н | E86: цена | F86: дата выдачи | G86: срок носки, мес | H86: дата списания | I86: износ | J86: остаток на складе | K86: 20% | L86: Итого с НДС | M86: Закупка
B87: 1 | C87: Футболка СПОРТ-К трикотажная оранжевого цвета | D87: 6100000219 | F87: 2020-08-06 | G87: 6 | H87: =F87+G87*30.5 -> 2021-02-05 | I87: =1-IF(ISBLANK($D$3),(TODAY()-мужчины!$F87)/(мужчины!$H87-мужчины!$F87),($D$3-мужчины!$F87)/(мужчины!$H87-мужчины!$F87)) -> 0.3661202186 | J87: =IFERROR(INDEX('Остаток на складе'!$A$6:$E$120,MATCH(Aliyev[[#This Row],[Наименование СИЗ]],'Остаток на складе'!$A$6:$A$120,0),5),"НЕТ!") -> 206 | K87: =$J87*мужчины!$K$20 -> 41.2 | L87: =J87+K87 -> 247.2 | M87: =IF(L87<0,"1","0") -> 0
B88: 2 | C88: Очки с непрямой вентиляцией закрытые УЛЬТРАВИЖИН | D88: 6100000177 | F88: 2020-09-07 | G88: 3 | H88: =F88+G88*30.5 -> 2020-12-07T12:00:00 | I88: =1-IF(ISBLANK($D$3),(TODAY()-мужчины!$F88)/(мужчины!$H88-мужчины!$F88),($D$3-мужчины!$F88)/(мужчины!$H88-мужчины!$F88)) -> 0.08196721311 | J88: =IFERROR(INDEX('Остаток на складе'!$A$6:$E$120,MATCH(Aliyev[[#This Row],[Наименование СИЗ]],'Остаток на складе'!$A$6:$A$120,0),5),"НЕТ!") -> 35 | K88: =$J88*мужчины!$K$20 -> 7 | L88: 42 | M88: 0
B89: 3 | C89: Костюм мужской летний Инженер | D89: 6100000217 | F89: 2020-08-06 | G89: 12 | H89: 2021-08-07 | I89: =1-IF(ISBLANK($D$3),(TODAY()-мужчины!$F89)/(мужчины!$H89-мужчины!$F89),($D$3-мужчины!$F89)/(мужчины!$H89-мужчины!$F89)) -> 0.6830601093 | J89: =IFERROR(INDEX('Остаток на складе'!$A$6:$E$120,MATCH(Aliyev[[#This Row],[Наименование СИЗ]],'Остаток на складе'!$A$6:$A$120,0),5),"НЕТ!") -> 107 | K89: =$J89*мужчины!$K$20 -> 21.4 | L89: 128.4 | M89: 0
B90: 4 | C90: Термостойкие перчатки 500C | D90: 6100000165 | F90: 2020-06-03 | G90: 6 | H90: 2020-12-03 | I90: =1-IF(ISBLANK($D$3),(TODAY()-мужчины!$F90)/(мужчины!$H90-мужчины!$F90),($D$3-мужчины!$F90)/(мужчины!$H90-мужчины!$F90)) -> 0.01639344262 | J90: =IFERROR(INDEX('Остаток на складе'!$A$6:$E$120,MATCH(Aliyev[[#This Row],[Наименование СИЗ]],'Остаток на складе'!$A$6:$A$120,0),5),"НЕТ!") -> 21 | K90: =$J90*мужчины!$K$20 -> 4.2 | L90: 25.2 | M90: 0
B91: 5 | C91: Полуботинки термостойкие | D91: 6100000225 | F91: 2020-01-15 | G91: 12 | H91: 2021-01-15 | I91: =1-IF(ISBLANK($D$3),(TODAY()-мужчины!$F91)/(мужчины!$H91-мужчины!$F91),($D$3-мужчины!$F91)/(мужчины!$H91-мужчины!$F91)) -> 0.1256830601 | J91: =IFERROR(INDEX('Остаток на складе'!$A$6:$E$120,MATCH(Aliyev[[#This Row],[Наименование СИЗ]],'Остаток на складе'!$A$6:$A$120,0),5),"НЕТ!") -> 47 | K91: =$J91*мужчины!$K$20 -> 9.4 | L91: 56.4 | M91: 0
B92: 6 | C92: Футболка СПОРТ-Д Код по каталогу 101-0032-01 | D92: 6100000220 | F92: 2020-08-06 | G92: 6 | H92: 2021-02-05 | I92: =1-IF(ISBLANK($D$3),(TODAY()-мужчины!$F92)/(мужчины!$H92-мужчины!$F92),($D$3-мужчины!$F92)/(мужчины!$H92-мужчины!$F92)) -> 0.3661202186 | J92: =IFERROR(INDEX('Остаток на складе'!$A$6:$E$120,MATCH(Aliyev[[#This Row],[Наименование СИЗ]],'Остаток на складе'!$A$6:$A$120,0),5),"НЕТ!") -> 139 | K92: =$J92*мужчины!$K$20 -> 27.8 | L92: 166.8 | M92: 0
B93: 7 | C93: Нарукавник кевларовый | D93: 6100000173 | F93: 2020-08-06 | G93: 6 | H93: 2021-02-05 | I93: =1-IF(ISBLANK($D$3),(TODAY()-мужчины!$F93)/(мужчины!$H93-мужчины!$F93),($D$3-мужчины!$F93)/(мужчины!$H93-мужчины!$F93)) -> 0.3661202186 | J93: =IFERROR(INDEX('Остаток на складе'!$A$6:$E$120,MATCH(Aliyev[[#This Row],[Наименование СИЗ]],'Остаток на складе'!$A$6:$A$120,0),5),"НЕТ!") -> 143 | K93: =$J93*мужчины!$K$20 -> 28.6 | L93: 171.6 | M93: 0
B94: 8 | C94: Термостойкие перчатки 100 С | D94: 6100000169 | F94: 2020-06-03 | G94: 6 | H94: 2020-12-03 | I94: =1-IF(ISBLANK($D$3),(TODAY()-мужчины!$F94)/(мужчины!$H94-мужчины!$F94),($D$3-мужчины!$F94)/(мужчины!$H94-мужчины!$F94)) -> 0.01639344262 | J94: =IFERROR(INDEX('Остаток на складе'!$A$6:$E$120,MATCH(Aliyev[[#This Row],[Наименование СИЗ]],'Остаток на складе'!$A$6:$A$120,0),5),"НЕТ!") -> 58 | K94: =$J94*мужчины!$K$20 -> 11.6 | L94: =J94+K94 -> 69.6 | M94: 0
B95: 9 | C95: Термостойкий шлем (Маска) | D95: 6100000167 | F95: 2020-08-06 | G95: 6 | H95: 2021-02-05 | I95: =1-IF(ISBLANK($D$3),(TODAY()-мужчины!$F95)/(мужчины!$H95-мужчины!$F95),($D$3-мужчины!$F95)/(мужчины!$H95-мужчины!$F95)) -> 0.3661202186 | J95: =IFERROR(INDEX('Остаток на складе'!$A$6:$E$120,MATCH(Aliyev[[#This Row],[Наименование СИЗ]],'Остаток на складе'!$A$6:$A$120,0),5),"НЕТ!") -> 18 | K95: =$J95*мужчины!$K$20 -> 3.6 | L95: 21.6 | M95: =IF(L95<0,"1","0") -> 0
B96: 10 | C96: Куртка утеплённая CERVA Аллин | D96: 6100000222 | F96: 2018-11-09 | G96: 36 | H96: 2021-11-11 | I96: =1-IF(ISBLANK($D$3),(TODAY()-мужчины!$F96)/(мужчины!$H96-мужчины!$F96),($D$3-мужчины!$F96)/(мужчины!$H96-мужчины!$F96)) -> 0.3151183971 | J96: =IFERROR(INDEX('Остаток на складе'!$A$6:$E$120,MATCH(Aliyev[[#This Row],[Наименование СИЗ]],'Остаток на складе'!$A$6:$A$120,0),5),"НЕТ!") -> 38 | K96: =$J96*мужчины!$K$20 -> 7.6 | L96: 45.6 | M96: 0
B97: 11 | C97: Очки открытые защитные СКАЙПЕР | D97: 6100001957 | F97: 2020-09-07 | G97: 3 | H97: 2020-12-07T12:00:00 | I97: =1-IF(ISBLANK($D$3),(TODAY()-мужчины!$F97)/(мужчины!$H97-мужчины!$F97),($D$3-мужчины!$F97)/(мужчины!$H97-мужчины!$F97)) -> 0.08196721311 | J97: =IFERROR(INDEX('Остаток на складе'!$A$6:$E$120,MATCH(Aliyev[[#This Row],[Наименование СИЗ]],'Остаток на складе'!$A$6:$A$120,0),5),"НЕТ!") -> 254 | K97: =$J97*мужчины!$K$20 -> 50.8 | M97: =IF(L97<0,"1","0") -> 0
B98: 12 | C98: Очки защитные uvex visitor 9162.046 затемнение 6 | D98: 6100000208 | F98: 2020-09-07 | G98: 3 | H98: 2020-12-07T12:00:00 | I98: =1-IF(ISBLANK($D$3),(TODAY()-мужчины!$F98)/(мужчины!$H98-мужчины!$F98),($D$3-мужчины!$F98)/(мужчины!$H98-мужчины!$F98)) -> 0.08196721311 | J98: =IFERROR(INDEX('Остаток на складе'!$A$6:$E$120,MATCH(Aliyev[[#This Row],[Наименование СИЗ]],'Остаток на складе'!$A$6:$A$120,0),5),"НЕТ!") -> 18 | K98: =$J98*мужчины!$K$20 -> 3.6 | L98: 21.6 | M98: 0
B99: 13 | C99: Подшлемник | F99: 2018-11-09 | G99: 24 | H99: 2020-11-10 | I99: =1-IF(ISBLANK($D$3),(TODAY()-мужчины!$F99)/(мужчины!$H99-мужчины!$F99),($D$3-мужчины!$F99)/(мужчины!$H99-мужчины!$F99)) -> -0.02732240437 | J99: =IFERROR(INDEX('Остаток на складе'!$A$6:$E$120,MATCH(Aliyev[[#This Row],[Наименование СИЗ]],'Остаток на складе'!$A$6:$A$120,0),5),"НЕТ!") -> 158 | K99: =$J99*мужчины!$K$20 -> 31.6 | M99: =IF(L99<0,"1","0") -> 0
B100: 14 | C100: Каска - цвет синий | D100: 6100000203 | F100: 2018-12-11 | G100: 24 | H100: 2020-12-12 | I100: =1-IF(ISBLANK($D$3),(TODAY()-мужчины!$F100)/(мужчины!$H100-мужчины!$F100),($D$3-мужчины!$F100)/(мужчины!$H100-мужчины!$F100)) -> 0.01639344262 | J100: =IFERROR(INDEX('Остаток на складе'!$A$6:$E$120,MATCH(Aliyev[[#This Row],[Наименование СИЗ]],'Остаток на складе'!$A$6:$A$120,0),5),"НЕТ!") -> 28 | K100: =$J100*мужчины!$K$20 -> 5.6 | L100: 33.6 | M100: 0
B101: 16 | C101: Противошумные вкладыши многоразовые 3M 1271 | D101: 6100000209 | F101: 2020-07-31 | G101: 12 | H101: 2021-08-01 | I101: =1-IF(ISBLANK($D$3),(TODAY()-мужчины!$F101)/(мужчины!$H101-мужчины!$F101),($D$3-мужчины!$F101)/(мужчины!$H101-мужчины!$F101)) -> 0.6666666667 | J101: =IFERROR(INDEX('Остаток на складе'!$A$6:$E$120,MATCH(Aliyev[[#This Row],[Наименование СИЗ]],'Остаток на складе'!$A$6:$A$120,0),5),"НЕТ!") -> 2402 | K101: =$J101*мужчины!$K$20 -> 480.4 | L101: 2882.4 | M101: 0
B102: 17 | C102: Перчатки трикотажные с ПВХ | D102: 6100000181 | F102: 2020-07-31 | G102: 12 | H102: 2021-08-01 | I102: =1-IF(ISBLANK($D$3),(TODAY()-мужчины!$F102)/(мужчины!$H102-мужчины!$F102),($D$3-мужчины!$F102)/(мужчины!$H102-мужчины!$F102)) -> 0.6666666667 | J102: =IFERROR(INDEX('Остаток на складе'!$A$6:$E$120,MATCH(Aliyev[[#This Row],[Наименование СИЗ]],'Остаток на складе'!$A$6:$A$120,0),5),"НЕТ!") -> 1873 | K102: =$J102*мужчины!$K$20 -> 374.6 | L102: 2247.6 | M102: 0
B103: ИТОГО: | L103: =SUMIF(L87:L102,"<500000",L87:L102) -> 6159.6
A105: 6 | B105: ФИО | G105: ДОЛЖНОСТЬ
C106: дата увольнения | G106: рост | H106: 168 | I106: одежда | J106: 50(M) | K106: обувь | L106: 42
B108: № п/п | C108: Наименование СИЗ | D108: н/н | E108: цена | F108: дата выдачи | G108: срок носки, мес | H108: дата списания | I108: износ | J108: остаток на складе | K108: 20% | L108: Итого с НДС | M108: Закупка
B109: 1 | C109: Футболка СПОРТ-К трикотажная оранжевого цвета | D109: 6100000219 | F109: 2020-06-19 | G109: 6 | H109: =F109+G109*30.5 -> 2020-12-19 | I109: =1-IF(ISBLANK($D$3),(TODAY()-мужчины!$F109)/(мужчины!$H109-мужчины!$F109),($D$3-мужчины!$F109)/(мужчины!$H109-мужчины!$F109)) -> 0.1038251366 | J109: =IFERROR(INDEX('Остаток на складе'!$A$6:$E$120,MATCH(Abasov[[#This Row],[Наименование СИЗ]],'Остаток на складе'!$A$6:$A$120,0),5),"НЕТ!") -> 206 | K109: =$J109*мужчины!$K$20 -> 41.2 | L109: =J109+K109 -> 247.2 | M109: =IF(L109<0,"1","0") -> 0
B110: 2 | C110: Очки с непрямой вентиляцией закрытые УЛЬТРАВИЖИН | D110: 6100000177 | F110: 2020-06-19 | G110: 3 | H110: =F110+G110*30.5 -> 2020-09-18T12:00:00 | I110: =1-IF(ISBLANK($D$3),(TODAY()-мужчины!$F110)/(мужчины!$H110-мужчины!$F110),($D$3-мужчины!$F110)/(мужчины!$H110-мужчины!$F110)) -> -0.7923497268 | J110: =IFERROR(INDEX('Остаток на складе'!$A$6:$E$120,MATCH(Abasov[[#This Row],[Наименование СИЗ]],'Остаток на складе'!$A$6:$A$120,0),5),"НЕТ!") -> 35 | K110: =$J110*мужчины!$K$20 -> 7 | L110: 42 | M110: 0
B111: 3 | C111: Костюм мужской летний Инженер | D111: 6100000217 | F111: 2020-06-19 | G111: 12 | H111: 2021-06-20 | I111: =1-IF(ISBLANK($D$3),(TODAY()-мужчины!$F111)/(мужчины!$H111-мужчины!$F111),($D$3-мужчины!$F111)/(мужчины!$H111-мужчины!$F111)) -> 0.5519125683 | J111: =IFERROR(INDEX('Остаток на складе'!$A$6:$E$120,MATCH(Abasov[[#This Row],[Наименование СИЗ]],'Остаток на складе'!$A$6:$A$120,0),5),"НЕТ!") -> 107 | K111: =$J111*мужчины!$K$20 -> 21.4 | L111: 128.4 | M111: 0
B112: 4 | C112: Термостойкие перчатки 500C | D112: 6100000165 | F112: 2020-08-06 | G112: 3 | H112: 2020-11-05T12:00:00 | I112: =1-IF(ISBLANK($D$3),(TODAY()-мужчины!$F112)/(мужчины!$H112-мужчины!$F112),($D$3-мужчины!$F112)/(мужчины!$H112-мужчины!$F112)) -> -0.2677595628 | J112: =IFERROR(INDEX('Остаток на складе'!$A$6:$E$120,MATCH(Abasov[[#This Row],[Наименование СИЗ]],'Остаток на складе'!$A$6:$A$120,0),5),"НЕТ!") -> 21 | K112: =$J112*мужчины!$K$20 -> 4.2 | L112: 25.2 | M112: 0
B113: 5 | C113: Полуботинки термостойкие | D113: 6100000225 | F113: 2020-08-06 | G113: 12 | H113: 2021-08-07 | I113: =1-IF(ISBLANK($D$3),(TODAY()-мужчины!$F113)/(мужчины!$H113-мужчины!$F113),($D$3-мужчины!$F113)/(мужчины!$H113-мужчины!$F113)) -> 0.6830601093 | J113: =IFERROR(INDEX('Остаток на складе'!$A$6:$E$120,MATCH(Abasov[[#This Row],[Наименование СИЗ]],'Остаток на складе'!$A$6:$A$120,0),5),"НЕТ!") -> 47 | K113: =$J113*мужчины!$K$20 -> 9.4 | M113: =IF(L113<0,"1","0") -> 0
B114: 6 | C114: Подшлемник | D114: 6100000225 | F114: 2018-11-13 | G114: 24 | H114: 2020-11-14 | I114: =1-IF(ISBLANK($D$3),(TODAY()-мужчины!$F114)/(мужчины!$H114-мужчины!$F114),($D$3-мужчины!$F114)/(мужчины!$H114-мужчины!$F114)) -> -0.0218579235 | J114: =IFERROR(INDEX('Остаток на складе'!$A$6:$E$120,MATCH(Abasov[[#This Row],[Наименование СИЗ]],'Остаток на складе'!$A$6:$A$120,0),5),"НЕТ!") -> 158 | K114: =$J114*мужчины!$K$20 -> 31.6 | L114: 189.6 | M114: 0
B115: 7 | C115: Футболка СПОРТ-Д Код по каталогу 101-0032-01 | D115: 6100000220 | F115: 2020-06-19 | G115: 6 | H115: 2020-12-19 | I115: =1-IF(ISBLANK($D$3),(TODAY()-мужчины!$F115)/(мужчины!$H115-мужчины!$F115),($D$3-мужчины!$F115)/(мужчины!$H115-мужчины!$F115)) -> 0.1038251366 | J115: =IFERROR(INDEX('Остаток на складе'!$A$6:$E$120,MATCH(Abasov[[#This Row],[Наименование СИЗ]],'Остаток на складе'!$A$6:$A$120,0),5),"НЕТ!") -> 139 | K115: =$J115*мужчины!$K$20 -> 27.8 | L115: 166.8 | M115: 0
B116: 8 | C116: Нарукавник кевларовый | D116: 6100000173 | F116: 2020-06-19 | G116: 6 | H116: 2020-12-19 | I116: =1-IF(ISBLANK($D$3),(TODAY()-мужчины!$F116)/(мужчины!$H116-мужчины!$F116),($D$3-мужчины!$F116)/(мужчины!$H116-мужчины!$F116)) -> 0.1038251366 | J116: =IFERROR(INDEX('Остаток на складе'!$A$6:$E$120,MATCH(Abasov[[#This Row],[Наименование СИЗ]],'Остаток на складе'!$A$6:$A$120,0),5),"НЕТ!") -> 143 | K116: =$J116*мужчины!$K$20 -> 28.6 | L116: 171.6 | M116: 0
B117: 9 | C117: Термостойкие перчатки 100 С | D117: 6100000169 | F117: 2020-06-19 | G117: 3 | H117: 2020-09-18T12:00:00 | I117: =1-IF(ISBLANK($D$3),(TODAY()-мужчины!$F117)/(мужчины!$H117-мужчины!$F117),($D$3-мужчины!$F117)/(мужчины!$H117-мужчины!$F117)) -> -0.7923497268 | J117: =IFERROR(INDEX('Остаток на складе'!$A$6:$E$120,MATCH(Abasov[[#This Row],[Наименование СИЗ]],'Остаток на складе'!$A$6:$A$120,0),5),"НЕТ!") -> 58 | K117: =$J117*мужчины!$K$20 -> 11.6 | L117: =J117+K117 -> 69.6 | M117: 0
B118: 10 | C118: Термостойкий шлем (Маска) | D118: 6100000167 | F118: 2020-08-06 | G118: 6 | H118: 2021-02-05 | I118: =1-IF(ISBLANK($D$3),(TODAY()-мужчины!$F118)/(мужчины!$H118-мужчины!$F118),($D$3-мужчины!$F118)/(мужчины!$H118-мужчины!$F118)) -> 0.3661202186 | J118: =IFERROR(INDEX('Остаток на складе'!$A$6:$E$120,MATCH(Abasov[[#This Row],[Наименование СИЗ]],'Остаток на складе'!$A$6:$A$120,0),5),"НЕТ!") -> 18 | K118: =$J118*мужчины!$K$20 -> 3.6 | L118: 21.6 | M118: =IF(L118<0,"1","0") -> 0
B119: 11 | C119: Куртка утеплённая CERVA Аллин | D119: 6100000222 | F119: 2018-11-13 | G119: 36 | H119: 2021-11-15 | I119: =1-IF(ISBLANK($D$3),(TODAY()-мужчины!$F119)/(мужчины!$H119-мужчины!$F119),($D$3-мужчины!$F119)/(мужчины!$H119-мужчины!$F119)) -> 0.3187613843 | J119: =IFERROR(INDEX('Остаток на складе'!$A$6:$E$120,MATCH(Abasov[[#This Row],[Наименование СИЗ]],'Остаток на складе'!$A$6:$A$120,0),5),"НЕТ!") -> 38 | K119: =$J119*мужчины!$K$20 -> 7.6 | L119: 45.6 | M119: 0
B120: 12 | C120: Очки открытые защитные СКАЙПЕР | D120: 6100001957 | F120: 2020-06-19 | G120: 3 | H120: 2020-09-18T12:00:00 | I120: =1-IF(ISBLANK($D$3),(TODAY()-мужчины!$F120)/(мужчины!$H120-мужчины!$F120),($D$3-мужчины!$F120)/(мужчины!$H120-мужчины!$F120)) -> -0.7923497268 | J120: =IFERROR(INDEX('Остаток на складе'!$A$6:$E$120,MATCH(Abasov[[#This Row],[Наименование СИЗ]],'Остаток на складе'!$A$6:$A$120,0),5),"НЕТ!") -> 254 | K120: =$J120*мужчины!$K$20 -> 50.8 | L120: 304.8 | M120: 0
B121: 13 | C121: Каска - цвет синий | D121: 6100000203 | F121: 2019-10-31 | G121: 24 | H121: 2021-11-01 | I121: =1-IF(ISBLANK($D$3),(TODAY()-мужчины!$F121)/(мужчины!$H121-мужчины!$F121),($D$3-мужчины!$F121)/(мужчины!$H121-мужчины!$F121)) -> 0.4590163934 | J121: =IFERROR(INDEX('Остаток на складе'!$A$6:$E$120,MATCH(Abasov[[#This Row],[Наименование СИЗ]],'Остаток на складе'!$A$6:$A$120,0),5),"НЕТ!") -> 28 | K121: =$J121*мужчины!$K$20 -> 5.6 | L121: 33.6 | M121: 0
B122: 15 | C122: Противошумные вкладыши многоразовые 3M 1271 | D122: 6100000209 | F122: 2020-07-31 | G122: 12 | H122: 2021-08-01 | I122: =1-IF(ISBLANK($D$3),(TODAY()-мужчины!$F122)/(мужчины!$H122-мужчины!$F122),($D$3-мужчины!$F122)/(мужчины!$H122-мужчины!$F122)) -> 0.6666666667 | J122: =IFERROR(INDEX('Остаток на складе'!$A$6:$E$120,MATCH(Abasov[[#This Row],[Наименование СИЗ]],'Остаток на складе'!$A$6:$A$120,0),5),"НЕТ!") -> 2402 | K122: =$J122*мужчины!$K$20 -> 480.4 | L122: 2882.4 | M122: 0
B123: 16 | C123: Перчатки трикотажные с ПВХ | D123: 6100000181 | F123: 2020-07-31 | G123: 12 | H123: 2021-08-01 | I123: =1-IF(ISBLANK($D$3),(TODAY()-мужчины!$F123)/(мужчины!$H123-мужчины!$F123),($D$3-мужчины!$F123)/(мужчины!$H123-мужчины!$F123)) -> 0.6666666667 | J123: =IFERROR(INDEX('Остаток на складе'!$A$6:$E$120,MATCH(Abasov[[#This Row],[Наименование СИЗ]],'Остаток на складе'!$A$6:$A$120,0),5),"НЕТ!") -> 1873 | K123: =$J123*мужчины!$K$20 -> 374.6 | L123: 2247.6 | M123: 0
B124: ИТОГО: | L124: =SUMIF(L109:L123,"<500000",L109:L123) -> 6576
A126: 7 | B126: ФИО | G126: ДОЛЖНОСТЬ
C127: дата увольнения | G127: рост | H127: 170 | I127: одежда | J127: 52(L) | K127: обувь | L127: 43
B129: № п/п | C129: Наименование СИЗ | D129: н/н | E129: цена | F129: дата выдачи | G129: срок носки, мес | H129: дата списания | I129: износ | J129: остаток на складе | K129: 20% | L129: Итого с НДС | M129: Закупка | O129: НОРМА ВЫДАЧИ СПЕЦОДЕЖДЫ,СПЕЦОБУВИ И ДРУГИХ СРЕДСТВ ИНДИВИДУАЛЬНОЙ ЗАЩИТЫ РАБОТНИКОВ СМЕНЫ
B130: 1 | C130: Футболка СПОРТ-К трикотажная оранжевого цвета | D130: 6100000219 | F130: 2020-09-03 | G130: 6 | H130: =F130+G130*30.5 -> 2021-03-05 | I130: =1-IF(ISBLANK($D$3),(TODAY()-мужчины!$F130)/(мужчины!$H130-мужчины!$F130),($D$3-мужчины!$F130)/(мужчины!$H130-мужчины!$F130)) -> 0.5191256831 | J130: =IFERROR(INDEX('Остаток на складе'!$A$6:$E$120,MATCH(Gadzhitev[[#This Row],[Наименование СИЗ]],'Остаток на складе'!$A$6:$A$120,0),5),"НЕТ!") -> 206 | K130: =$J130*мужчины!$K$20 -> 41.2 | L130: =J130+K130 -> 247.2 | M130: =IF(L130<0,"1","0") -> 0 | O130: ПЕРЕЧЕНЬ
B131: 2 | C131: Костюм мужской летний Инженер | D131: 6100000217 | F131: 2020-02-13 | G131: 12 | H131: =F131+G131*30.5 -> 2021-02-13 | I131: =1-IF(ISBLANK($D$3),(TODAY()-мужчины!$F131)/(мужчины!$H131-мужчины!$F131),($D$3-мужчины!$F131)/(мужчины!$H131-мужчины!$F131)) -> 0.2049180328 | J131: =IFERROR(INDEX('Остаток на складе'!$A$6:$E$120,MATCH(Gadzhitev[[#This Row],[Наименование СИЗ]],'Остаток на складе'!$A$6:$A$120,0),5),"НЕТ!") -> 107 | K131: =$J131*мужчины!$K$20 -> 21.4 | L131: 128.4 | M131: 0 | O131: 1 | P131: НАЧАЛЬНИК СМЕНЫ
B132: 3 | C132: Полуботинки термостойкие | D132: 6100000225 | F132: 2020-08-03 | G132: 12 | H132: 2021-08-04 | I132: =1-IF(ISBLANK($D$3),(TODAY()-мужчины!$F132)/(мужчины!$H132-мужчины!$F132),($D$3-мужчины!$F132)/(мужчины!$H132-мужчины!$F132)) -> 0.674863388 | J132: =IFERROR(INDEX('Остаток на складе'!$A$6:$E$120,MATCH(Gadzhitev[[#This Row],[Наименование СИЗ]],'Остаток на складе'!$A$6:$A$120,0),5),"НЕТ!") -> 47 | K132: =$J132*мужчины!$K$20 -> 9.4 | L132: 56.4 | M132: 0 | P132: 1.1 | Q132: КАСКА ЗАЩИТНАЯ,СИНЯЯ | S132: ДО ИЗНОСА
B133: 4 | C133: Футболка СПОРТ-Д Код по каталогу 101-0032-01 | D133: 6100000220 | F133: 2020-09-03 | G133: 6 | H133: 2021-03-05 | I133: =1-IF(ISBLANK($D$3),(TODAY()-мужчины!$F133)/(мужчины!$H133-мужчины!$F133),($D$3-мужчины!$F133)/(мужчины!$H133-мужчины!$F133)) -> 0.5191256831 | J133: =IFERROR(INDEX('Остаток на складе'!$A$6:$E$120,MATCH(Gadzhitev[[#This Row],[Наименование СИЗ]],'Остаток на складе'!$A$6:$A$120,0),5),"НЕТ!") -> 139 | K133: =$J133*мужчины!$K$20 -> 27.8 | L133: 166.8 | M133: 0 | P133: 1.2 | Q133: ОЧКИ ЗАЩИТНЫЕ ОТКРЫТЫЕ | S133: ДО ИЗНОСА
B134: 5 | C134: Нарукавник кевларовый | D134: 6100000173 | F134: 2020-09-03 | G134: 6 | H134: 2021-03-05 | I134: =1-IF(ISBLANK($D$3),(TODAY()-мужчины!$F134)/(мужчины!$H134-мужчины!$F134),($D$3-мужчины!$F134)/(мужчины!$H134-мужчины!$F134)) -> 0.5191256831 | J134: =IFERROR(INDEX('Остаток на складе'!$A$6:$E$120,MATCH(Gadzhitev[[#This Row],[Наименование СИЗ]],'Остаток на складе'!$A$6:$A$120,0),5),"НЕТ!") -> 143 | K134: =$J134*мужчины!$K$20 -> 28.6 | L134: 171.6 | M134: 0 | P134: 1.3 | Q134: ОЧКИ ЗАЩИТНЫЕ С НЕПРЯМОЙ ВЕНТИЛЯЦИЕЙ ЗАКРЫТОГО ТИПА | S134: ДО ИЗНОСА
B135: 6 | C135: Костюм зимний "Норд" маслобензостойкий | D135: 6100000221 | G135: 24 | H135: 1902-01-01 | I135: =1-IF(ISBLANK($D$3),(TODAY()-мужчины!$F135)/(мужчины!$H135-мужчины!$F135),($D$3-мужчины!$F135)/(мужчины!$H135-мужчины!$F135)) -> -59.33469945 | J135: =IFERROR(INDEX('Остаток на складе'!$A$6:$E$120,MATCH(Gadzhitev[[#This Row],[Наименование СИЗ]],'Остаток на складе'!$A$6:$A$120,0),5),"НЕТ!") -> 23 | K135: =$J135*мужчины!$K$20 -> 4.6 | L135: =J135+K135 -> 27.6 | M135: =IF(L135<0,"1","0") -> 0 | P135: 1.4 | Q135: ОЧКИ ЗАТЕМНЕННЫЕ | S135: ДО ИЗНОСА
B136: 7 | C136: Очки открытые защитные СКАЙПЕР | D136: 6100001957 | F136: 2020-09-03 | G136: 3 | H136: 2020-12-03T12:00:00 | I136: =1-IF(ISBLANK($D$3),(TODAY()-мужчины!$F136)/(мужчины!$H136-мужчины!$F136),($D$3-мужчины!$F136)/(мужчины!$H136-мужчины!$F136)) -> 0.03825136612 | J136: =IFERROR(INDEX('Остаток на складе'!$A$6:$E$120,MATCH(Gadzhitev[[#This Row],[Наименование СИЗ]],'Остаток на складе'!$A$6:$A$120,0),5),"НЕТ!") -> 254 | K136: =$J136*мужчины!$K$20 -> 50.8 | L136: =J136+K136 -> 304.8 | M136: 0 | P136: 1.5 | Q136: КОСТЮМ ЗАЩИТНЫЙ ЛЕТНИЙ | S136: 1 КОМП. НА ГОД
B137: 7 | C137: Каска - цвет синий | D137: 6100000203 | F137: 2020-09-03 | G137: 24 | H137: 2022-09-05 | I137: =1-IF(ISBLANK($D$3),(TODAY()-мужчины!$F137)/(мужчины!$H137-мужчины!$F137),($D$3-мужчины!$F137)/(мужчины!$H137-мужчины!$F137)) -> 0.8797814208 | J137: =IFERROR(INDEX('Остаток на складе'!$A$6:$E$120,MATCH(Gadzhitev[[#This Row],[Наименование СИЗ]],'Остаток на складе'!$A$6:$A$120,0),5),"НЕТ!") -> 28 | K137: =$J137*мужчины!$K$20 -> 5.6 | L137: =J137+K137 -> 33.6 | M137: 0 | P137: 1.6 | Q137: ФУТБОЛКА С КОРОТКИМ РУКАВОМ | S137: 2 ШТ В ГОД
B138: 8 | C138: Рубашка от порезов | D138: 6100003805 | G138: 24 | H138: 1902-01-01 | I138: =1-IF(ISBLANK($D$3),(TODAY()-мужчины!$F138)/(мужчины!$H138-мужчины!$F138),($D$3-мужчины!$F138)/(мужчины!$H138-мужчины!$F138)) -> -59.33469945 | J138: =IFERROR(INDEX('Остаток на складе'!$A$6:$E$120,MATCH(Gadzhitev[[#This Row],[Наименование СИЗ]],'Остаток на складе'!$A$6:$A$120,0),5),"НЕТ!") -> НЕТ! | K138: =$J138*мужчины!$K$20 ->  | L138: =J138+K138 ->  | P138: 1.7 | Q138: ФУТБОЛКА С ДЛИНЫМ РУКАВОМ | S138: 1 ШТ В ГОД
B139: 9 | C139: Перчатки от порезов, класс 5 | D139: 6100000172 | F139: 2020-09-03 | G139: 2 | H139: 2020-11-03 | I139: =1-IF(ISBLANK($D$3),(TODAY()-мужчины!$F139)/(мужчины!$H139-мужчины!$F139),($D$3-мужчины!$F139)/(мужчины!$H139-мужчины!$F139)) -> -0.4426229508 | J139: =IFERROR(INDEX('Остаток на складе'!$A$6:$E$120,MATCH(Gadzhitev[[#This Row],[Наименование СИЗ]],'Остаток на складе'!$A$6:$A$120,0),5),"НЕТ!") -> 181 | K139: =$J139*мужчины!$K$20 -> 36.2 | L139: 217.2 | M139: 0 | P139: 1.8 | Q139: ПРОТИВОШУМНЫЕ ВКЛАДЫШИ МНОГОКРАТНОГО ИСПОЛЬЗОВАНИЯ | S139: ДО ИЗНОСА
B140: 10 | C140: Противошумные вкладыши многоразовые 3M 1271 | D140: 6100000209 | F140: 2020-09-03 | G140: 12 | H140: 2021-09-04 | I140: =1-IF(ISBLANK($D$3),(TODAY()-мужчины!$F140)/(мужчины!$H140-мужчины!$F140),($D$3-мужчины!$F140)/(мужчины!$H140-мужчины!$F140)) -> 0.7595628415 | J140: =IFERROR(INDEX('Остаток на складе'!$A$6:$E$120,MATCH(Gadzhitev[[#This Row],[Наименование СИЗ]],'Остаток на складе'!$A$6:$A$120,0),5),"НЕТ!") -> 2402 | K140: =$J140*мужчины!$K$20 -> 480.4 | L140: 2882.4 | M140: 0 | P140: 1.9 | Q140: СРЕДСТВА ИНДИВИДУАЛЬНОЙ ЗАЩИТЫ ОРГАНОВ ДЫХАНИЯ,ФИЛЬТРУЮЩИЕ | S140: ДО ИЗНОСА
B141: 11 | C141: Подшлемник | F141: 2020-09-03 | G141: 24 | H141: 2022-09-05 | I141: =1-IF(ISBLANK($D$3),(TODAY()-мужчины!$F141)/(мужчины!$H141-мужчины!$F141),($D$3-мужчины!$F141)/(мужчины!$H141-мужчины!$F141)) -> 0.8797814208 | J141: =IFERROR(INDEX('Остаток на складе'!$A$6:$E$120,MATCH(Gadzhitev[[#This Row],[Наименование СИЗ]],'Остаток на складе'!$A$6:$A$120,0),5),"НЕТ!") -> 158 | K141: =$J141*мужчины!$K$20 -> 31.6 | L141: 189.6 | M141: 0 | P141: 1.10 | Q141: ПОЛУБОТИНКИ ЛЕТНИЕ ЗАЩИТНЫЕ | S141: 1 ПАРА В ГОД
B142: 12 | C142: Перчатки трикотажные с ПВХ | D142: 6100000181 | F142: 2020-09-03 | G142: 12 | H142: 2021-09-04 | I142: =1-IF(ISBLANK($D$3),(TODAY()-мужчины!$F142)/(мужчины!$H142-мужчины!$F142),($D$3-мужчины!$F142)/(мужчины!$H142-мужчины!$F142)) -> 0.7595628415 | J142: =IFERROR(INDEX('Остаток на складе'!$A$6:$E$120,MATCH(Gadzhitev[[#This Row],[Наименование СИЗ]],'Остаток на складе'!$A$6:$A$120,0),5),"НЕТ!") -> 1873 | K142: =$J142*мужчины!$K$20 -> 374.6 | L142: 2247.6 | M142: 0 | P142: 1.11 | Q142: КУРТКА УТЕПЛЕННАЯ | S142: 1 ШТ НА 3 ГОДА
B143: ИТОГО: | L143: =SUMIF(L131:L142,"<500000",L131:L142) -> 6426 | P143: 1.12 | Q143: ПОДШЛЕМНИК | S143: 1 ШТ НА 2 ГОДА
A145: 8 | B145: ФИО | G145: ДОЛЖНОСТЬ | P145: ВОДИТЕЛЬ ПОГРУЗЧИКА,ЗАНЯТЫЙ НА УЧАСТКЕ ПРИГОТОВЛЕНИЯ ШИХТЫ ОПЕРАТОР УПШ
C146: дата увольнения | G146: рост | H146: 168 | I146: одежда | J146: 48(S) | K146: обувь | L146: 41 | O146: 2 | P146: 2.1 | Q146: КАСКА ЗАЩИТНАЯ,СИНЯЯ | S146: 1 ШТ НА 2 ГОДА
P147: 2.2 | Q147: ОЧКИ ЗАЩИТНЫЕ ОТКРЫТЫЕ | S147: 4 ШТ НА ГОД
B148: № п/п | C148: Наименование СИЗ | D148: н/н | E148: цена | F148: дата выдачи | G148: срок носки, мес | H148: дата списания | I148: износ | J148: остаток на складе | K148: 20% | L148: Итого с НДС | M148: Закупка | P148: 2.3 | Q148: НАУШНИКИ ПРОТИВОШУМНЫЕ С КРЕПЛЕНИЕМ НА КАСКУ ИЛИ ПРОТИВОШУМНЫЕ ВКЛАДЫШИ МНОГОКРАТНОГО ИСПОЛЬЗОВАНИЯ | S148: ДО ИЗНОСА
B149: 1 | C149: Футболка СПОРТ-К трикотажная оранжевого цвета | D149: 6100000219 | F149: 2020-06-23 | G149: 6 | H149: =F149+G149*30.5 -> 2020-12-23 | I149: =1-IF(ISBLANK($D$3),(TODAY()-мужчины!$F149)/(мужчины!$H149-мужчины!$F149),($D$3-мужчины!$F149)/(мужчины!$H149-мужчины!$F149)) -> 0.1256830601 | J149: =IFERROR(INDEX('Остаток на складе'!$A$6:$E$120,MATCH(Gamzatov[[#This Row],[Наименование СИЗ]],'Остаток на складе'!$A$6:$A$120,0),5),"НЕТ!") -> 206 | K149: =$J149*мужчины!$K$20 -> 41.2 | L149: =J149+K149 -> 247.2 | M149: =IF(L149<0,"1","0") -> 0 | P149: 2.4 | Q149: КОСТЮМ ЗАЩИТНЫЙ ЛЕТНИЙ | S149: 1 КОМП. НА ГОД
B150: 2 | C150: Костюм мужской летний Инженер | D150: 6100000217 | F150: 2020-09-07 | G150: 12 | H150: =F150+G150*30.5 -> 2021-09-08 | I150: =1-IF(ISBLANK($D$3),(TODAY()-мужчины!$F150)/(мужчины!$H150-мужчины!$F150),($D$3-мужчины!$F150)/(мужчины!$H150-мужчины!$F150)) -> 0.7704918033 | J150: =IFERROR(INDEX('Остаток на складе'!$A$6:$E$120,MATCH(Gamzatov[[#This Row],[Наименование СИЗ]],'Остаток на складе'!$A$6:$A$120,0),5),"НЕТ!") -> 107 | K150: =$J150*мужчины!$K$20 -> 21.4 | L150: 128.4 | M150: 0 | P150: 2.5 | Q150: ФУТБОЛКА С КОРОТКИМ РУКАВОМ | S150: 2 ШТ В ГОД
B151: 3 | C151: Полуботинки термостойкие | D151: 6100000225 | F151: 2020-06-23 | G151: 12 | H151: 2021-06-24 | I151: =1-IF(ISBLANK($D$3),(TODAY()-мужчины!$F151)/(мужчины!$H151-мужчины!$F151),($D$3-мужчины!$F151)/(мужчины!$H151-мужчины!$F151)) -> 0.5628415301 | J151: =IFERROR(INDEX('Остаток на складе'!$A$6:$E$120,MATCH(Gamzatov[[#This Row],[Наименование СИЗ]],'Остаток на складе'!$A$6:$A$120,0),5),"НЕТ!") -> 47 | K151: =$J151*мужчины!$K$20 -> 9.4 | L151: 56.4 | M151: 0 | P151: 2.6 | Q151: ФУТБОЛКА С ДЛИНЫМ РУКАВОМ | S151: 2 ШТ В ГОД
B152: 4 | C152: Футболка СПОРТ-Д Код по каталогу 101-0032-01 | D152: 6100000220 | F152: 2020-06-23 | G152: 6 | H152: 2020-12-23 | I152: =1-IF(ISBLANK($D$3),(TODAY()-мужчины!$F152)/(мужчины!$H152-мужчины!$F152),($D$3-мужчины!$F152)/(мужчины!$H152-мужчины!$F152)) -> 0.1256830601 | J152: =IFERROR(INDEX('Остаток на складе'!$A$6:$E$120,MATCH(Gamzatov[[#This Row],[Наименование СИЗ]],'Остаток на складе'!$A$6:$A$120,0),5),"НЕТ!") -> 139 | K152: =$J152*мужчины!$K$20 -> 27.8 | L152: 166.8 | M152: 0 | P152: 2.7 | Q152: СРЕДСТВА ИНДИВИДУАЛЬНОЙ ЗАЩИТЫ ОРГАНОВ ДЫХАНИЯ,ФИЛЬТРУЮЩИЕ | S152: ДО ИЗНОСА
B153: 5 | C153: Подшлемник | F153: 2018-11-09 | G153: 24 | H153: 2020-11-10 | I153: =1-IF(ISBLANK($D$3),(TODAY()-мужчины!$F153)/(мужчины!$H153-мужчины!$F153),($D$3-мужчины!$F153)/(мужчины!$H153-мужчины!$F153)) -> -0.02732240437 | J153: =IFERROR(INDEX('Остаток на складе'!$A$6:$E$120,MATCH(Gamzatov[[#This Row],[Наименование СИЗ]],'Остаток на складе'!$A$6:$A$120,0),5),"НЕТ!") -> 158 | K153: =$J153*мужчины!$K$20 -> 31.6 | L153: =J153+K153 -> 189.6 | M153: =IF(L153<0,"1","0") -> 0 | P153: 2.8 | Q153: ПОЛУБОТИНКИ ЛЕТНИЕ ЗАЩИТНЫЕ | S153: 1 ПАРА В ГОД
B154: 6 | C154: Куртка Норд | D154: 6100000222 | F154: 2019-02-25 | G154: 24 | H154: 2021-02-26 | I154: =1-IF(ISBLANK($D$3),(TODAY()-мужчины!$F154)/(мужчины!$H154-мужчины!$F154),($D$3-мужчины!$F154)/(мужчины!$H154-мужчины!$F154)) -> 0.1202185792 | J154: =IFERROR(INDEX('Остаток на складе'!$A$6:$E$120,MATCH(Gamzatov[[#This Row],[Наименование СИЗ]],'Остаток на складе'!$A$6:$A$120,0),5),"НЕТ!") -> 17 | K154: =$J154*мужчины!$K$20 -> 3.4 | L154: 20.4 | M154: 0 | P154: 2.9 | Q154: ПОДШЛЕМНИК | S154: 1 ШТ НА 2 ГОДА
B155: 7 | C155: Рубашка от порезов | D155: 6100003805 | F155: 2018-05-17 | G155: 24 | H155: 2020-05-18 | I155: =1-IF(ISBLANK($D$3),(TODAY()-мужчины!$F155)/(мужчины!$H155-мужчины!$F155),($D$3-мужчины!$F155)/(мужчины!$H155-мужчины!$F155)) -> -0.2677595628 | J155: =IFERROR(INDEX('Остаток на складе'!$A$6:$E$120,MATCH(Gamzatov[[#This Row],[Наименование СИЗ]],'Остаток на складе'!$A$6:$A$120,0),5),"НЕТ!") -> НЕТ! | K155: =$J155*мужчины!$K$20 ->  | M155: =IF(L155<0,"1","0") -> 0 | P155: 2.10 | Q155: БОТИНКИ ЗИМНИЕ ЗАЩИТНЫЕ | S155: 1 ПАРА НА 2 ГОДА
B156: 8 | C156: Очки открытые защитные СКАЙПЕР | D156: 6100001957 | F156: 2020-06-23 | G156: 3 | H156: 2020-09-22T12:00:00 | I156: =1-IF(ISBLANK($D$3),(TODAY()-мужчины!$F156)/(мужчины!$H156-мужчины!$F156),($D$3-мужчины!$F156)/(мужчины!$H156-мужчины!$F156)) -> -0.7486338798 | J156: =IFERROR(INDEX('Остаток на складе'!$A$6:$E$120,MATCH(Gamzatov[[#This Row],[Наименование СИЗ]],'Остаток на складе'!$A$6:$A$120,0),5),"НЕТ!") -> 254 | K156: =$J156*мужчины!$K$20 -> 50.8 | L156: 304.8 | M156: 0 | P156: 2.11 | Q156: КОСТЮМ ЗАЩИТНЫЙ ЗИМНИЙ | S156: 1 ШТ НА 2 ГОДА
B157: 9 | C157: Каска - цвет синий | D157: 6100000203 | F157: 2019-10-31 | G157: 24 | H157: 2021-11-01 | I157: =1-IF(ISBLANK($D$3),(TODAY()-мужчины!$F157)/(мужчины!$H157-мужчины!$F157),($D$3-мужчины!$F157)/(мужчины!$H157-мужчины!$F157)) -> 0.4590163934 | J157: =IFERROR(INDEX('Остаток на складе'!$A$6:$E$120,MATCH(Gamzatov[[#This Row],[Наименование СИЗ]],'Остаток на складе'!$A$6:$A$120,0),5),"НЕТ!") -> 28 | K157: =$J157*мужчины!$K$20 -> 5.6 | L157: 33.6 | M157: 0
B158: 10 | C158: Перчатки от порезов, класс 5 | D158: 6100000172 | F158: 2020-09-07 | G158: 2 | H158: 2020-11-07 | I158: =1-IF(ISBLANK($D$3),(TODAY()-мужчины!$F158)/(мужчины!$H158-мужчины!$F158),($D$3-мужчины!$F158)/(мужчины!$H158-мужчины!$F158)) -> -0.3770491803 | J158: =IFERROR(INDEX('Остаток на складе'!$A$6:$E$120,MATCH(Gamzatov[[#This Row],[Наименование СИЗ]],'Остаток на складе'!$A$6:$A$120,0),5),"НЕТ!") -> 181 | K158: =$J158*мужчины!$K$20 -> 36.2 | L158: 217.2 | M158: 0 | P158: СМЕННЫЙ МАСТЕР , ОПЕРАТОРЫ ВАННЫ РАСПЛАВА И ПЕЧИ ОТЖИГА , ОПЕРАТОР ПЕЧИ
B159: 11 | C159: Нарукавник кевларовый | D159: 6100000173 | F159: 2020-09-07 | G159: 6 | H159: 2021-03-09 | I159: =1-IF(ISBLANK($D$3),(TODAY()-мужчины!$F159)/(мужчины!$H159-мужчины!$F159),($D$3-мужчины!$F159)/(мужчины!$H159-мужчины!$F159)) -> 0.5409836066 | J159: =IFERROR(INDEX('Остаток на складе'!$A$6:$E$120,MATCH(Gamzatov[[#This Row],[Наименование СИЗ]],'Остаток на складе'!$A$6:$A$120,0),5),"НЕТ!") -> 143 | K159: =$J159*мужчины!$K$20 -> 28.6 | L159: 171.6 | M159: 0 | O159: 3 | P159: 3.1 | Q159: КАСКА ЗАЩИТНАЯ,СИНЯЯ | S159: 1 ШТ НА 2 ГОДА
B160: 12 | C160: Противошумные вкладыши многоразовые 3M 1271 | D160: 6100000209 | F160: 2020-07-31 | G160: 12 | H160: 2021-08-01 | I160: =1-IF(ISBLANK($D$3),(TODAY()-мужчины!$F160)/(мужчины!$H160-мужчины!$F160),($D$3-мужчины!$F160)/(мужчины!$H160-мужчины!$F160)) -> 0.6666666667 | J160: =IFERROR(INDEX('Остаток на складе'!$A$6:$E$120,MATCH(Gamzatov[[#This Row],[Наименование СИЗ]],'Остаток на складе'!$A$6:$A$120,0),5),"НЕТ!") -> 2402 | K160: =$J160*мужчины!$K$20 -> 480.4 | L160: 2882.4 | M160: 0 | P160: 3.2 | Q160: ОЧКИ ЗАЩИТНЫЕ ОТКРЫТЫЕ ИЛИ ЩИТОК ЗАЩИТНЫЙ ЛИЦЕВОЙ | S160: 4 ШТ В ГОД
B161: 13 | C161: Перчатки трикотажные с ПВХ | D161: 6100000181 | F161: 2020-07-31 | G161: 12 | H161: 2021-08-01 | I161: =1-IF(ISBLANK($D$3),(TODAY()-мужчины!$F161)/(мужчины!$H161-мужчины!$F161),($D$3-мужчины!$F161)/(мужчины!$H161-мужчины!$F161)) -> 0.6666666667 | J161: =IFERROR(INDEX('Остаток на складе'!$A$6:$E$120,MATCH(Gamzatov[[#This Row],[Наименование СИЗ]],'Остаток на складе'!$A$6:$A$120,0),5),"НЕТ!") -> 1873 | K161: =$J161*мужчины!$K$20 -> 374.6 | L161: 2247.6 | M161: 0 | P161: 3.3 | Q161: ОЧКИ ЗАЩИТНЫЕ С НЕПРЯМОЙ ВЕНТИЛЯЦИЕЙ ЗАКРЫТОГО ТИПА | S161: 4 ШТ В ГОД
B162: 14 | P162: 3.4 | Q162: ОЧКИ ЗАТЕМНЕННЫЕ | S162: 4 ШТ В ГОД
B163: 15 | P163: 3.5 | Q163: НАУШНИКИ ПРОТИВОШУМНЫЕ С КРЕПЛЕНИЕМ НА КАСКУ ИЛИ ПРОТИВОШУМНЫЕ ВКЛАДЫШИ МНОГОКРАТНОГО ИСПОЛЬЗОВАНИЯ | S163: ДО ИЗНОСА
B164: ИТОГО: | L164: =SUMIF(L149:L163,"<500000",L149:L163) -> 6666 | P164: 3.6 | Q164: КОСТЮМ ЗАЩИТНЫЙ ЛЕТНИЙ | S164: 1 КОМП. НА ГОД
P165: 3.7 | Q165: ФУТБОЛКА С КОРОТКИМ РУКАВОМ | S165: 2 ШТ В ГОД
A166: 9 | B166: ФИО | G166: ДОЛЖНОСТЬ | P166: 3.8 | Q166: ФУТБОЛКА С ДЛИНЫМ РУКАВОМ | S166: 2 ШТ В ГОД
C167: дата увольнения | G167: рост | H167: 168 | I167: одежда | J167: 48(S) | K167: обувь | L167: 41 | P167: 3.9 | Q167: ПОЛУБОТИНКИ ЛЕТНИЕ ЗАЩИТНЫЕ | S167: 1 ПАРА В ГОД
P168: 3.10 | Q168: ПОДШЛЕМНИК | S168: 1 ШТ НА 2 ГОДА
B169: № п/п | C169: Наименование СИЗ | D169: н/н | E169: цена | F169: дата выдачи | G169: срок носки, мес | H169: дата списания | I169: износ | J169: остаток на складе | K169: 20% | L169: Итого с НДС | M169: Закупка | P169: 3.11 | Q169: БОТИНКИ ЗИМНИЕ ЗАЩИТНЫЕ | S169: 1 ПАРА НА 2 ГОДА
B170: 1 | C170: Футболка СПОРТ-К трикотажная оранжевого цвета | D170: 6100000219 | F170: 2020-06-03 | G170: 6 | H170: =F170+G170*30.5 -> 2020-12-03 | I170: =1-IF(ISBLANK($D$3),(TODAY()-мужчины!$F170)/(мужчины!$H170-мужчины!$F170),($D$3-мужчины!$F170)/(мужчины!$H170-мужчины!$F170)) -> 0.01639344262 | J170: =IFERROR(INDEX('Остаток на складе'!$A$6:$E$120,MATCH(Gireev[[#This Row],[Наименование СИЗ]],'Остаток на складе'!$A$6:$A$120,0),5),"НЕТ!") -> 206 | K170: =$J170*мужчины!$K$20 -> 41.2 | L170: =J170+K170 -> 247.2 | M170: =IF(L170<0,"1","0") -> 0 | P170: 3.12 | Q170: РУКАВИЦЫ РАБОЧИЕ СУКОННЫЕ | S170: 12 ПАР В ГОД
B171: 2 | C171: Костюм мужской летний Инженер | D171: 6100000217 | F171: 2020-09-07 | G171: 12 | H171: =F171+G171*30.5 -> 2021-09-08 | I171: =1-IF(ISBLANK($D$3),(TODAY()-мужчины!$F171)/(мужчины!$H171-мужчины!$F171),($D$3-мужчины!$F171)/(мужчины!$H171-мужчины!$F171)) -> 0.7704918033 | J171: =IFERROR(INDEX('Остаток на складе'!$A$6:$E$120,MATCH(Gireev[[#This Row],[Наименование СИЗ]],'Остаток на складе'!$A$6:$A$120,0),5),"НЕТ!") -> 107 | K171: =$J171*мужчины!$K$20 -> 21.4 | L171: 128.4 | M171: 0 | P171: 3.13 | Q171: ТЕРМОСТОЙКИЕ ПЕРЧАТКИ 100С | S171: 2 ПАРЫ В ГОД
B172: 3 | C172: Полуботинки термостойкие | D172: 6100000225 | F172: 2020-06-03 | G172: 12 | H172: 2021-06-04 | I172: =1-IF(ISBLANK($D$3),(TODAY()-мужчины!$F172)/(мужчины!$H172-мужчины!$F172),($D$3-мужчины!$F172)/(мужчины!$H172-мужчины!$F172)) -> 0.5081967213 | J172: =IFERROR(INDEX('Остаток на складе'!$A$6:$E$120,MATCH(Gireev[[#This Row],[Наименование СИЗ]],'Остаток на складе'!$A$6:$A$120,0),5),"НЕТ!") -> 47 | K172: =$J172*мужчины!$K$20 -> 9.4 | L172: 56.4 | M172: 0 | P172: 3.14 | Q172: ТЕРМОСТОЙКИЕ ПЕРЧАТКИ 500С | S172: 2 ПАРЫ В ГОД
B173: 4 | C173: Футболка СПОРТ-Д Код по каталогу 101-0032-01 | D173: 6100000220 | F173: 2020-06-03 | G173: 6 | H173: 2020-12-03 | I173: =1-IF(ISBLANK($D$3),(TODAY()-мужчины!$F173)/(мужчины!$H173-мужчины!$F173),($D$3-мужчины!$F173)/(мужчины!$H173-мужчины!$F173)) -> 0.01639344262 | J173: =IFERROR(INDEX('Остаток на складе'!$A$6:$E$120,MATCH(Gireev[[#This Row],[Наименование СИЗ]],'Остаток на складе'!$A$6:$A$120,0),5),"НЕТ!") -> 139 | K173: =$J173*мужчины!$K$20 -> 27.8 | L173: 166.8 | M173: 0 | P173: 3.15 | Q173: НАРУКАВНИК КЕВЛАРОВЫЙ | S173: 2 ПАРЫ В ГОД
B174: 5 | C174: Нарукавник кевларовый | D174: 6100000173 | F174: 2020-09-07 | G174: 6 | H174: 2021-03-09 | I174: =1-IF(ISBLANK($D$3),(TODAY()-мужчины!$F174)/(мужчины!$H174-мужчины!$F174),($D$3-мужчины!$F174)/(мужчины!$H174-мужчины!$F174)) -> 0.5409836066 | J174: =IFERROR(INDEX('Остаток на складе'!$A$6:$E$120,MATCH(Gireev[[#This Row],[Наименование СИЗ]],'Остаток на складе'!$A$6:$A$120,0),5),"НЕТ!") -> 143 | K174: =$J174*мужчины!$K$20 -> 28.6 | L174: 171.6 | M174: 0 | P174: 3.16 | Q174: ТЕРМОСТОЙКИЙ ШЛЕМ(МАСКА) | S174: 2 ШТ В ГОД
B175: 6 | C175: Костюм зимний "Норд" маслобензостойкий | D175: 6100000221 | F175: 2020-06-03 | G175: 24 | H175: 2022-06-05 | I175: =1-IF(ISBLANK($D$3),(TODAY()-мужчины!$F175)/(мужчины!$H175-мужчины!$F175),($D$3-мужчины!$F175)/(мужчины!$H175-мужчины!$F175)) -> 0.7540983607 | J175: =IFERROR(INDEX('Остаток на складе'!$A$6:$E$120,MATCH(Gireev[[#This Row],[Наименование СИЗ]],'Остаток на складе'!$A$6:$A$120,0),5),"НЕТ!") -> 23 | K175: =$J175*мужчины!$K$20 -> 4.6 | L175: =J175+K175 -> 27.6 | M175: =IF(L175<0,"1","0") -> 0
B176: 7 | C176: Очки открытые защитные СКАЙПЕР | D176: 6100001957 | F176: 2020-09-07 | G176: 3 | H176: 2020-12-07T12:00:00 | I176: =1-IF(ISBLANK($D$3),(TODAY()-мужчины!$F176)/(мужчины!$H176-мужчины!$F176),($D$3-мужчины!$F176)/(мужчины!$H176-мужчины!$F176)) -> 0.08196721311 | J176: =IFERROR(INDEX('Остаток на складе'!$A$6:$E$120,MATCH(Gireev[[#This Row],[Наименование СИЗ]],'Остаток на складе'!$A$6:$A$120,0),5),"НЕТ!") -> 254 | K176: =$J176*мужчины!$K$20 -> 50.8 | L176: 304.8 | M176: 0 | P176: ОПЕРАТОР ЛИНИИ РЕЗКИ
B177: 8 | C177: Рубашка от порезов | D177: 6100003805 | F177: 2018-06-22 | G177: 24 | H177: 2020-06-23 | I177: =1-IF(ISBLANK($D$3),(TODAY()-мужчины!$F177)/(мужчины!$H177-мужчины!$F177),($D$3-мужчины!$F177)/(мужчины!$H177-мужчины!$F177)) -> -0.218579235 | J177: =IFERROR(INDEX('Остаток на складе'!$A$6:$E$120,MATCH(Gireev[[#This Row],[Наименование СИЗ]],'Остаток на складе'!$A$6:$A$120,0),5),"НЕТ!") -> НЕТ! | K177: =$J177*мужчины!$K$20 ->  | M177: =IF(L177<0,"1","0") -> 0 | O177: 4 | P177: 4.1 | Q177: КАСКА ЗАЩИТНАЯ,СИНЯЯ | S177: 1 ШТ НА 2 ГОДА
B178: 9 | C178: Каска - цвет синий | D178: 6100000203 | F178: 2019-10-31 | G178: 24 | H178: 2021-11-01 | I178: =1-IF(ISBLANK($D$3),(TODAY()-мужчины!$F178)/(мужчины!$H178-мужчины!$F178),($D$3-мужчины!$F178)/(мужчины!$H178-мужчины!$F178)) -> 0.4590163934 | J178: =IFERROR(INDEX('Остаток на складе'!$A$6:$E$120,MATCH(Gireev[[#This Row],[Наименование СИЗ]],'Остаток на складе'!$A$6:$A$120,0),5),"НЕТ!") -> 28 | K178: =$J178*мужчины!$K$20 -> 5.6 | L178: 33.6 | M178: 0 | P178: 4.2 | Q178: ОЧКИ ЗАЩИТНЫЕ ОТКРЫТЫЕ | S178: 4 ШТ НА ГОД
B179: 10 | C179: Перчатки от порезов, класс 5 | D179: 6100000172 | F179: 2020-09-07 | G179: 2 | H179: =F179+G179*30.5 -> 2020-11-07 | I179: =1-IF(ISBLANK($D$3),(TODAY()-мужчины!$F179)/(мужчины!$H179-мужчины!$F179),($D$3-мужчины!$F179)/(мужчины!$H179-мужчины!$F179)) -> -0.3770491803 | J179: =IFERROR(INDEX('Остаток на складе'!$A$6:$E$120,MATCH(Gireev[[#This Row],[Наименование СИЗ]],'Остаток на складе'!$A$6:$A$120,0),5),"НЕТ!") -> 181 | K179: =$J179*мужчины!$K$20 -> 36.2 | L179: =J179+K179 -> 217.2 | M179: =IF(L179<0,"1","0") -> 0 | P179: 4.3 | Q179: КОСТЮМ ЗАЩИТНЫЙ ЛЕТНИЙ | S179: 1 КОМП. НА ГОД
B180: 11 | C180: Противошумные вкладыши многоразовые 3M 1271 | D180: 6100000209 | F180: 2020-06-19 | G180: 12 | H180: 2021-06-20 | I180: =1-IF(ISBLANK($D$3),(TODAY()-мужчины!$F180)/(мужчины!$H180-мужчины!$F180),($D$3-мужчины!$F180)/(мужчины!$H180-мужчины!$F180)) -> 0.5519125683 | J180: =IFERROR(INDEX('Остаток на складе'!$A$6:$E$120,MATCH(Gireev[[#This Row],[Наименование СИЗ]],'Остаток на складе'!$A$6:$A$120,0),5),"НЕТ!") -> 2402 | K180: =$J180*мужчины!$K$20 -> 480.4 | L180: 2882.4 | M180: 0 | P180: 4.4 | Q180: ФУТБОЛКА С КОРОТКИМ РУКАВОМ | S180: 2 ШТ В ГОД
B181: 12 | C181: Перчатки трикотажные с ПВХ | D181: 6100000180 | F181: 2020-06-20 | G181: 12 | H181: 2021-06-21 | I181: =1-IF(ISBLANK($D$3),(TODAY()-мужчины!$F181)/(мужчины!$H181-мужчины!$F181),($D$3-мужчины!$F181)/(мужчины!$H181-мужчины!$F181)) -> 0.5546448087 | J181: =IFERROR(INDEX('Остаток на складе'!$A$6:$E$120,MATCH(Gireev[[#This Row],[Наименование СИЗ]],'Остаток на складе'!$A$6:$A$120,0),5),"НЕТ!") -> 1873 | K181: =$J181*мужчины!$K$20 -> 374.6 | L181: 2247.6 | M181: 0 | P181: 4.5 | Q181: ФУТБОЛКА С ДЛИНЫМ РУКАВОМ | S181: 2 ШТ В ГОД
B182: 13 | C182: Подшлемник | F182: 2018-11-09 | G182: 24 | H182: 2020-11-10 | I182: =1-IF(ISBLANK($D$3),(TODAY()-мужчины!$F182)/(мужчины!$H182-мужчины!$F182),($D$3-мужчины!$F182)/(мужчины!$H182-мужчины!$F182)) -> -0.02732240437 | J182: =IFERROR(INDEX('Остаток на складе'!$A$6:$E$120,MATCH(Gireev[[#This Row],[Наименование СИЗ]],'Остаток на складе'!$A$6:$A$120,0),5),"НЕТ!") -> 158 | K182: =$J182*мужчины!$K$20 -> 31.6 | L182: 189.6 | M182: 0 | P182: 4.6 | Q182: НАУШНИКИ ПРОТИВОШУМНЫЕ С КРЕПЛЕНИЕМ НА КАСКУ ИЛИ ПРОТИВОШУМНЫЕ ВКЛАДЫШИ МНОГОКРАТНОГО ИСПОЛЬЗОВАНИЯ | S182: ДО ИЗНОСА
B183: 14 | J183: =IFERROR(INDEX('Остаток на складе'!$A$6:$E$120,MATCH(Gireev[[#This Row],[Наименование СИЗ]],'Остаток на складе'!$A$6:$A$120,0),5),"НЕТ!") -> НЕТ!
B184: 15 | J184: =IFERROR(INDEX('Остаток на складе'!$A$6:$E$120,MATCH(Gireev[[#This Row],[Наименование СИЗ]],'Остаток на складе'!$A$6:$A$120,0),5),"НЕТ!") -> НЕТ! | P184: 4.7 | Q184: СРЕДСТВА ИНДИВИДУАЛЬНОЙ ЗАЩИТЫ ОРГАНОВ ДЫХАНИЯ,ФИЛЬТРУЮЩИЕ | S184: ДО ИЗНОСА
J185: =IFERROR(INDEX('Остаток на складе'!$A$6:$E$120,MATCH(Gireev[[#This Row],[Наименование СИЗ]],'Остаток на складе'!$A$6:$A$120,0),5),"НЕТ!") -> НЕТ! | P185: 4.8 | Q185: ПОЛУБОТИНКИ ЛЕТНИЕ ЗАЩИТНЫЕ | S185: 1 ПАРА В ГОД
L186: =SUMIF(L171:L185,"<500000",L171:L185) -> 6426 | P186: 4.9 | Q186: ПОДШЛЕМНИК | S186: 1 ШТ НА 2 ГОДА
P187: 4.10 | Q187: КУРТКА ЗИМНЯЯ | S187: 1 ШТ НА 2 ГОДА
A188: 10 | B188: ФИО | G188: ДОЛЖНОСТЬ | P188: 4.11 | Q188: РУБАХА АНТИПОРЕЗНАЯ | S188: ДО ИЗНОСА
C189: дата увольнения | G189: рост | H189: 182 | I189: одежда | J189: 50(M) | K189: обувь | L189: 42 | P189: 4.12 | Q189: ПЕРЧАТКИ ОТ ПОРЕЗОВ | S189: 6 ПАР В ГОД
P190: 4.13 | Q190: НАРУКАВНИК КЕВЛАРОВЫЙ | S190: 2 ПАРЫ В ГОД
B191: № п/п | C191: Наименование СИЗ | D191: н/н | E191: цена | F191: дата выдачи | G191: срок носки, мес | H191: дата списания | I191: износ | J191: остаток на складе | K191: 20% | L191: Итого с НДС | M191: Закупка
B192: 1 | C192: Футболка СПОРТ-К трикотажная оранжевого цвета | D192: 6100000219 | F192: 2020-08-06 | G192: 6 | H192: =F192+G192*30.5 -> 2021-02-05 | I192: =1-IF(ISBLANK($D$3),(TODAY()-мужчины!$F192)/(мужчины!$H192-мужчины!$F192),($D$3-мужчины!$F192)/(мужчины!$H192-мужчины!$F192)) -> 0.3661202186 | J192: =IFERROR(INDEX('Остаток на складе'!$A$6:$E$120,MATCH(Ibragimov_M[[#This Row],[Наименование СИЗ]],'Остаток на складе'!$A$6:$A$120,0),5),"НЕТ!") -> 206 | K192: =$J192*мужчины!$K$20 -> 41.2 | L192: =J192+K192 -> 247.2 | M192: =IF(L192<0,"1","0") -> 0
B193: 2 | C193: Очки с непрямой вентиляцией закрытые УЛЬТРАВИЖИН | D193: 6100000177 | F193: 2020-06-19 | G193: 3 | H193: =F193+G193*30.5 -> 2020-09-18T12:00:00 | I193: =1-IF(ISBLANK($D$3),(TODAY()-мужчины!$F193)/(мужчины!$H193-мужчины!$F193),($D$3-мужчины!$F193)/(мужчины!$H193-мужчины!$F193)) -> -0.7923497268 | J193: =IFERROR(INDEX('Остаток на складе'!$A$6:$E$120,MATCH(Ibragimov_M[[#This Row],[Наименование СИЗ]],'Остаток на складе'!$A$6:$A$120,0),5),"НЕТ!") -> 35 | K193: =$J193*мужчины!$K$20 -> 7 | L193: =J193+K193 -> 42 | M193: 0
B194: 3 | C194: Подшлемник | F194: 2018-11-09 | G194: 24 | H194: 2020-11-10 | I194: =1-IF(ISBLANK($D$3),(TODAY()-мужчины!$F194)/(мужчины!$H194-мужчины!$F194),($D$3-мужчины!$F194)/(мужчины!$H194-мужчины!$F194)) -> -0.02732240437 | J194: =IFERROR(INDEX('Остаток на складе'!$A$6:$E$120,MATCH(Ibragimov_M[[#This Row],[Наименование СИЗ]],'Остаток на складе'!$A$6:$A$120,0),5),"НЕТ!") -> 158 | K194: =$J194*мужчины!$K$20 -> 31.6 | M194: =IF(L194<0,"1","0") -> 0
B195: 4 | C195: Очки открытые защитные СКАЙПЕР | D195: 6100001957 | F195: 2020-06-19 | G195: 3 | H195: 2020-09-18T12:00:00 | I195: =1-IF(ISBLANK($D$3),(TODAY()-мужчины!$F195)/(мужчины!$H195-мужчины!$F195),($D$3-мужчины!$F195)/(мужчины!$H195-мужчины!$F195)) -> -0.7923497268 | J195: =IFERROR(INDEX('Остаток на складе'!$A$6:$E$120,MATCH(Ibragimov_M[[#This Row],[Наименование СИЗ]],'Остаток на складе'!$A$6:$A$120,0),5),"НЕТ!") -> 254 | K195: =$J195*мужчины!$K$20 -> 50.8 | M195: =IF(L195<0,"1","0") -> 0
B196: 5 | C196: Костюм мужской летний Инженер | D196: 6100000217 | F196: 2020-08-06 | G196: 12 | H196: 2021-08-07 | I196: =1-IF(ISBLANK($D$3),(TODAY()-мужчины!$F196)/(мужчины!$H196-мужчины!$F196),($D$3-мужчины!$F196)/(мужчины!$H196-мужчины!$F196)) -> 0.6830601093 | J196: =IFERROR(INDEX('Остаток на складе'!$A$6:$E$120,MATCH(Ibragimov_M[[#This Row],[Наименование СИЗ]],'Остаток на складе'!$A$6:$A$120,0),5),"НЕТ!") -> 107 | K196: =$J196*мужчины!$K$20 -> 21.4 | L196: 128.4 | M196: 0
B197: 6 | C197: Полуботинки термостойкие | D197: 6100000225 | F197: 2020-01-15 | G197: 12 | H197: 2021-01-15 | I197: =1-IF(ISBLANK($D$3),(TODAY()-мужчины!$F197)/(мужчины!$H197-мужчины!$F197),($D$3-мужчины!$F197)/(мужчины!$H197-мужчины!$F197)) -> 0.1256830601 | J197: =IFERROR(INDEX('Остаток на складе'!$A$6:$E$120,MATCH(Ibragimov_M[[#This Row],[Наименование СИЗ]],'Остаток на складе'!$A$6:$A$120,0),5),"НЕТ!") -> 47 | K197: =$J197*мужчины!$K$20 -> 9.4 | L197: 56.4 | M197: 0
B198: 7 | C198: Футболка СПОРТ-Д Код по каталогу 101-0032-01 | D198: 6100000220 | F198: 2020-08-06 | G198: 6 | H198: 2021-02-05 | I198: =1-IF(ISBLANK($D$3),(TODAY()-мужчины!$F198)/(мужчины!$H198-мужчины!$F198),($D$3-мужчины!$F198)/(мужчины!$H198-мужчины!$F198)) -> 0.3661202186 | J198: =IFERROR(INDEX('Остаток на складе'!$A$6:$E$120,MATCH(Ibragimov_M[[#This Row],[Наименование СИЗ]],'Остаток на складе'!$A$6:$A$120,0),5),"НЕТ!") -> 139 | K198: =$J198*мужчины!$K$20 -> 27.8 | L198: 166.8 | M198: 0
B199: 8 | C199: Куртка утеплённая CERVA Аллин | D199: 6100000222 | F199: 2017-02-18 | G199: 24 | H199: 2019-02-20 | I199: =1-IF(ISBLANK($D$3),(TODAY()-мужчины!$F199)/(мужчины!$H199-мужчины!$F199),($D$3-мужчины!$F199)/(мужчины!$H199-мужчины!$F199)) -> -0.8866120219 | J199: =IFERROR(INDEX('Остаток на складе'!$A$6:$E$120,MATCH(Ibragimov_M[[#This Row],[Наименование СИЗ]],'Остаток на складе'!$A$6:$A$120,0),5),"НЕТ!") -> 38 | K199: =$J199*мужчины!$K$20 -> 7.6 | L199: =J199+K199 -> 45.6 | M199: =IF(L199<0,"1","0") -> 0
B200: 9 | C200: Каска - цвет синий | D200: 6100000203 | F200: 2018-12-11 | G200: 24 | H200: 2020-12-12 | I200: =1-IF(ISBLANK($D$3),(TODAY()-мужчины!$F200)/(мужчины!$H200-мужчины!$F200),($D$3-мужчины!$F200)/(мужчины!$H200-мужчины!$F200)) -> 0.01639344262 | J200: =IFERROR(INDEX('Остаток на складе'!$A$6:$E$120,MATCH(Ibragimov_M[[#This Row],[Наименование СИЗ]],'Остаток на складе'!$A$6:$A$120,0),5),"НЕТ!") -> 28 | K200: =$J200*мужчины!$K$20 -> 5.6 | L200: =J200+K200 -> 33.6 | M200: =IF(L200<0,"1","0") -> 0
B201: 10 | C201: Противошумные вкладыши многоразовые 3M 1271 | D201: 6100000209 | F201: 2020-06-19 | G201: 12 | H201: 2021-06-20 | I201: =1-IF(ISBLANK($D$3),(TODAY()-мужчины!$F201)/(мужчины!$H201-мужчины!$F201),($D$3-мужчины!$F201)/(мужчины!$H201-мужчины!$F201)) -> 0.5519125683 | J201: =IFERROR(INDEX('Остаток на складе'!$A$6:$E$120,MATCH(Ibragimov_M[[#This Row],[Наименование СИЗ]],'Остаток на складе'!$A$6:$A$120,0),5),"НЕТ!") -> 2402 | K201: =$J201*мужчины!$K$20 -> 480.4 | M201: 0
B202: 11 | C202: Перчатки трикотажные с ПВХ | D202: 6100000181 | F202: 2020-06-19 | G202: 12 | H202: 2021-06-20 | I202: =1-IF(ISBLANK($D$3),(TODAY()-мужчины!$F202)/(мужчины!$H202-мужчины!$F202),($D$3-мужчины!$F202)/(мужчины!$H202-мужчины!$F202)) -> 0.5519125683 | J202: =IFERROR(INDEX('Остаток на складе'!$A$6:$E$120,MATCH(Ibragimov_M[[#This Row],[Наименование СИЗ]],'Остаток на складе'!$A$6:$A$120,0),5),"НЕТ!") -> 1873 | K202: =$J202*мужчины!$K$20 -> 374.6 | M202: 0
B203: 12 | C203: Рукавицы рабочие суконные G26 | D203: 6100000182 | F203: 2020-06-19 | G203: 6 | H203: 2020-12-19 | I203: =1-IF(ISBLANK($D$3),(TODAY()-мужчины!$F203)/(мужчины!$H203-мужчины!$F203),($D$3-мужчины!$F203)/(мужчины!$H203-мужчины!$F203)) -> 0.1038251366 | J203: =IFERROR(INDEX('Остаток на складе'!$A$6:$E$120,MATCH(Ibragimov_M[[#This Row],[Наименование СИЗ]],'Остаток на складе'!$A$6:$A$120,0),5),"НЕТ!") -> 20 | K203: =$J203*мужчины!$K$20 -> 4 | L203: =J203+K203 -> 24 | M203: 0
B204: 13 | C204: Перчатки от порезов, класс 5 | D204: 6100000172 | F204: 2020-06-19 | G204: 2 | H204: =F204+G204*30.5 -> 2020-08-19 | I204: =1-IF(ISBLANK($D$3),(TODAY()-мужчины!$F204)/(мужчины!$H204-мужчины!$F204),($D$3-мужчины!$F204)/(мужчины!$H204-мужчины!$F204)) -> -1.68852459 | J204: =IFERROR(INDEX('Остаток на складе'!$A$6:$E$120,MATCH(Ibragimov_M[[#This Row],[Наименование СИЗ]],'Остаток на складе'!$A$6:$A$120,0),5),"НЕТ!") -> 181 | K204: =$J204*мужчины!$K$20 -> 36.2 | M204: =IF(L204<0,"1","0") -> 0
B205: 14 | C205: Сменный фильтр (SO2) 3M 6059 | D205: 6100000188 | F205: 2020-07-31 | G205: 1 | H205: 2020-08-30T12:00:00 | I205: =1-IF(ISBLANK($D$3),(TODAY()-мужчины!$F205)/(мужчины!$H205-мужчины!$F205),($D$3-мужчины!$F205)/(мужчины!$H205-мужчины!$F205)) -> -3 | J205: =IFERROR(INDEX('Остаток на складе'!$A$6:$E$120,MATCH(Ibragimov_M[[#This Row],[Наименование СИЗ]],'Остаток на складе'!$A$6:$A$120,0),5),"НЕТ!") -> 128 | K205: =$J205*мужчины!$K$20 -> 25.6 | L205: =J205+K205 -> 153.6 | M205: 0
B206: 15 | C206: Сменный фильтр (пылевой) 3М 6035 | D206: 6100000189 | F206: 2020-07-31 | G206: 1 | H206: 2020-08-30T12:00:00 | I206: =1-IF(ISBLANK($D$3),(TODAY()-мужчины!$F206)/(мужчины!$H206-мужчины!$F206),($D$3-мужчины!$F206)/(мужчины!$H206-мужчины!$F206)) -> -3 | J206: =IFERROR(INDEX('Остаток на складе'!$A$6:$E$120,MATCH(Ibragimov_M[[#This Row],[Наименование СИЗ]],'Остаток на складе'!$A$6:$A$120,0),5),"НЕТ!") -> 66 | K206: =$J206*мужчины!$K$20 -> 13.2 | L206: =J206+K206 -> 79.2 | M206: 0
B207: ИТОГО: | L207: =SUMIF(L198:L206,"<500000",L198:L206) -> 502.8
A209: 11 | B209: ФИО | G209: ДОЛЖНОСТЬ
... 113 more rows

Sheet Остаток на складе
A1: Склад | B1: Количество Начальный остаток | C1: Количество Приход | D1: Количество Расход | E1: Количество Конечный остаток | F1: =TODAY() -> 2020-11-30
A2: Номенклатура | I2: Количество Начальный остаток | J2: Количество Начальный остаток | K2: Количество Приход | L2: Количество Расход | M2: Количество Конечный остаток
A3: Склад средств индивидуальной защиты | B3: 27563 | C3: 6230 | D3: 6129 | E3: =(B3+C3)-D3 -> 27664 | F3: =IF(G3,1,E3>2) -> TRUE
A4: =I4 -> Gladding Trousers (GT10/WSH) Теплозащитные брюки | B4: =IF(EXACT(A4,I4),J4) -> 0 | C4: =K4 -> 0 | D4: =L4 -> 0 | E4: =(B4+C4)-D4 -> 0 | F4: =IF(G4,1,E4>2) -> FALSE | H4: 1 | I4: Gladding Trousers (GT10/WSH) Теплозащитные брюки | M4: 2
A5: =I5 -> Reinforced Gladding Jacket (GJK/85) Куртка теплозащитная | B5: =IF(EXACT(A5,I5),J5) -> 3 | C5: =K5 -> 0 | D5: 0 | E5: 3 | F5: TRUE | H5: 2 | I5: Reinforced Gladding Jacket (GJK/85) Куртка теплозащитная | J5: 3 | M5: 3
A6: Бируши одноразовые HOWARD LEIGHT ЛАЗЕР ЛАЙТ | B6: 12162 | C6: 0 | D6: 0 | E6: 12162 | F6: TRUE | H6: 3 | I6: Бируши одноразовые HOWARD LEIGHT ЛАЗЕР ЛАЙТ | J6: 12162 | M6: 12 162,000
A7: Бланки удостоверений о проверке знаний требований охраны труда | B7: 315 | C7: 0 | D7: 0 | E7: 315 | F7: TRUE | H7: 4 | I7: Бланки удостоверений о проверке знаний требований охраны труда | J7: 315 | M7: 315
A8: Ботинки высокие ОМОН | B8: =IF(EXACT(A8,I8),J8) -> 1 | C8: 0 | D8: 0 | E8: 1 | F8: FALSE | H8: 5 | I8: Ботинки высокие ОМОН | J8: 1 | M8: 1
A9: Ботинки зимние HECKEL "Альфа" 120-001-01 | B9: =IF(EXACT(A9,I9),J9) -> 38 | C9: 0 | D9: 0 | E9: 38 | F9: TRUE | H9: 6 | I9: Ботинки зимние HECKEL "Альфа" 120-001-01 | J9: 38 | M9: 38
A10: Брюки для руководителей | B10: 8 | C10: 0 | D10: 0 | E10: 8 | F10: TRUE | H10: 7 | I10: Брюки для руководителей | J10: 8 | M10: 8
A11: Валенки | B11: 4 | C11: 0 | D11: 0 | E11: 4 | F11: TRUE | H11: 8 | I11: Валенки | J11: 4 | M11: 4
A12: Диэлектрические боты | B12: 6 | C12: 0 | D12: 0 | E12: 6 | F12: TRUE | H12: 9 | I12: Диэлектрические боты | J12: 6 | M12: 6
A13: Женская лабораторная обувь "Сабо" 120-0064-01 | B13: 6 | C13: 0 | D13: 0 | E13: 6 | F13: TRUE | H13: 10 | I13: Женская лабораторная обувь "Сабо" 120-0064-01 | J13: 6 | M13: 6
A14: Жилет светоотражающий сигнальный "Габарит" | B14: 16 | C14: 0 | D14: 0 | E14: 16 | F14: TRUE | H14: 11 | I14: Жилет светоотражающий сигнальный "Габарит" | J14: 16 | M14: 16
A15: Журнал записи результатов проверок автомобилей с бензиновыми двигателями | B15: 2 | C15: 0 | D15: 0 | E15: =(B15+C15)-D15 -> 2 | F15: FALSE | H15: 12 | I15: Журнал записи результатов проверок автомобилей с бензиновыми двигателями | J15: 2 | M15: 2
A16: Журнал первичного учета образовавшихся отходов (ПОД-14) | B16: 1 | C16: 0 | D16: 0 | E16: 1 | F16: FALSE | H16: 13 | I16: Журнал первичного учета образовавшихся отходов (ПОД-14) | J16: 1 | M16: 1
A17: Журнал регистрации вводного инструктажа по экологической безопасности | B17: 1 | C17: 0 | D17: 0 | E17: 1 | F17: FALSE | H17: 14 | I17: Журнал регистрации вводного инструктажа по экологической безопасности | J17: 1 | M17: 1
A18: Журнал учета водопотребления (водоотведения) водоизмерительными приборами и устройствами (ПОД-11) | B18: 2 | C18: 0 | D18: 0 | E18: 2 | F18: FALSE | H18: 15 | I18: Журнал учета водопотребления (водоотведения) водоизмерительными приборами и устройствами (ПОД-11) | J18: 2 | M18: 2
A19: Журнал учета водопотребления (водоотведения) косвенными методами (ПОД-12) | B19: 2 | C19: 0 | D19: 0 | E19: 2 | F19: FALSE | H19: 16 | I19: Журнал учета водопотребления (водоотведения) косвенными методами (ПОД-12) | J19: 2 | M19: 2
A20: Журнал учета выдачи инструкций по охране труда | B20: 1 | C20: 0 | D20: 0 | E20: 1 | F20: FALSE | H20: 17 | I20: Журнал учета выдачи инструкций по охране труда | J20: 1 | M20: 1
A21: Журнал учета выполнения мероприятий по охране атмосферного воздуха (ПОД-2) | B21: 1 | C21: 0 | D21: 0 | E21: 1 | F21: FALSE | H21: 18 | I21: Журнал учета выполнения мероприятий по охране атмосферного воздуха (ПОД-2) | J21: 1 | M21: 1
A22: Журнал учета и содержания СИЗ | B22: =IF(EXACT(A22,I22),J22) -> 8 | C22: 0 | D22: 0 | E22: 8 | F22: TRUE | H22: 19 | I22: Журнал учета и содержания СИЗ | J22: 8 | M22: 8
A23: Журнал учета измерений дымности при проверке автомобилей с дизельными двигателям | B23: 2 | C23: 0 | D23: 0 | E23: 2 | F23: FALSE | H23: 20 | I23: Журнал учета измерений дымности при проверке автомобилей с дизельными двигателям | J23: 2 | M23: 2
A24: Журнал учета инструкций по охране труда | B24: 1 | C24: 0 | D24: 0 | E24: 1 | F24: FALSE | H24: 21 | I24: Журнал учета инструкций по охране труда | J24: 1 | M24: 1
A25: Журнал учета качества сбрасываемых сточных вод (ПОД-13) | B25: 3 | C25: 0 | D25: 0 | E25: 3 | F25: TRUE | H25: 22 | I25: Журнал учета качества сбрасываемых сточных вод (ПОД-13) | J25: 3 | M25: 3
A26: Журнал учета работы ПГУ (ПОД-3) | B26: 9 | C26: 0 | D26: 0 | E26: 9 | F26: TRUE | H26: 23 | I26: Журнал учета работы ПГУ (ПОД-3) | J26: 9 | M26: 9
A27: Журналы регистрации первичного инструктажа на рабочем месте | B27: 36 | C27: 0 | D27: 0 | E27: 36 | F27: TRUE | H27: 24 | I27: Журналы регистрации первичного инструктажа на рабочем месте | J27: 36 | M27: 36
A28: Каска - цвет оранжевый | B28: 55 | C28: 0 | D28: 0 | E28: 55 | F28: TRUE | H28: 25 | I28: Каска - цвет оранжевый | J28: 55 | M28: 55
A29: Каска - цвет синий | B29: 28 | C29: 0 | D29: 0 | E29: 28 | F29: TRUE | H29: 26 | I29: Каска - цвет синий | J29: 28 | M29: 28
A30: Комбинезон КАСПЕР одноразовый от пыли | B30: 702 | C30: 0 | D30: 0 | E30: 702 | F30: TRUE | H30: 27 | I30: Комбинезон КАСПЕР одноразовый от пыли | J30: 702 | M30: 702
A31: Костюм "Дорожник" 104-0007-65 | B31: 114 | C31: 0 | D31: 1 | E31: 113 | F31: TRUE | H31: 28 | I31: Костюм "Дорожник" 104-0007-65 | J31: 114 | L31: 1 | M31: 113
A32: Костюм "Инженер" для руководителей | B32: 18 | C32: 0 | D32: 0 | E32: 18 | F32: TRUE | H32: 29 | I32: Костюм "Инженер" для руководителей | J32: 18 | M32: 18
A33: Костюм женский летний "Мастерица" 101-0030-13 | B33: 8 | C33: 0 | D33: 0 | E33: 8 | F33: TRUE | H33: 30 | I33: Костюм женский летний "Мастерица" 101-0030-13 | J33: 8 | M33: 8
A34: Костюм зимний "Норд" маслобензостойкий | B34: 23 | C34: 0 | D34: 0 | E34: 23 | F34: TRUE | H34: 31 | I34: Костюм зимний "Норд" маслобензостойкий | J34: 23 | M34: 23
A35: Костюм ЛЕДИ-СПЕЦ-1 код:101-0103-01 | B35: 42 | C35: 0 | D35: 0 | E35: 42 | F35: TRUE | H35: 32 | I35: Костюм ЛЕДИ-СПЕЦ-1 код:101-0103-01 | J35: 42 | M35: 42
A36: Костюм мужской летний Инженер | B36: 109 | C36: 0 | D36: 2 | E36: 107 | F36: TRUE | H36: 33 | I36: Костюм мужской летний Инженер | J36: 109 | L36: 2 | M36: 107
A37: Костюм сварщика со спилком | B37: 1 | C37: 0 | D37: 0 | E37: 1 | F37: FALSE | H37: 34 | I37: Костюм сварщика со спилком | J37: 1 | M37: 1
A38: Костюм Спец Авангард Куртка и полукомбинезон | B38: 79 | C38: 0 | D38: 0 | E38: 79 | F38: TRUE | H38: 35 | I38: Костюм Спец Авангард Куртка и полукомбинезон | J38: 79 | M38: 79
A39: Костюм ЭЛЕКТРА ЛН-21 СО (кур+п/к) | B39: 6 | C39: 0 | D39: 0 | E39: 6 | F39: TRUE | H39: 36 | I39: Костюм ЭЛЕКТРА ЛН-21 СО (кур+п/к) | J39: 6 | M39: 6
A40: Краги ВОСТОЧНЫЕ ТИГРЫ G128. 136-0036-01 | B40: 7 | C40: 0 | D40: 0 | E40: 7 | F40: TRUE | H40: 37 | I40: Краги ВОСТОЧНЫЕ ТИГРЫ G128. 136-0036-01 | J40: 7 | M40: 7
A41: Крем защитный с УФ-фильтром | B41: 35 | C41: 0 | D41: 0 | E41: 35 | F41: TRUE | H41: 38 | I41: Крем защитный с УФ-фильтром | J41: 35 | M41: 35
A42: Крем очищающий | B42: 45 | C42: 0 | D42: 0 | E42: 45 | F42: TRUE | H42: 39 | I42: Крем очищающий | J42: 45 | M42: 45
A43: Крем регенерерующий | B43: 71 | C43: 0 | D43: 1 | E43: 70 | F43: TRUE | H43: 40 | I43: Крем регенерерующий | J43: 71 | L43: 1 | M43: 70
A44: кронштейн для огнетушителя т-3 | B44: 99 | C44: 0 | D44: 0 | E44: 99 | F44: TRUE | H44: 41 | I44: кронштейн для огнетушителя т-3 | J44: 99 | M44: 99
A45: Куртка для руководителей | B45: 10 | C45: 0 | D45: 0 | E45: 10 | F45: TRUE | H45: 42 | I45: Куртка для руководителей | J45: 10 | M45: 10
A46: Куртка защитная летняя для технической дирекции Спец Авангард мужская серого цвета | B46: 4 | C46: 0 | D46: 0 | E46: 4 | F46: TRUE | H46: 43 | I46: Куртка защитная летняя для технической дирекции Спец Авангард мужская серого цвета | J46: 4 | M46: 4
A47: Куртка НОРД | B47: 17 | C47: 0 | D47: 0 | E47: 17 | F47: TRUE | H47: 44 | I47: Куртка НОРД | J47: 17 | M47: 17
A48: Куртка утеплённая CERVA Аллин | B48: 39 | C48: 0 | D48: 1 | E48: 38 | F48: TRUE | H48: 45 | I48: Куртка утеплённая CERVA Аллин | J48: 39 | L48: 1 | M48: 38
A49: Куртка утеплённая для директоров «Винтерстайл» | B49: 4 | C49: 0 | D49: 0 | E49: 4 | F49: TRUE | H49: 46 | I49: Куртка утеплённая для директоров «Винтерстайл» | J49: 4 | M49: 4
A50: Лента сигнальная (разметочная) | B50: 13 | C50: 0 | D50: 0 | E50: 13 | F50: TRUE | H50: 47 | I50: Лента сигнальная (разметочная) | J50: 13 | M50: 13
A51: Маска ВЕЛДЕР сварщика | B51: 1 | C51: 0 | D51: 0 | E51: 1 | F51: FALSE | H51: 48 | I51: Маска ВЕЛДЕР сварщика | J51: 1 | M51: 1
A52: Масляный обогреватель DeLongy 72096 | B52: 2 | C52: 0 | D52: 0 | E52: 2 | F52: FALSE | H52: 49 | I52: Масляный обогреватель DeLongy 72096 | J52: 2 | M52: 2
A53: Мешки для мусора 240 литров рулон | B53: 100 | C53: 0 | D53: 0 | E53: 100 | F53: TRUE | H53: 50 | I53: Мешки для мусора 240 литров рулон | J53: 100 | M53: 100
A54: Минеральная вода | B54: 67 | C54: 0 | D54: 0 | E54: 67 | F54: TRUE | H54: 51 | I54: Минеральная вода | J54: 67 | M54: 67
A55: Мужская лабораторная обувь Сабо Панда санитари | B55: 2 | C55: 0 | D55: 0 | E55: 2 | F55: FALSE | H55: 52 | I55: Мужская лабораторная обувь Сабо Панда санитари | J55: 2 | M55: 2
A56: Наколенники | B56: 149 | C56: 0 | D56: 0 | E56: 149 | F56: TRUE | H56: 53 | I56: Наколенники | J56: 149 | M56: 149
A57: Нарукавник кевларовый | B57: 143 | C57: 0 | D57: 0 | E57: 143 | F57: TRUE | H57: 54 | I57: Нарукавник кевларовый | J57: 143 | M57: 143
A58: Наушники противошумные на каску 3М Оптим I | B58: 1 | C58: 0 | D58: 0 | E58: 1 | F58: FALSE | H58: 55 | I58: Наушники противошумные на каску 3М Оптим I | J58: 1 | M58: 1
A59: Огнетушитель ОП-35 | B59: 2 | C59: 0 | D59: 0 | E59: 2 | F59: FALSE | H59: 56 | I59: Огнетушитель ОП-35 | J59: 2 | M59: 2
A60: Огнетушитель углекислотный ОУ-3 | B60: 4 | C60: 0 | D60: 0 | E60: 4 | F60: TRUE | H60: 57 | I60: Огнетушитель углекислотный ОУ-3 | J60: 4 | M60: 4
A61: Одноразовые носки-бахилы для посетителей | B61: 284 | C61: 0 | D61: 0 | E61: 284 | F61: TRUE | H61: 58 | I61: Одноразовые носки-бахилы для посетителей | J61: 284 | M61: 284
A62: Очки защитные uvex visitor 9162.046 затемнение 6 | B62: 18 | C62: 0 | D62: 0 | E62: 18 | F62: TRUE | H62: 59 | I62: Очки защитные uvex visitor 9162.046 затемнение 6 | J62: 18 | M62: 18
A63: Очки открытые защитные СКАЙПЕР | B63: 257 | C63: 0 | D63: 3 | E63: 254 | F63: TRUE | H63: 60 | I63: Очки открытые защитные СКАЙПЕР | J63: 257 | L63: 3 | M63: 254
A64: Очки с непрямой вентиляцией закрытые УЛЬТРАВИЖИН | B64: 36 | C64: 0 | D64: 1 | E64: 35 | F64: TRUE | H64: 61 | I64: Очки с непрямой вентиляцией закрытые УЛЬТРАВИЖИН | J64: 36 | L64: 1 | M64: 35
A65: Перчатки SPERIAN КРИОГЕНИК 2058685 от жидкого азота | B65: 32 | C65: 0 | D65: 0 | E65: 32 | F65: TRUE | H65: 62 | I65: Перчатки SPERIAN КРИОГЕНИК 2058685 от жидкого азота | J65: 32 | M65: 32
A66: Перчатки латексные лабораторные | B66: 350 | C66: 0 | D66: 0 | E66: 350 | F66: TRUE | H66: 63 | I66: Перчатки латексные лабораторные | J66: 350 | M66: 350
A67: Перчатки маслобензостойкие ANSELL ХАЙЛАЙТ | B67: 124 | C67: 0 | D67: 0 | E67: =(B67+C67)-D67 -> 124 | F67: TRUE | H67: 64 | I67: Перчатки маслобензостойкие ANSELL ХАЙЛАЙТ | J67: 124 | M67: 124
A68: Перчатки от порезов и работы с замасленными деталями | B68: 213 | C68: 0 | D68: =L68 -> 10 | E68: 203 | F68: =IF(G68,1,E68>2) -> TRUE | H68: 65 | I68: Перчатки от порезов и работы с замасленными деталями | J68: 213 | L68: 10 | M68: 203
A69: =I69 -> Перчатки от порезов Меланж 5 класс | B69: =IF(EXACT(A69,I69),J69) -> 19 | C69: =K69 -> 0 | D69: 0 | E69: 19 | F69: TRUE | H69: 66 | I69: Перчатки от порезов Меланж 5 класс | J69: 19 | M69: 19
A70: Перчатки от порезов, класс 5 | B70: 184 | C70: 0 | D70: 3 | E70: 181 | F70: TRUE | H70: 67 | I70: Перчатки от порезов, класс 5 | J70: 184 | L70: 3 | M70: 181
A71: Перчатки прорезиненные устойчивые к кислоте Ansell Солвекс 37-655 136-0041-02 | B71: 525 | C71: 0 | D71: 0 | E71: 525 | F71: TRUE | H71: 68 | I71: Перчатки прорезиненные устойчивые к кислоте Ansell Солвекс 37-655 136-0041-02 | J71: 525 | M71: 525
A72: перчатки резиновые | B72: 23 | C72: 0 | D72: 0 | E72: 23 | F72: TRUE | H72: 69 | I72: перчатки резиновые | J72: 23 | M72: 23
A73: Перчатки с кожанными вставками G354 | B73: 237 | C73: 0 | D73: 5 | E73: 232 | F73: TRUE | H73: 70 | I73: Перчатки с кожанными вставками G354 | J73: 237 | L73: 5 | M73: 232
A74: Перчатки с полимерным покрытием | B74: 200 | C74: 0 | D74: 0 | E74: 200 | F74: TRUE | H74: 71 | I74: Перчатки с полимерным покрытием | J74: 200 | M74: 200
A75: Перчатки трикотажные с ПВХ | B75: 1873 | C75: 0 | D75: 0 | E75: 1873 | F75: TRUE | H75: 72 | I75: Перчатки трикотажные с ПВХ | J75: 1873 | M75: 1 873,000
A76: Плащ Баргузин водонепроницаемый 106-0018-05 | B76: 4 | C76: 0 | D76: 0 | E76: 4 | F76: TRUE | H76: 73 | I76: Плащ Баргузин водонепроницаемый 106-0018-05 | J76: 4 | M76: 4
A77: Плащ термозащитный | B77: 1 | C77: 0 | D77: 0 | E77: 1 | F77: FALSE | H77: 74 | I77: Плащ термозащитный | J77: 1 | M77: 1
A78: Подшлемник | B78: 158 | C78: 0 | D78: 0 | E78: 158 | F78: TRUE | H78: 75 | I78: Подшлемник | J78: 158 | M78: 158
A79: Полнолицевая маска со сменными фильтрами 3М 6800 | B79: 44 | C79: 0 | D79: 0 | E79: 44 | F79: TRUE | H79: 76 | I79: Полнолицевая маска со сменными фильтрами 3М 6800 | J79: 44 | M79: 44
A80: Полуботинки ЛЕДИ СПАРТА | B80: 8 | C80: 0 | D80: 0 | E80: 8 | F80: TRUE | H80: 77 | I80: Полуботинки ЛЕДИ СПАРТА | J80: 8 | M80: 8
A81: Полуботинки Мастер | B81: 71 | C81: 0 | D81: 1 | E81: 70 | F81: TRUE | H81: 78 | I81: Полуботинки Мастер | J81: 71 | L81: 1 | M81: 70
A82: Полуботинки Талан | B82: 1 | C82: 0 | D82: 0 | E82: 1 | F82: FALSE | H82: 79 | I82: Полуботинки Талан | J82: 1 | M82: 1
A83: Полуботинки термостойкие | B83: 47 | C83: 0 | D83: 0 | E83: 47 | F83: TRUE | H83: 80 | I83: Полуботинки термостойкие | J83: 47 | M83: 47
A84: Полукомбинезон защитный летний для технической дирекции Спец Авангард мужской серого цвета | B84: 1 | C84: 0 | D84: 0 | E84: 1 | F84: FALSE | H84: 81 | I84: Полукомбинезон защитный летний для технической дирекции Спец Авангард мужской серого цвета | J84: 1 | M84: 1
A85: Полукомбинезон с сапогами лиман 106-0017-03 | B85: 1 | C85: 0 | D85: 0 | E85: 1 | F85: FALSE | H85: 82 | I85: Полукомбинезон с сапогами лиман 106-0017-03 | J85: 1 | M85: 1
A86: Пояс предохранительный УП-01 | B86: 3 | C86: 0 | D86: 0 | E86: 3 | F86: TRUE | H86: 83 | I86: Пояс предохранительный УП-01 | J86: 3 | M86: 3
A87: Привязь страховочная | B87: 4 | C87: 0 | D87: 0 | E87: 4 | F87: TRUE | H87: 84 | I87: Привязь страховочная | J87: 4 | M87: 4
A88: Противогаз шланговый ПШ-1С | B88: 9 | C88: 0 | D88: 0 | E88: 9 | F88: TRUE | H88: 85 | I88: Противогаз шланговый ПШ-1С | J88: 9 | M88: 9
A89: Противошумные вкладыши многоразовые 3M 1271 | B89: 2402 | C89: 0 | D89: 0 | E89: 2402 | F89: TRUE | H89: 86 | I89: Противошумные вкладыши многоразовые 3M 1271 | J89: 2402 | M89: 2 402,000
A90: Респиратор 3m 8122 с клапаном. 133-0033-01 | B90: 35 | C90: 0 | D90: 20 | E90: 15 | F90: TRUE | H90: 87 | I90: Респиратор 3m 8122 с клапаном. 133-0033-01 | J90: 35 | L90: 20 | M90: 35
A91: Респиратор для сварщика | B91: 94 | C91: 0 | D91: 0 | E91: 94 | F91: TRUE | H91: 88 | I91: Респиратор для сварщика | J91: 94 | M91: 94
A92: Рукавицы Вачеги G-24 | B92: 16 | C92: 0 | D92: 0 | E92: 16 | F92: TRUE | H92: 89 | I92: Рукавицы Вачеги G-24 | J92: 16 | M92: 16
A93: Рукавицы для защиты от вибрации | B93: 13 | C93: 0 | D93: 0 | E93: 13 | F93: TRUE | H93: 90 | I93: Рукавицы для защиты от вибрации | J93: 13 | M93: 13
A94: Рукавицы рабочие суконные G26 | B94: 20 | C94: 0 | D94: 0 | E94: 20 | F94: TRUE | H94: 91 | I94: Рукавицы рабочие суконные G26 | J94: 20 | M94: 20
A95: Сапоги резиновые | B95: 5 | C95: 0 | D95: 0 | E95: 5 | F95: TRUE | H95: 92 | I95: Сапоги резиновые | J95: 5 | M95: 5
A96: Сапоги Трейл-плюс | B96: 3 | C96: 0 | D96: 0 | E96: 3 | F96: TRUE | H96: 93 | I96: Сапоги Трейл-плюс | J96: 3 | M96: 3
A97: Сварочная полумаска СПИРОТЕК противоаэрозольная | B97: 30 | C97: 0 | D97: 0 | E97: 30 | F97: TRUE | H97: 94 | I97: Сварочная полумаска СПИРОТЕК противоаэрозольная | J97: 30 | M97: 30
A98: Скамья гардеробная | B98: 1 | C98: 0 | D98: 0 | E98: 1 | F98: FALSE | H98: 95 | I98: Скамья гардеробная | J98: 1 | M98: 1
A99: Сменный фильтр (SO2) 3M 6059 | B99: 128 | C99: 0 | D99: 0 | E99: 128 | F99: TRUE | H99: 96 | I99: Сменный фильтр (SO2) 3M 6059 | J99: 128 | M99: 128
A100: Сменный фильтр (пылевой) 3М 6035 | B100: 66 | C100: 0 | D100: 0 | E100: 66 | F100: TRUE | H100: 97 | I100: Сменный фильтр (пылевой) 3М 6035 | J100: 66 | M100: 66
A101: Стекло для маски сварщика 110х90 | B101: 97 | C101: 0 | D101: 0 | E101: 97 | F101: TRUE | H101: 98 | I101: Стекло для маски сварщика 110х90 | J101: 97 | M101: 97
A102: Стенд "Уголок пожарной безопасности" | B102: 8 | C102: 0 | D102: 0 | E102: 8 | F102: TRUE | H102: 99 | I102: Стенд "Уголок пожарной безопасности" | J102: 8 | M102: 8
A103: Стиральная машина | B103: 1 | C103: 0 | D103: 0 | E103: 1 | F103: FALSE | H103: 100 | I103: Стиральная машина | J103: 1 | M103: 1
A104: Стиральный порошок | B104: 48 | C104: 0 | D104: 0 | E104: 48 | F104: TRUE | H104: 101 | I104: Стиральный порошок | J104: 48 | M104: 48
A105: Строп страховочный ARX SS-1 | B105: 3 | C105: 0 | D105: 0 | E105: 3 | F105: TRUE | H105: 102 | I105: Строп страховочный ARX SS-1 | J105: 3 | M105: 3
A106: Таблички на двери | B106: 30 | C106: 0 | D106: 0 | E106: 30 | F106: TRUE | H106: 103 | I106: Таблички на двери | J106: 30 | M106: 30
A107: Термостойкие перчатки 100 С | B107: 58 | C107: 0 | D107: 0 | E107: 58 | F107: TRUE | H107: 104 | I107: Термостойкие перчатки 100 С | J107: 58 | M107: 58
A108: Термостойкие перчатки 500C | B108: 22 | C108: 0 | D108: 1 | E108: 21 | F108: TRUE | H108: 105 | I108: Термостойкие перчатки 500C | J108: 22 | L108: 1 | M108: 21
A109: Термостойкие рукавицы 500 С | B109: 5 | C109: 0 | D109: 0 | E109: 5 | F109: TRUE | H109: 106 | I109: Термостойкие рукавицы 500 С | J109: 5 | M109: 5
A110: Термостойкий шлем (Маска) | B110: 18 | C110: 0 | D110: 0 | E110: 18 | F110: TRUE | H110: 107 | I110: Термостойкий шлем (Маска) | J110: 18 | M110: 18
A111: Фартук Рубеж прорезиненный | B111: 9 | C111: 0 | D111: 0 | E111: 9 | F111: TRUE | H111: 108 | I111: Фартук Рубеж прорезиненный | J111: 9 | M111: 9
A112: Футболка СПОРТ-Д Код по каталогу 101-0032-01 | B112: 141 | C112: 0 | D112: 2 | E112: 139 | F112: TRUE | H112: 109 | I112: Футболка СПОРТ-Д Код по каталогу 101-0032-01 | J112: 141 | L112: 2 | M112: 139
A113: Футболка СПОРТ-К трикотажная оранжевого цвета | B113: 208 | C113: 0 | D113: 2 | E113: 206 | F113: TRUE | H113: 110 | I113: Футболка СПОРТ-К трикотажная оранжевого цвета | J113: 208 | L113: 2 | M113: 206
A114: Халат женский белый МАРТА 107-0016-14 | B114: 7 | C114: 0 | D114: 0 | E114: 7 | F114: TRUE | H114: 111 | I114: Халат женский белый МАРТА 107-0016-14 | J114: 7 | M114: 7
A115: Хлоргексидин биглюконат 0,1 % | B115: 55 | C115: 0 | D115: 0 | E115: 55 | F115: TRUE | H115: 112 | I115: Хлоргексидин биглюконат 0,1 % | J115: 55 | M115: 55
A116: черенок для лопат | B116: 55 | C116: 0 | D116: 0 | E116: 55 | F116: TRUE | H116: 113 | I116: черенок для лопат | J116: 55 | M116: 55
A117: Чистящая паста для рук CROLDINO Handwaschpaste (10л) | B117: 2 | C117: 0 | D117: 0 | E117: 2 | F117: FALSE | H117: 114 | I117: Чистящая паста для рук CROLDINO Handwaschpaste (10л) | J117: 2 | M117: 2
A118: Шлем теплозащитный | B118: 4 | C118: 0 | D118: 0 | E118: 4 | F118: TRUE | H118: 115 | I118: Шлем теплозащитный | J118: 4 | M118: 4
A119: Щит пожарный закрытый | B119: 1 | C119: 0 | D119: 0 | E119: 1 | F119: FALSE | H119: 116 | I119: Щит пожарный закрытый | J119: 1 | M119: 1
A120: Щиток для защиты от летящих частиц и брызг распл.металла | B120: 26 | C120: 0 | D120: 0 | E120: 26 | F120: TRUE | H120: 117 | I120: Щиток для защиты от летящих частиц и брызг распл.металла | J120: 26 | M120: 26
A121: Ящик для песка (пажаротушение) | B121: 5 | C121: 0 | D121: 0 | E121: 5 | F121: TRUE | H121: 118 | I121: Ящик для песка (пажаротушение) | J121: 5 | M121: 5
A122: 0 | B122: FALSE | C122: 0 | D122: 0 | E122: 0 | F122: FALSE | H122: 119
A123: 0 | B123: FALSE | C123: 0 | D123: 0 | E123: 0 | F123: FALSE | H123: 120
A124: 0 | B124: FALSE | C124: 0 | D124: 0 | E124: 0 | F124: FALSE
A125: 0 | B125: FALSE | C125: 0 | D125: 0 | E125: 0 | F125: FALSE
A126: 0 | B126: FALSE | C126: 0 | D126: 0 | E126: 0 | F126: FALSE
A127: 0 | B127: FALSE | C127: 0 | D127: 0 | E127: 0 | F127: FALSE
A128: 0 | B128: FALSE | C128: 0 | D128: 0 | E128: 0 | F128: FALSE
A129: 0 | B129: FALSE | C129: 6230 | D129: 6129 | E129: 101 | F129: TRUE
B130: 0 | C130: =SUM(C7:C124) -> 0 | D130: 53 | E130: -53
A131: Рубашка от порезов

Sheet Размеры мужской одежды
D1: Размеры мужской одежды
B2: Российский | C2: Международный | D2: Обхват | E2: Обхват | F2: Обхват | G2: Длина | H2: Англия | I2: США | J2: Европа | K2: Италия
B3: размер | D3: груди (см) | E3: талии (см) | F3: бедер (см) | G3: рукава (см) | H3: (UK) | I3: (US) | J3: (EU) | K3: (IT)
B4: 44 | C4: XXS | D4: 88 | E4: 70 | F4: 92 | G4: 59 | H4: 32 | I4: 34 | J4: 38 | K4: 42
B5: 46 | C5: XS | D5: 92 | E5: 76 | F5: 96 | G5: 60 | H5: 34 | I5: 36 | J5: 40 | K5: 44
B6: 48 | C6: S | D6: 96 | E6: 82 | F6: 100 | G6: 61 | H6: 36 | I6: 38 | J6: 42 | K6: 46
B7: 50 | C7: M | D7: 100 | E7: 88 | F7: 104 | G7: 62 | H7: 38 | I7: 40 | J7: 44 | K7: 48
B8: 52 | C8: L | D8: 104 | E8: 94 | F8: 108 | G8: 63 | H8: 40 | I8: 42 | J8: 46 | K8: 50
B9: 54 | C9: XL | D9: 108 | E9: 100 | F9: 112 | G9: 63 | H9: 42 | I9: 44 | J9: 48 | K9: 52
B10: 56 | C10: XXL | D10: 112 | E10: 106 | F10: 116 | G10: 64 | H10: 44 | I10: 46 | J10: 50 | K10: 54
B11: 58 | C11: XXXL | D11: 116 | E11: 112 | F11: 120 | G11: 64 | H11: 46 | I11: 48 | J11: 52 | K11: 56
B12: 60 | C12: XXXL | D12: 120 | E12: 118 | F12: 124 | G12: 65 | H12: 48 | I12: 50 | J12: 54 | K12: 58
B13: 62 | C13: XXXL | D13: 124 | E13: 120 | F13: 128 | G13: 65 | H13: 50 | I13: 52 | J13: 56 | K13: 60
B14: 64 | C14: 4XL | D14: 128 | E14: 124 | F14: 132 | G14: 66 | H14: 52 | I14: 54 | J14: 58 | K14: 62
B15: 66 | C15: 4XL | D15: 132 | E15: 128 | F15: 134 | G15: 66 | H15: 54 | I15: 60 | J15: 60 | K15: 64
B16: 68 | C16: 5XL | D16: 136 | E16: 132 | F16: 136 | G16: 66 | H16: 60 | I16: 62 | J16: 62 | K16: 66
B17: 70 | C17: 5XL

Sheet Таблица размеров мужской обуви
A1: Таблица размеров мужской обуви
A2: Россия | B2: Европа | C2: США | D2: Англия | E2: Япония | F2: CM
A3: 38 | B3: 39 | C3: 6 | D3: 5.5 | E3: 25 | F3: 25
A4: 39 | B4: 40 | C4: 7 | D4: 6.5 | E4: 25.5 | F4: 25.5
A5: 40 | B5: 41 | C5: 8 | D5: 7 | E5: 26.5 | F5: 26.5
A6: 41 | B6: 42 | C6: 9 | D6: 8 | E6: 27 | F6: 27
A7: 42 | B7: 43 | C7: 10 | D7: 9 | E7: 27.5 | F7: 27.5
A8: 43 | B8: 44 | C8: 11 | D8: 9.5 | E8: 28.5 | F8: 28.5
A9: 44 | B9: 45 | C9: 12 | D9: 10.5 | E9: 29 | F9: 29
A10: 45 | B10: 46 | C10: 13 | D10: 11 | E10: 29.5 | F10: 29.5
A11: 46 | B11: 47 | C11: 14 | D11: 12 | E11: 30 | F11: 30
A12: 47 | B12: 48 | C12: 15 | D12: 13 | E12: 30.5 | F12: 30.5
A13: 48 | B13: 49 | C13: 16 | D13: 13.5 | E13: 31 | F13: 31
A14: 49 | B14: 50 | C14: 17 | D14: 14 | E14: 31.5 | F14: 31.5
A15: 50 | B15: 51 | C15: 18 | D15: 15 | E15: 32 | F15: 32

Sheet ОБРАЗЕЦ
A1: =NOW() -> 2020-11-30T22:28:22.360 | C1: =1-ЕСЛИ(ЕПУСТО($D$3);(СЕГОДНЯ()-мужчины!$F6)/(мужчины!$H6-мужчины!$F6);($D$3-мужчины!$F6)/(мужчины!$H6-мужчины!$F6))
L3: $J6*мужчины!$K$20
B5: № п/п | C5: Наименование СИЗ | D5: н/н | E5: цена | F5: дата выдачи | G5: срок носки, мес | H5: дата списания | I5: износ | J5: ОСТАТОК НА СКЛАДЕ | K5: Стоимость | L5: 20% | M5: Итого с НДС | N5: Закупка
B6: =IF(ISBLANK(C6),"",COUNTA($C$6:C6)) -> 1 | C6: Бируши одноразовые HOWARD LEIGHT ЛАЗЕР ЛАЙТ | E6: 249 | F6: 2020-02-06 | G6: 12 | H6: =F6+G6*30 -> 2021-01-31 | I6: =1-IF(ISBLANK($D$4),(TODAY()-Mukhayev18[[#This Row],[дата выдачи]])/(Mukhayev18[[#This Row],[дата списания]]-Mukhayev18[[#This Row],[дата выдачи]]),($D$4-Mukhayev18[[#This Row],[дата выдачи]])/(Mukhayev18[[#This Row],[дата списания]]-Mukhayev18[[#This Row],[дата выдачи]])) -> 0.1722222222 | J6: =INDEX('Остаток на складе'!$A$6:$E$114,MATCH(Mukhayev18[[#This Row],[Наименование СИЗ]],'Остаток на складе'!$A$6:$A$114,0),5) -> 12162 | K6: =Mukhayev18[[#This Row],[цена]]*Mukhayev18[[#This Row],[износ]] -> 42.88333333 | L6: =$J6*Table13129130131133[[#Headers],[20%]] -> 2432.4 | M6: =J6+L6 -> 14594.4 | N6: =IF(M6<0,"1","0") -> 0
B7: =IF(ISBLANK(C7),"",COUNTA($C$6:C7)) -> 2 | C7: Костюм мужской летний Инженер | E7: 250 | F7: 2020-02-07 | G7: 3 | H7: =F7+G7*30 -> 2020-05-07 | I7: =1-IF(ISBLANK($D$4),(TODAY()-Mukhayev18[[#This Row],[дата выдачи]])/(Mukhayev18[[#This Row],[дата списания]]-Mukhayev18[[#This Row],[дата выдачи]]),($D$4-Mukhayev18[[#This Row],[дата выдачи]])/(Mukhayev18[[#This Row],[дата списания]]-Mukhayev18[[#This Row],[дата выдачи]])) -> -2.3 | J7: =INDEX('Остаток на складе'!$A$6:$E$114,MATCH(Mukhayev18[[#This Row],[Наименование СИЗ]],'Остаток на складе'!$A$6:$A$114,0),5) -> 107 | K7: =Mukhayev18[[#This Row],[цена]]*Mukhayev18[[#This Row],[износ]] -> -575 | L7: =$J7*Table13129130131133[[#Headers],[20%]] -> 21.4 | M7: =J7+L7 -> 128.4 | N7: =IF(M7<0,"1","0") -> 0
B8: =IF(ISBLANK(C8),"",COUNTA($C$6:C8)) -> 3 | C8: Куртка утеплённая CERVA Аллин | E8: 250 | F8: 2020-02-08 | G8: 12 | H8: 2021-02-02 | I8: =1-IF(ISBLANK($D$4),(TODAY()-Mukhayev18[[#This Row],[дата выдачи]])/(Mukhayev18[[#This Row],[дата списания]]-Mukhayev18[[#This Row],[дата выдачи]]),($D$4-Mukhayev18[[#This Row],[дата выдачи]])/(Mukhayev18[[#This Row],[дата списания]]-Mukhayev18[[#This Row],[дата выдачи]])) -> 0.1777777778 | J8: =INDEX('Остаток на складе'!$A$6:$E$114,MATCH(Mukhayev18[[#This Row],[Наименование СИЗ]],'Остаток на складе'!$A$6:$A$114,0),5) -> 38 | K8: =Mukhayev18[[#This Row],[цена]]*Mukhayev18[[#This Row],[износ]] -> 44.44444444 | L8: =$J8*Table13129130131133[[#Headers],[20%]] -> 7.6 | M8: 45.6 | N8: 0
B9: =IF(ISBLANK(C9),"",COUNTA($C$6:C9)) -> 4 | C9: Минеральная вода | E9: 250 | F9: 2020-02-09 | G9: 3 | H9: 2020-05-09 | I9: =1-IF(ISBLANK($D$4),(TODAY()-Mukhayev18[[#This Row],[дата выдачи]])/(Mukhayev18[[#This Row],[дата списания]]-Mukhayev18[[#This Row],[дата выдачи]]),($D$4-Mukhayev18[[#This Row],[дата выдачи]])/(Mukhayev18[[#This Row],[дата списания]]-Mukhayev18[[#This Row],[дата выдачи]])) -> -2.277777778 | J9: =INDEX('Остаток на складе'!$A$6:$E$114,MATCH(Mukhayev18[[#This Row],[Наименование СИЗ]],'Остаток на складе'!$A$6:$A$114,0),5) -> 67 | K9: =Mukhayev18[[#This Row],[цена]]*Mukhayev18[[#This Row],[износ]] -> -569.4444444 | L9: =$J9*Table13129130131133[[#Headers],[20%]] -> 13.4 | M9: 80.4 | N9: 0
B10: =IF(ISBLANK(C10),"",COUNTA($C$6:C10)) -> 5 | C10: Нарукавник кевларовый | E10: 250 | F10: 2020-02-10 | G10: 12 | H10: 2021-02-04 | I10: =1-IF(ISBLANK($D$4),(TODAY()-Mukhayev18[[#This Row],[дата выдачи]])/(Mukhayev18[[#This Row],[дата списания]]-Mukhayev18[[#This Row],[дата выдачи]]),($D$4-Mukhayev18[[#This Row],[дата выдачи]])/(Mukhayev18[[#This Row],[дата списания]]-Mukhayev18[[#This Row],[дата выдачи]])) -> 0.1833333333 | J10: =INDEX('Остаток на складе'!$A$6:$E$114,MATCH(Mukhayev18[[#This Row],[Наименование СИЗ]],'Остаток на складе'!$A$6:$A$114,0),5) -> 143 | K10: =Mukhayev18[[#This Row],[цена]]*Mukhayev18[[#This Row],[износ]] -> 45.83333333 | L10: =$J10*Table13129130131133[[#Headers],[20%]] -> 28.6 | M10: 171.6 | N10: 0
B11: =IF(ISBLANK(C11),"",COUNTA($C$6:C11)) -> 6 | C11: Наушники противошумные на каску 3М Оптим I | E11: 250 | F11: 2020-02-11 | G11: 6 | H11: 2020-08-09 | I11: =1-IF(ISBLANK($D$4),(TODAY()-Mukhayev18[[#This Row],[дата выдачи]])/(Mukhayev18[[#This Row],[дата списания]]-Mukhayev18[[#This Row],[дата выдачи]]),($D$4-Mukhayev18[[#This Row],[дата выдачи]])/(Mukhayev18[[#This Row],[дата списания]]-Mukhayev18[[#This Row],[дата выдачи]])) -> -0.6277777778 | J11: =INDEX('Остаток на складе'!$A$6:$E$114,MATCH(Mukhayev18[[#This Row],[Наименование СИЗ]],'Остаток на складе'!$A$6:$A$114,0),5) -> 1 | K11: =Mukhayev18[[#This Row],[цена]]*Mukhayev18[[#This Row],[износ]] -> -156.9444444 | L11: =$J11*Table13129130131133[[#Headers],[20%]] -> 0.2 | M11: 1.2 | N11: 0
B12: =IF(ISBLANK(C12),"",COUNTA($C$6:C12)) -> 7 | C12: Очки защитные uvex visitor 9162.046 затемнение 6 | E12: 250 | F12: 2020-02-12 | G12: 3 | H12: 2020-05-12 | I12: =1-IF(ISBLANK($D$4),(TODAY()-Mukhayev18[[#This Row],[дата выдачи]])/(Mukhayev18[[#This Row],[дата списания]]-Mukhayev18[[#This Row],[дата выдачи]]),($D$4-Mukhayev18[[#This Row],[дата выдачи]])/(Mukhayev18[[#This Row],[дата списания]]-Mukhayev18[[#This Row],[дата выдачи]])) -> -2.244444444 | J12: =INDEX('Остаток на складе'!$A$6:$E$114,MATCH(Mukhayev18[[#This Row],[Наименование СИЗ]],'Остаток на складе'!$A$6:$A$114,0),5) -> 18 | K12: =Mukhayev18[[#This Row],[цена]]*Mukhayev18[[#This Row],[износ]] -> -561.1111111 | L12: =$J12*Table13129130131133[[#Headers],[20%]] -> 3.6 | M12: 21.6 | N12: 0
B13: =IF(ISBLANK(C13),"",COUNTA($C$6:C13)) -> 8 | C13: Очки защитные с диоптриями | E13: 250 | F13: 2020-02-13 | G13: 3 | H13: 2020-05-13 | I13: =1-IF(ISBLANK($D$4),(TODAY()-Mukhayev18[[#This Row],[дата выдачи]])/(Mukhayev18[[#This Row],[дата списания]]-Mukhayev18[[#This Row],[дата выдачи]]),($D$4-Mukhayev18[[#This Row],[дата выдачи]])/(Mukhayev18[[#This Row],[дата списания]]-Mukhayev18[[#This Row],[дата выдачи]])) -> -2.233333333 | J13: =INDEX('Остаток на складе'!$A$6:$E$114,MATCH(Mukhayev18[[#This Row],[Наименование СИЗ]],'Остаток на складе'!$A$6:$A$114,0),5) ->  | K13: =Mukhayev18[[#This Row],[цена]]*Mukhayev18[[#This Row],[износ]] -> -558.3333333 | L13: =$J13*Table13129130131133[[#Headers],[20%]] -> 
B14: =IF(ISBLANK(C14),"",COUNTA($C$6:C14)) -> 9 | C14: Очки открытые защитные СКАЙПЕР | E14: 250 | F14: 2020-02-14 | G14: 6 | H14: 2020-08-12 | I14: =1-IF(ISBLANK($D$4),(TODAY()-Mukhayev18[[#This Row],[дата выдачи]])/(Mukhayev18[[#This Row],[дата списания]]-Mukhayev18[[#This Row],[дата выдачи]]),($D$4-Mukhayev18[[#This Row],[дата выдачи]])/(Mukhayev18[[#This Row],[дата списания]]-Mukhayev18[[#This Row],[дата выдачи]])) -> -0.6111111111 | J14: =INDEX('Остаток на складе'!$A$6:$E$114,MATCH(Mukhayev18[[#This Row],[Наименование СИЗ]],'Остаток на складе'!$A$6:$A$114,0),5) -> 254 | K14: =Mukhayev18[[#This Row],[цена]]*Mukhayev18[[#This Row],[износ]] -> -152.7777778 | L14: =$J14*Table13129130131133[[#Headers],[20%]] -> 50.8 | M14: 304.8 | N14: 0
B15: =IF(ISBLANK(C15),"",COUNTA($C$6:C15)) -> 10 | C15: Очки с непрямой вентиляцией закрытые УЛЬТРАВИЖИН | E15: 250 | F15: 2020-02-15 | G15: 36 | H15: 2023-01-30 | I15: =1-IF(ISBLANK($D$4),(TODAY()-Mukhayev18[[#This Row],[дата выдачи]])/(Mukhayev18[[#This Row],[дата списания]]-Mukhayev18[[#This Row],[дата выдачи]]),($D$4-Mukhayev18[[#This Row],[дата выдачи]])/(Mukhayev18[[#This Row],[дата списания]]-Mukhayev18[[#This Row],[дата выдачи]])) -> 0.7324074074 | J15: =INDEX('Остаток на складе'!$A$6:$E$114,MATCH(Mukhayev18[[#This Row],[Наименование СИЗ]],'Остаток на складе'!$A$6:$A$114,0),5) -> 35 | K15: =Mukhayev18[[#This Row],[цена]]*Mukhayev18[[#This Row],[износ]] -> 183.1018519 | L15: =$J15*Table13129130131133[[#Headers],[20%]] -> 7 | M15: 42 | N15: 0
B16: =IF(ISBLANK(C16),"",COUNTA($C$6:C16)) -> 11 | C16: Очки Ультрвижн с затемнением | E16: 250 | F16: 2020-02-16 | G16: 3 | H16: 2020-05-16 | I16: =1-IF(ISBLANK($D$4),(TODAY()-Mukhayev18[[#This Row],[дата выдачи]])/(Mukhayev18[[#This Row],[дата списания]]-Mukhayev18[[#This Row],[дата выдачи]]),($D$4-Mukhayev18[[#This Row],[дата выдачи]])/(Mukhayev18[[#This Row],[дата списания]]-Mukhayev18[[#This Row],[дата выдачи]])) -> -2.2 | J16: =INDEX('Остаток на складе'!$A$6:$E$114,MATCH(Mukhayev18[[#This Row],[Наименование СИЗ]],'Остаток на складе'!$A$6:$A$114,0),5) ->  | K16: =Mukhayev18[[#This Row],[цена]]*Mukhayev18[[#This Row],[износ]] -> -550 | L16: =$J16*Table13129130131133[[#Headers],[20%]] -> 
B17: =IF(ISBLANK(C17),"",COUNTA($C$6:C17)) -> 12 | C17: Перчатки от порезов Меланж 5 класс | E17: 250 | F17: 2020-02-17 | G17: 24 | H17: 2022-02-06 | I17: =1-IF(ISBLANK($D$4),(TODAY()-Mukhayev18[[#This Row],[дата выдачи]])/(Mukhayev18[[#This Row],[дата списания]]-Mukhayev18[[#This Row],[дата выдачи]]),($D$4-Mukhayev18[[#This Row],[дата выдачи]])/(Mukhayev18[[#This Row],[дата списания]]-Mukhayev18[[#This Row],[дата выдачи]])) -> 0.6013888889 | J17: =INDEX('Остаток на складе'!$A$6:$E$114,MATCH(Mukhayev18[[#This Row],[Наименование СИЗ]],'Остаток на складе'!$A$6:$A$114,0),5) -> 19 | K17: =Mukhayev18[[#This Row],[цена]]*Mukhayev18[[#This Row],[износ]] -> 150.3472222 | L17: =$J17*Table13129130131133[[#Headers],[20%]] -> 3.8 | M17: 22.8 | N17: 0
B18: =IF(ISBLANK(C18),"",COUNTA($C$6:C18)) -> 13 | C18: Перчатки от порезов, класс 5 | E18: 250 | F18: 2020-02-18 | G18: 24 | H18: 2022-02-07 | I18: =1-IF(ISBLANK($D$4),(TODAY()-Mukhayev18[[#This Row],[дата выдачи]])/(Mukhayev18[[#This Row],[дата списания]]-Mukhayev18[[#This Row],[дата выдачи]]),($D$4-Mukhayev18[[#This Row],[дата выдачи]])/(Mukhayev18[[#This Row],[дата списания]]-Mukhayev18[[#This Row],[дата выдачи]])) -> 0.6027777778 | J18: =INDEX('Остаток на складе'!$A$6:$E$114,MATCH(Mukhayev18[[#This Row],[Наименование СИЗ]],'Остаток на складе'!$A$6:$A$114,0),5) -> 181 | K18: =Mukhayev18[[#This Row],[цена]]*Mukhayev18[[#This Row],[износ]] -> 150.6944444 | L18: =$J18*Table13129130131133[[#Headers],[20%]] -> 36.2 | M18: 217.2 | N18: 0
B19: =IF(ISBLANK(C19),"",COUNTA($C$6:C19)) -> 14 | C19: Перчатки с кожанными вставками G354 | E19: 250 | F19: 2020-02-19 | G19: 24 | H19: =F19+G19*30 -> 2022-02-08 | I19: =1-IF(ISBLANK($D$4),(TODAY()-Mukhayev18[[#This Row],[дата выдачи]])/(Mukhayev18[[#This Row],[дата списания]]-Mukhayev18[[#This Row],[дата выдачи]]),($D$4-Mukhayev18[[#This Row],[дата выдачи]])/(Mukhayev18[[#This Row],[дата списания]]-Mukhayev18[[#This Row],[дата выдачи]])) -> 0.6041666667 | J19: =INDEX('Остаток на складе'!$A$6:$E$114,MATCH(Mukhayev18[[#This Row],[Наименование СИЗ]],'Остаток на складе'!$A$6:$A$114,0),5) -> 232 | K19: =Mukhayev18[[#This Row],[цена]]*Mukhayev18[[#This Row],[износ]] -> 151.0416667 | L19: =$J19*Table13129130131133[[#Headers],[20%]] -> 46.4 | M19: =J19+L19 -> 278.4 | N19: =IF(M19<0,"1","0") -> 0
B20: =IF(ISBLANK(C20),"",COUNTA($C$6:C20)) -> 15 | C20: Перчатки трикотажные с ПВХ | E20: 250 | F20: 2020-02-20 | G20: 24 | H20: 2022-02-09 | I20: =1-IF(ISBLANK($D$4),(TODAY()-Mukhayev18[[#This Row],[дата выдачи]])/(Mukhayev18[[#This Row],[дата списания]]-Mukhayev18[[#This Row],[дата выдачи]]),($D$4-Mukhayev18[[#This Row],[дата выдачи]])/(Mukhayev18[[#This Row],[дата списания]]-Mukhayev18[[#This Row],[дата выдачи]])) -> 0.6055555556 | J20: =INDEX('Остаток на складе'!$A$6:$E$114,MATCH(Mukhayev18[[#This Row],[Наименование СИЗ]],'Остаток на складе'!$A$6:$A$114,0),5) -> 1873 | K20: =Mukhayev18[[#This Row],[цена]]*Mukhayev18[[#This Row],[износ]] -> 151.3888889 | L20: =$J20*Table13129130131133[[#Headers],[20%]] -> 374.6 | M20: 2247.6 | N20: 0
B21: =IF(ISBLANK(C21),"",COUNTA($C$6:C21)) -> 16 | C21: Подшлемник | E21: 250 | F21: 2020-02-21 | G21: 24 | H21: 2022-02-10 | I21: =1-IF(ISBLANK($D$4),(TODAY()-Mukhayev18[[#This Row],[дата выдачи]])/(Mukhayev18[[#This Row],[дата списания]]-Mukhayev18[[#This Row],[дата выдачи]]),($D$4-Mukhayev18[[#This Row],[дата выдачи]])/(Mukhayev18[[#This Row],[дата списания]]-Mukhayev18[[#This Row],[дата выдачи]])) -> 0.6069444444 | J21: =INDEX('Остаток на складе'!$A$6:$E$114,MATCH(Mukhayev18[[#This Row],[Наименование СИЗ]],'Остаток на складе'!$A$6:$A$114,0),5) -> 158 | K21: =Mukhayev18[[#This Row],[цена]]*Mukhayev18[[#This Row],[износ]] -> 151.7361111 | L21: =$J21*Table13129130131133[[#Headers],[20%]] -> 31.6 | M21: 189.6 | N21: 0
B22: =IF(ISBLANK(C22),"",COUNTA($C$6:C22)) -> 17 | C22: Полнолицевая маска со сменными фильтрами 3М 6800 | E22: 250 | F22: 2020-02-22 | G22: 24 | H22: 2022-02-11 | I22: =1-IF(ISBLANK($D$4),(TODAY()-Mukhayev18[[#This Row],[дата выдачи]])/(Mukhayev18[[#This Row],[дата списания]]-Mukhayev18[[#This Row],[дата выдачи]]),($D$4-Mukhayev18[[#This Row],[дата выдачи]])/(Mukhayev18[[#This Row],[дата списания]]-Mukhayev18[[#This Row],[дата выдачи]])) -> 0.6083333333 | J22: =INDEX('Остаток на складе'!$A$6:$E$114,MATCH(Mukhayev18[[#This Row],[Наименование СИЗ]],'Остаток на складе'!$A$6:$A$114,0),5) -> 44 | K22: =Mukhayev18[[#This Row],[цена]]*Mukhayev18[[#This Row],[износ]] -> 152.0833333 | L22: =$J22*Table13129130131133[[#Headers],[20%]] -> 8.8 | M22: 52.8 | N22: 0
B23: =IF(ISBLANK(C23),"",COUNTA($C$6:C23)) -> 18 | C23: Полуботинки термостойские | E23: 250 | F23: 2020-02-23 | G23: 24 | H23: 2022-02-12 | I23: =1-IF(ISBLANK($D$4),(TODAY()-Mukhayev18[[#This Row],[дата выдачи]])/(Mukhayev18[[#This Row],[дата списания]]-Mukhayev18[[#This Row],[дата выдачи]]),($D$4-Mukhayev18[[#This Row],[дата выдачи]])/(Mukhayev18[[#This Row],[дата списания]]-Mukhayev18[[#This Row],[дата выдачи]])) -> 0.6097222222 | J23: =INDEX('Остаток на складе'!$A$6:$E$114,MATCH(Mukhayev18[[#This Row],[Наименование СИЗ]],'Остаток на складе'!$A$6:$A$114,0),5) ->  | K23: =Mukhayev18[[#This Row],[цена]]*Mukhayev18[[#This Row],[износ]] -> 152.4305556 | L23: =$J23*Table13129130131133[[#Headers],[20%]] -> 
B24: =IF(ISBLANK(C24),"",COUNTA($C$6:C24)) -> 19 | C24: Противошумные вкладыши многоразовые 3M 1271 | E24: 250 | F24: 2020-02-24 | G24: 24 | H24: 2022-02-13 | I24: =1-IF(ISBLANK($D$4),(TODAY()-Mukhayev18[[#This Row],[дата выдачи]])/(Mukhayev18[[#This Row],[дата списания]]-Mukhayev18[[#This Row],[дата выдачи]]),($D$4-Mukhayev18[[#This Row],[дата выдачи]])/(Mukhayev18[[#This Row],[дата списания]]-Mukhayev18[[#This Row],[дата выдачи]])) -> 0.6111111111 | J24: =INDEX('Остаток на складе'!$A$6:$E$114,MATCH(Mukhayev18[[#This Row],[Наименование СИЗ]],'Остаток на складе'!$A$6:$A$114,0),5) -> 2402 | K24: =Mukhayev18[[#This Row],[цена]]*Mukhayev18[[#This Row],[износ]] -> 152.7777778 | L24: =$J24*Table13129130131133[[#Headers],[20%]] -> 480.4 | M24: 2882.4 | N24: 0
B25: =IF(ISBLANK(C25),"",COUNTA($C$6:C25)) -> 20 | C25: Респиратор 3m 8122 с клапаном. 133-0033-01 | E25: 250 | F25: 2020-02-25 | G25: 24 | H25: =F25+G25*30 -> 2022-02-14 | I25: =1-IF(ISBLANK($D$4),(TODAY()-Mukhayev18[[#This Row],[дата выдачи]])/(Mukhayev18[[#This Row],[дата списания]]-Mukhayev18[[#This Row],[дата выдачи]]),($D$4-Mukhayev18[[#This Row],[дата выдачи]])/(Mukhayev18[[#This Row],[дата списания]]-Mukhayev18[[#This Row],[дата выдачи]])) -> 0.6125 | J25: =INDEX('Остаток на складе'!$A$6:$E$114,MATCH(Mukhayev18[[#This Row],[Наименование СИЗ]],'Остаток на складе'!$A$6:$A$114,0),5) -> 15 | K25: =Mukhayev18[[#This Row],[цена]]*Mukhayev18[[#This Row],[износ]] -> 153.125 | L25: =$J25*Table13129130131133[[#Headers],[20%]] -> 3 | M25: =J25+L25 -> 18 | N25: =IF(M25<0,"1","0") -> 0
B26: =IF(ISBLANK(C26),"",COUNTA($C$6:C26)) -> 21 | C26: Рукавицы рабочие суконные G26 | E26: 250 | F26: 2020-02-26 | G26: 24 | H26: 2022-02-15 | I26: =1-IF(ISBLANK($D$4),(TODAY()-Mukhayev18[[#This Row],[дата выдачи]])/(Mukhayev18[[#This Row],[дата списания]]-Mukhayev18[[#This Row],[дата выдачи]]),($D$4-Mukhayev18[[#This Row],[дата выдачи]])/(Mukhayev18[[#This Row],[дата списания]]-Mukhayev18[[#This Row],[дата выдачи]])) -> 0.6138888889 | J26: =INDEX('Остаток на складе'!$A$6:$E$114,MATCH(Mukhayev18[[#This Row],[Наименование СИЗ]],'Остаток на складе'!$A$6:$A$114,0),5) -> 20 | K26: =Mukhayev18[[#This Row],[цена]]*Mukhayev18[[#This Row],[износ]] -> 153.4722222 | L26: =$J26*Table13129130131133[[#Headers],[20%]] -> 4 | M26: 24 | N26: 0
B27: =IF(ISBLANK(C27),"",COUNTA($C$6:C27)) -> 22 | C27: Сменный фильтр (SO2) 3M 6059 | E27: 250 | F27: 2020-02-27 | G27: 24 | H27: 2022-02-16 | I27: =1-IF(ISBLANK($D$4),(TODAY()-Mukhayev18[[#This Row],[дата выдачи]])/(Mukhayev18[[#This Row],[дата списания]]-Mukhayev18[[#This Row],[дата выдачи]]),($D$4-Mukhayev18[[#This Row],[дата выдачи]])/(Mukhayev18[[#This Row],[дата списания]]-Mukhayev18[[#This Row],[дата выдачи]])) -> 0.6152777778 | J27: =INDEX('Остаток на складе'!$A$6:$E$114,MATCH(Mukhayev18[[#This Row],[Наименование СИЗ]],'Остаток на складе'!$A$6:$A$114,0),5) -> 128 | K27: =Mukhayev18[[#This Row],[цена]]*Mukhayev18[[#This Row],[износ]] -> 153.8194444 | L27: =$J27*Table13129130131133[[#Headers],[20%]] -> 25.6 | M27: 153.6 | N27: 0
B28: =IF(ISBLANK(C28),"",COUNTA($C$6:C28)) -> 23 | C28: Сменный фильтр (пылевой) 3М 6035 | E28: 250 | F28: 2020-02-28 | G28: 24 | H28: 2022-02-17 | I28: =1-IF(ISBLANK($D$4),(TODAY()-Mukhayev18[[#This Row],[дата выдачи]])/(Mukhayev18[[#This Row],[дата списания]]-Mukhayev18[[#This Row],[дата выдачи]]),($D$4-Mukhayev18[[#This Row],[дата выдачи]])/(Mukhayev18[[#This Row],[дата списания]]-Mukhayev18[[#This Row],[дата выдачи]])) -> 0.6166666667 | J28: =INDEX('Остаток на складе'!$A$6:$E$114,MATCH(Mukhayev18[[#This Row],[Наименование СИЗ]],'Остаток на складе'!$A$6:$A$114,0),5) -> 66 | K28: =Mukhayev18[[#This Row],[цена]]*Mukhayev18[[#This Row],[износ]] -> 154.1666667 | L28: =$J28*Table13129130131133[[#Headers],[20%]] -> 13.2 | M28: 79.2 | N28: 0
B29: =IF(ISBLANK(C29),"",COUNTA($C$6:C29)) -> 24 | C29: Термостойкие перчатки 100 С | E29: 250 | F29: 2020-02-29 | G29: 24 | H29: 2022-02-18 | I29: =1-IF(ISBLANK($D$4),(TODAY()-Mukhayev18[[#This Row],[дата выдачи]])/(Mukhayev18[[#This Row],[дата списания]]-Mukhayev18[[#This Row],[дата выдачи]]),($D$4-Mukhayev18[[#This Row],[дата выдачи]])/(Mukhayev18[[#This Row],[дата списания]]-Mukhayev18[[#This Row],[дата выдачи]])) -> 0.6180555556 | J29: =INDEX('Остаток на складе'!$A$6:$E$114,MATCH(Mukhayev18[[#This Row],[Наименование СИЗ]],'Остаток на складе'!$A$6:$A$114,0),5) -> 58 | K29: =Mukhayev18[[#This Row],[цена]]*Mukhayev18[[#This Row],[износ]] -> 154.5138889 | L29: =$J29*Table13129130131133[[#Headers],[20%]] -> 11.6 | M29: 69.6 | N29: 0
B30: =IF(ISBLANK(C30),"",COUNTA($C$6:C30)) -> 25 | C30: Термостойкие перчатки 500C | E30: 250 | F30: 2020-03-01 | G30: 24 | H30: 2022-02-19 | I30: =1-IF(ISBLANK($D$4),(TODAY()-Mukhayev18[[#This Row],[дата выдачи]])/(Mukhayev18[[#This Row],[дата списания]]-Mukhayev18[[#This Row],[дата выдачи]]),($D$4-Mukhayev18[[#This Row],[дата выдачи]])/(Mukhayev18[[#This Row],[дата списания]]-Mukhayev18[[#This Row],[дата выдачи]])) -> 0.6194444444 | J30: =INDEX('Остаток на складе'!$A$6:$E$114,MATCH(Mukhayev18[[#This Row],[Наименование СИЗ]],'Остаток на складе'!$A$6:$A$114,0),5) -> 21 | K30: =Mukhayev18[[#This Row],[цена]]*Mukhayev18[[#This Row],[износ]] -> 154.8611111 | L30: =$J30*Table13129130131133[[#Headers],[20%]] -> 4.2 | M30: 25.2 | N30: 0
B31: =IF(ISBLANK(C31),"",COUNTA($C$6:C31)) -> 26 | C31: Термостойкие рукавицы 500 С | D31: 6100000172 | E31: 250 | F31: 2020-03-02 | G31: 24 | H31: 2022-02-20 | I31: =1-IF(ISBLANK($D$4),(TODAY()-Mukhayev18[[#This Row],[дата выдачи]])/(Mukhayev18[[#This Row],[дата списания]]-Mukhayev18[[#This Row],[дата выдачи]]),($D$4-Mukhayev18[[#This Row],[дата выдачи]])/(Mukhayev18[[#This Row],[дата списания]]-Mukhayev18[[#This Row],[дата выдачи]])) -> 0.6208333333 | J31: =INDEX('Остаток на складе'!$A$6:$E$114,MATCH(Mukhayev18[[#This Row],[Наименование СИЗ]],'Остаток на складе'!$A$6:$A$114,0),5) -> 5 | K31: =Mukhayev18[[#This Row],[цена]]*Mukhayev18[[#This Row],[износ]] -> 155.2083333 | L31: =$J31*Table13129130131133[[#Headers],[20%]] -> 1 | M31: 6 | N31: 0
B32: =IF(ISBLANK(C32),"",COUNTA($C$6:C32)) -> 27 | C32: Термостойкий шлем (Маска) | D32: 6100000209 | E32: 250 | F32: 2020-03-03 | G32: 24 | H32: 2022-02-21 | I32: =1-IF(ISBLANK($D$4),(TODAY()-Mukhayev18[[#This Row],[дата выдачи]])/(Mukhayev18[[#This Row],[дата списания]]-Mukhayev18[[#This Row],[дата выдачи]]),($D$4-Mukhayev18[[#This Row],[дата выдачи]])/(Mukhayev18[[#This Row],[дата списания]]-Mukhayev18[[#This Row],[дата выдачи]])) -> 0.6222222222 | J32: =INDEX('Остаток на складе'!$A$6:$E$114,MATCH(Mukhayev18[[#This Row],[Наименование СИЗ]],'Остаток на складе'!$A$6:$A$114,0),5) -> 18 | K32: =Mukhayev18[[#This Row],[цена]]*Mukhayev18[[#This Row],[износ]] -> 155.5555556 | L32: =$J32*Table13129130131133[[#Headers],[20%]] -> 3.6 | M32: 21.6 | N32: 0
B33: =IF(ISBLANK(C33),"",COUNTA($C$6:C33)) -> 28 | C33: Футболка СПОРТ-Д Код по каталогу 101-0032-01 | D33: 6100000181 | E33: 250 | F33: 2020-03-04 | G33: 24 | H33: 2022-02-22 | I33: =1-IF(ISBLANK($D$4),(TODAY()-Mukhayev18[[#This Row],[дата выдачи]])/(Mukhayev18[[#This Row],[дата списания]]-Mukhayev18[[#This Row],[дата выдачи]]),($D$4-Mukhayev18[[#This Row],[дата выдачи]])/(Mukhayev18[[#This Row],[дата списания]]-Mukhayev18[[#This Row],[дата выдачи]])) -> 0.6236111111 | J33: =INDEX('Остаток на складе'!$A$6:$E$114,MATCH(Mukhayev18[[#This Row],[Наименование СИЗ]],'Остаток на складе'!$A$6:$A$114,0),5) -> 139 | K33: =Mukhayev18[[#This Row],[цена]]*Mukhayev18[[#This Row],[износ]] -> 155.9027778 | L33: =$J33*Table13129130131133[[#Headers],[20%]] -> 27.8 | M33: 166.8 | N33: 0
B34: =IF(ISBLANK(C34),"",COUNTA($C$6:C34)) -> 29 | C34: Футболка СПОРТ-К трикотажная оранжевого цвета | D34: 6100002028 | E34: 250 | F34: 2020-03-05 | G34: 24 | H34: 2022-02-23 | I34: =1-IF(ISBLANK($D$4),(TODAY()-Mukhayev18[[#This Row],[дата выдачи]])/(Mukhayev18[[#This Row],[дата списания]]-Mukhayev18[[#This Row],[дата выдачи]]),($D$4-Mukhayev18[[#This Row],[дата выдачи]])/(Mukhayev18[[#This Row],[дата списания]]-Mukhayev18[[#This Row],[дата выдачи]])) -> 0.625 | J34: =INDEX('Остаток на складе'!$A$6:$E$114,MATCH(Mukhayev18[[#This Row],[Наименование СИЗ]],'Остаток на складе'!$A$6:$A$114,0),5) -> 206 | K34: =Mukhayev18[[#This Row],[цена]]*Mukhayev18[[#This Row],[износ]] -> 156.25 | L34: =$J34*Table13129130131133[[#Headers],[20%]] -> 41.2 | M34: 247.2 | N34: 0
B35: =IF(ISBLANK(C35),"",COUNTA($C$6:C35)) -> 30 | C35: Перчатки с кожанными вставками | D35: 6100000183 | E35: 250 | F35: 2020-03-06 | G35: 6 | H35: 2020-09-02 | I35: =1-IF(ISBLANK($D$4),(TODAY()-Mukhayev18[[#This Row],[дата выдачи]])/(Mukhayev18[[#This Row],[дата списания]]-Mukhayev18[[#This Row],[дата выдачи]]),($D$4-Mukhayev18[[#This Row],[дата выдачи]])/(Mukhayev18[[#This Row],[дата списания]]-Mukhayev18[[#This Row],[дата выдачи]])) -> -0.4944444444 | J35: =INDEX('Остаток на складе'!$A$6:$E$114,MATCH(Mukhayev18[[#This Row],[Наименование СИЗ]],'Остаток на складе'!$A$6:$A$114,0),5) ->  | K35: =Mukhayev18[[#This Row],[цена]]*Mukhayev18[[#This Row],[износ]] -> -123.6111111 | L35: =$J35*Table13129130131133[[#Headers],[20%]] -> 
B36: =IF(ISBLANK(C36),"",COUNTA($C$6:C36)) -> 31 | C36: Рукавицы рабочие суконные G26 | D36: 6100000182 | E36: 250 | F36: 2020-03-07 | G36: 6 | H36: 2020-09-03 | I36: =1-IF(ISBLANK($D$4),(TODAY()-Mukhayev18[[#This Row],[дата выдачи]])/(Mukhayev18[[#This Row],[дата списания]]-Mukhayev18[[#This Row],[дата выдачи]]),($D$4-Mukhayev18[[#This Row],[дата выдачи]])/(Mukhayev18[[#This Row],[дата списания]]-Mukhayev18[[#This Row],[дата выдачи]])) -> -0.4888888889 | J36: =INDEX('Остаток на складе'!$A$6:$E$114,MATCH(Mukhayev18[[#This Row],[Наименование СИЗ]],'Остаток на складе'!$A$6:$A$114,0),5) -> 20 | K36: =Mukhayev18[[#This Row],[цена]]*Mukhayev18[[#This Row],[износ]] -> -122.2222222 | L36: =$J36*Table13129130131133[[#Headers],[20%]] -> 4 | M36: 24 | N36: 0
B37: ИТОГО: | M37: =SUMIF(M10:M36,"<500000",M10:M36) -> 7267.2

Sheet норма выдачи ССИЗ
A1: НОРМА ВЫДАЧИ СПЕЦОДЕЖДЫ,СПЕЦОБУВИ И ДРУГИХ СРЕДСТВ ИНДИВИДУАЛЬНОЙ ЗАЩИТЫ РАБОТНИКОВ СМЕНЫ
A2: ПЕРЕЧЕНЬ
A3: 1 | B3: НАЧАЛЬНИК СМЕНЫ
B4: 1.1 | C4: КАСКА ЗАЩИТНАЯ,СИНЯЯ | E4: ДО ИЗНОСА
B5: 1.2 | C5: ОЧКИ ЗАЩИТНЫЕ ОТКРЫТЫЕ | E5: ДО ИЗНОСА
B6: 1.3 | C6: ОЧКИ ЗАЩИТНЫЕ С НЕПРЯМОЙ ВЕНТИЛЯЦИЕЙ ЗАКРЫТОГО ТИПА | E6: ДО ИЗНОСА
B7: 1.4 | C7: ОЧКИ ЗАТЕМНЕННЫЕ | E7: ДО ИЗНОСА
B8: 1.5 | C8: КОСТЮМ ЗАЩИТНЫЙ ЛЕТНИЙ | E8: 1 КОМП. НА ГОД
B9: 1.6 | C9: ФУТБОЛКА С КОРОТКИМ РУКАВОМ | E9: 2 ШТ В ГОД
B10: 1.7 | C10: ФУТБОЛКА С ДЛИНЫМ РУКАВОМ | E10: 1 ШТ В ГОД
B11: 1.8 | C11: ПРОТИВОШУМНЫЕ ВКЛАДЫШИ МНОГОКРАТНОГО ИСПОЛЬЗОВАНИЯ | E11: ДО ИЗНОСА
B12: 1.9 | C12: СРЕДСТВА ИНДИВИДУАЛЬНОЙ ЗАЩИТЫ ОРГАНОВ ДЫХАНИЯ,ФИЛЬТРУЮЩИЕ | E12: ДО ИЗНОСА
B13: 1.10 | C13: ПОЛУБОТИНКИ ЛЕТНИЕ ЗАЩИТНЫЕ | E13: 1 ПАРА В ГОД
B14: 1.11 | C14: КУРТКА УТЕПЛЕННАЯ | E14: 1 ШТ НА 3 ГОДА
B15: 1.12 | C15: ПОДШЛЕМНИК | E15: 1 ШТ НА 2 ГОДА
B17: ВОДИТЕЛЬ ПОГРУЗЧИКА,ЗАНЯТЫЙ НА УЧАСТКЕ ПРИГОТОВЛЕНИЯ ШИХТЫ ОПЕРАТОР УПШ
A18: 2 | B18: 2.1 | C18: КАСКА ЗАЩИТНАЯ,СИНЯЯ | E18: 1 ШТ НА 2 ГОДА
B19: 2.2 | C19: ОЧКИ ЗАЩИТНЫЕ ОТКРЫТЫЕ | E19: 4 ШТ НА ГОД
B20: 2.3 | C20: НАУШНИКИ ПРОТИВОШУМНЫЕ С КРЕПЛЕНИЕМ НА КАСКУ ИЛИ ПРОТИВОШУМНЫЕ ВКЛАДЫШИ МНОГОКРАТНОГО ИСПОЛЬЗОВАНИЯ | E20: ДО ИЗНОСА
B21: 2.4 | C21: КОСТЮМ ЗАЩИТНЫЙ ЛЕТНИЙ | E21: 1 КОМП. НА ГОД
B22: 2.5 | C22: ФУТБОЛКА С КОРОТКИМ РУКАВОМ | E22: 2 ШТ В ГОД
B23: 2.6 | C23: ФУТБОЛКА С ДЛИНЫМ РУКАВОМ | E23: 2 ШТ В ГОД
B24: 2.7 | C24: СРЕДСТВА ИНДИВИДУАЛЬНОЙ ЗАЩИТЫ ОРГАНОВ ДЫХАНИЯ,ФИЛЬТРУЮЩИЕ | E24: ДО ИЗНОСА
B25: 2.8 | C25: ПОЛУБОТИНКИ ЛЕТНИЕ ЗАЩИТНЫЕ | E25: 1 ПАРА В ГОД
B26: 2.9 | C26: ПОДШЛЕМНИК | E26: 1 ШТ НА 2 ГОДА
B27: 2.10 | C27: БОТИНКИ ЗИМНИЕ ЗАЩИТНЫЕ | E27: 1 ПАРА НА 2 ГОДА
B28: 2.11 | C28: КОСТЮМ ЗАЩИТНЫЙ ЗИМНИЙ | E28: 1 ШТ НА 2 ГОДА
B30: СМЕННЫЙ МАСТЕР ОПЕРАТОРЫ ВАННЫ РАСПЛАВА И ПЕЧИ ОТЖИГА ОПЕРАТОР ПЕЧИ
A31: 3 | B31: 3.1 | C31: КАСКА ЗАЩИТНАЯ,СИНЯЯ | E31: 1 ШТ НА 2 ГОДА
B32: 3.2 | C32: ОЧКИ ЗАЩИТНЫЕ ОТКРЫТЫЕ ИЛИ ЩИТОК ЗАЩИТНЫЙ ЛИЦЕВОЙ | E32: 4 ШТ В ГОД
B33: 3.3 | C33: ОЧКИ ЗАЩИТНЫЕ С НЕПРЯМОЙ ВЕНТИЛЯЦИЕЙ ЗАКРЫТОГО ТИПА | E33: 4 ШТ В ГОД
B34: 3.4 | C34: ОЧКИ ЗАТЕМНЕННЫЕ | E34: 4 ШТ В ГОД
B35: 3.5 | C35: НАУШНИКИ ПРОТИВОШУМНЫЕ С КРЕПЛЕНИЕМ НА КАСКУ ИЛИ ПРОТИВОШУМНЫЕ ВКЛАДЫШИ МНОГОКРАТНОГО ИСПОЛЬЗОВАНИЯ | E35: ДО ИЗНОСА
B36: 3.6 | C36: КОСТЮМ ЗАЩИТНЫЙ ЛЕТНИЙ | E36: 1 КОМП. НА ГОД
B37: 3.7 | C37: ФУТБОЛКА С КОРОТКИМ РУКАВОМ | E37: 2 ШТ В ГОД
B38: 3.8 | C38: ФУТБОЛКА С ДЛИНЫМ РУКАВОМ | E38: 2 ШТ В ГОД
B39: 3.9 | C39: ПОЛУБОТИНКИ ЛЕТНИЕ ЗАЩИТНЫЕ | E39: 1 ПАРА В ГОД
B40: 3.10 | C40: ПОДШЛЕМНИК | E40: 1 ШТ НА 2 ГОДА
B41: 3.11 | C41: БОТИНКИ ЗИМНИЕ ЗАЩИТНЫЕ | E41: 1 ПАРА НА 2 ГОДА
B42: 3.12 | C42: РУКАВИЦЫ РАБОЧИЕ СУКОННЫЕ | E42: 12 ПАР В ГОД
B43: 3.13 | C43: ТЕРМОСТОЙКИЕ ПЕРЧАТКИ 100С | E43: 2 ПАРЫ В ГОД
B44: 3.14 | C44: ТЕРМОСТОЙКИЕ ПЕРЧАТКИ 500С | E44: 2 ПАРЫ В ГОД
B45: 3.15 | C45: НАРУКАВНИК КЕВЛАРОВЫЙ | E45: 2 ПАРЫ В ГОД
B46: 3.16 | C46: ТЕРМОСТОЙКИЙ ШЛЕМ(МАСКА) | E46: 2 ШТ В ГОД
B48: ОПЕРАТОР ЛИНИИ РЕЗКИ
A49: 4 | B49: 4.1 | C49: КАСКА ЗАЩИТНАЯ,СИНЯЯ | E49: 1 ШТ НА 2 ГОДА
B50: 4.2 | C50: ОЧКИ ЗАЩИТНЫЕ ОТКРЫТЫЕ | E50: 4 ШТ НА ГОД
B51: 4.3 | C51: КОСТЮМ ЗАЩИТНЫЙ ЛЕТНИЙ | E51: 1 КОМП. НА ГОД
B52: 4.4 | C52: ФУТБОЛКА С КОРОТКИМ РУКАВОМ | E52: 2 ШТ В ГОД
B53: 4.5 | C53: ФУТБОЛКА С ДЛИНЫМ РУКАВОМ | E53: 2 ШТ В ГОД
B54: 4.6 | C54: НАУШНИКИ ПРОТИВОШУМНЫЕ С КРЕПЛЕНИЕМ НА КАСКУ ИЛИ ПРОТИВОШУМНЫЕ ВКЛАДЫШИ МНОГОКРАТНОГО ИСПОЛЬЗОВАНИЯ | E54: ДО ИЗНОСА
B55: 4.7 | C55: СРЕДСТВА ИНДИВИДУАЛЬНОЙ ЗАЩИТЫ ОРГАНОВ ДЫХАНИЯ,ФИЛЬТРУЮЩИЕ | E55: ДО ИЗНОСА
B56: 4.8 | C56: ПОЛУБОТИНКИ ЛЕТНИЕ ЗАЩИТНЫЕ | E56: 1 ПАРА В ГОД
B57: 4.9 | C57: ПОДШЛЕМНИК | E57: 1 ШТ НА 2 ГОДА
B58: 4.10 | C58: КУРТКА ЗИМНЯЯ | E58: 1 ШТ НА 2 ГОДА
B59: 4.11 | C59: РУБАХА АНТИПОРЕЗНАЯ | E59: ДО ИЗНОСА
B60: 4.12 | C60: ПЕРЧАТКИ ОТ ПОРЕЗОВ | E60: 6 ПАР В ГОД
B61: 4.13 | C61: НАРУКАВНИК КЕВЛАРОВЫЙ | E61: 2 ПАРЫ В ГОД
